Workbook

Sheet Overview
D3: Key Action 2: Cooperation for innovation and the exchange of good practices
D4: Capacity Building in the field of higher education
B7: Before completing this table please read carefully the instructions available on the EACEA website
B8: CALL FOR PROPOSALS 2018 – EAC/A05/2017 - Erasmus+ Programme (2017/C 361/04)
B9: Programme guide and instructions for applicants
B11: Action | E11: =IF(D11="","Please select Action Type",IF(OR(D11="Joint Project",D11="Structural Project"),"","Error Type of Action")) -> Please select Action Type
B12: Duration number of months | E12: =IF(D12="","Please select duration",IF(OR(D12=24,D12=36),"","Error duration")) -> Please select duration
B13: Project Acronym | E13: =IF(D13="","Please fill in Project Acronym","") -> Please fill in Project Acronym
B14: Project Title
B16: EU GRANT REQUESTED FROM THE EUROPEAN UNION (in EUR)
B17: 1. Staff Costs | D17: ='1. Staff costs'!D9 -> 0 | E17: ="Cannot exceed 40% of total Grant requested" -> Cannot exceed 40% of total Grant requested | I17: =IF(COUNTIF('1. Staff costs'!T:T,"Error")<=1,"","Please check data in Tab '1. Staff Costs'") -> Please check data in Tab '1. Staff Costs'
B18: 2. Travel Costs + Exceptional Travel Costs | D18: ='2-3. Travel Costs&Costs of Stay'!D8+IF(OR(C26="",D26=""),0,'2-3. Travel Costs&Costs of Stay'!J4) -> 0 | E18: =IF(AND('2-3. Travel Costs&Costs of Stay'!D8=0,'2-3. Travel Costs&Costs of Stay'!J4>0),"Exceptional travel costs exceed 80% of total travel costs",IFERROR(IF('2-3. Travel Costs&Costs of Stay'!J4/'2-3. Travel Costs&Costs of Stay'!D8>0.8,"Exceptional travel costs exceed 80% of total travel costs",""),"")) ->  | I18: =IF(COUNTIF('2-3. Travel Costs&Costs of Stay'!O:O,"Error")<=1,"","Please check data in Tab '2-3. Travel Costs&Costs of Stay'") -> Please check data in Tab '2-3. Travel Costs&Costs of Stay'
B19: 3. Costs of Stay | D19: ='2-3. Travel Costs&Costs of Stay'!D9 -> 0 | I19: =IF(COUNTIF('2-3. Travel Costs&Costs of Stay'!O:O,"Error")<=1,"","Please check data in Tab '2-3. Travel Costs&Costs of Stay'") -> Please check data in Tab '2-3. Travel Costs&Costs of Stay'
B20: 4. Equipment Costs | D20: ='4. Equipment Costs'!C4 -> 0 | E20: ="Cannot exceed 30% of Total Grant requested" -> Cannot exceed 30% of Total Grant requested | I20: =IF(COUNTIF('4. Equipment Costs'!I:T,"Error")<=1,"","Please check data in Tab '4. Equipment Costs''") -> Please check data in Tab '4. Equipment Costs''
B21: 5. Subcontracting Costs | D21: ='5. Subcontracting Costs'!C4 -> 0 | E21: ="Cannot exceed 10% of Total Grant requested" -> Cannot exceed 10% of Total Grant requested | I21: =IF(COUNTIF('5. Subcontracting Costs'!I:I,"Error")<=1,"","Please check data in Tab '5. Subcontracting Costs'") -> Please check data in Tab '5. Subcontracting Costs'
B22: Total Grant requested from the European Union | D22: =SUM(D17:D21) -> 0 | E22: ="Should be equal or above EUR 500.000,00 and cannot exceed EUR 1.000.000,00" -> Should be equal or above EUR 500.000,00 and cannot exceed EUR 1.000.000,00 | I22: =IF(OR(COUNTIF('Co-financing'!J:J,"Error")<=1,AND('Co-financing'!B14="",'Co-financing'!E14="",'Co-financing'!F14="",'Co-financing'!G14="",'Co-financing'!H14=0)),"","Please check data in Tab 'Co-financing'") -> 
B24: DISTRIBUTION OF THE GRANT BY ORGANISATION (in EUR)
B25: Partner N° | C25: Name of Partner | D25: Country | E25: PR/PA | F25: 1. Staff Costs | G25: 2. Travel Costs | H25: 3. Costs of Stay | I25: 4. Equipment Costs | J25: 5. Subcontracting Costs | K25: Total Costs (in EUR)
B26: P1 | E26: =IFERROR(IF(D26<>"",VLOOKUP(D26,CountryType,2,FALSE),""),"Country not found") ->  | F26: =SUMIF('1. Staff costs'!C:C,B26,'1. Staff costs'!S:S) -> 0 | G26: =SUMIF('2-3. Travel Costs&Costs of Stay'!C:C,B26,'2-3. Travel Costs&Costs of Stay'!L:L)+IF(OR(C26="",D26=""),0,'2-3. Travel Costs&Costs of Stay'!J4) -> 0 | H26: =SUMIF('2-3. Travel Costs&Costs of Stay'!C:C,B26,'2-3. Travel Costs&Costs of Stay'!M:M) -> 0 | I26: =SUMIF('4. Equipment Costs'!C:C,B26,'4. Equipment Costs'!H:H) -> 0 | J26: =SUMIF('5. Subcontracting Costs'!C:C,B26,'5. Subcontracting Costs'!H:H) -> 0 | K26: =IF(OR(C26="",D26=""),0,SUM(F26:J26)) -> 0
B27: P2 | F27: =SUMIF('1. Staff costs'!C:C,B27,'1. Staff costs'!S:S) -> 0 | G27: =SUMIF('2-3. Travel Costs&Costs of Stay'!C:C,B27,'2-3. Travel Costs&Costs of Stay'!L:L) -> 0 | H27: =SUMIF('2-3. Travel Costs&Costs of Stay'!C:C,B27,'2-3. Travel Costs&Costs of Stay'!M:M) -> 0 | I27: =SUMIF('4. Equipment Costs'!C:C,B27,'4. Equipment Costs'!H:H) -> 0 | J27: =SUMIF('5. Subcontracting Costs'!C:C,B27,'5. Subcontracting Costs'!H:H) -> 0 | K27: 0
B28: P3 | F28: =SUMIF('1. Staff costs'!C:C,B28,'1. Staff costs'!S:S) -> 0 | G28: =SUMIF('2-3. Travel Costs&Costs of Stay'!C:C,B28,'2-3. Travel Costs&Costs of Stay'!L:L) -> 0 | H28: =SUMIF('2-3. Travel Costs&Costs of Stay'!C:C,B28,'2-3. Travel Costs&Costs of Stay'!M:M) -> 0 | I28: =SUMIF('4. Equipment Costs'!C:C,B28,'4. Equipment Costs'!H:H) -> 0 | J28: =SUMIF('5. Subcontracting Costs'!C:C,B28,'5. Subcontracting Costs'!H:H) -> 0 | K28: 0
B29: P4 | F29: =SUMIF('1. Staff costs'!C:C,B29,'1. Staff costs'!S:S) -> 0 | G29: =SUMIF('2-3. Travel Costs&Costs of Stay'!C:C,B29,'2-3. Travel Costs&Costs of Stay'!L:L) -> 0 | H29: =SUMIF('2-3. Travel Costs&Costs of Stay'!C:C,B29,'2-3. Travel Costs&Costs of Stay'!M:M) -> 0 | I29: =SUMIF('4. Equipment Costs'!C:C,B29,'4. Equipment Costs'!H:H) -> 0 | J29: =SUMIF('5. Subcontracting Costs'!C:C,B29,'5. Subcontracting Costs'!H:H) -> 0 | K29: 0
B30: P5 | F30: =SUMIF('1. Staff costs'!C:C,B30,'1. Staff costs'!S:S) -> 0 | G30: =SUMIF('2-3. Travel Costs&Costs of Stay'!C:C,B30,'2-3. Travel Costs&Costs of Stay'!L:L) -> 0 | H30: =SUMIF('2-3. Travel Costs&Costs of Stay'!C:C,B30,'2-3. Travel Costs&Costs of Stay'!M:M) -> 0 | I30: =SUMIF('4. Equipment Costs'!C:C,B30,'4. Equipment Costs'!H:H) -> 0 | J30: =SUMIF('5. Subcontracting Costs'!C:C,B30,'5. Subcontracting Costs'!H:H) -> 0 | K30: 0
B31: P6 | F31: =SUMIF('1. Staff costs'!C:C,B31,'1. Staff costs'!S:S) -> 0 | G31: =SUMIF('2-3. Travel Costs&Costs of Stay'!C:C,B31,'2-3. Travel Costs&Costs of Stay'!L:L) -> 0 | H31: =SUMIF('2-3. Travel Costs&Costs of Stay'!C:C,B31,'2-3. Travel Costs&Costs of Stay'!M:M) -> 0 | I31: =SUMIF('4. Equipment Costs'!C:C,B31,'4. Equipment Costs'!H:H) -> 0 | J31: =SUMIF('5. Subcontracting Costs'!C:C,B31,'5. Subcontracting Costs'!H:H) -> 0 | K31: 0
B32: P7 | F32: =SUMIF('1. Staff costs'!C:C,B32,'1. Staff costs'!S:S) -> 0 | G32: =SUMIF('2-3. Travel Costs&Costs of Stay'!C:C,B32,'2-3. Travel Costs&Costs of Stay'!L:L) -> 0 | H32: =SUMIF('2-3. Travel Costs&Costs of Stay'!C:C,B32,'2-3. Travel Costs&Costs of Stay'!M:M) -> 0 | I32: =SUMIF('4. Equipment Costs'!C:C,B32,'4. Equipment Costs'!H:H) -> 0 | J32: =SUMIF('5. Subcontracting Costs'!C:C,B32,'5. Subcontracting Costs'!H:H) -> 0 | K32: 0
B33: P8 | F33: =SUMIF('1. Staff costs'!C:C,B33,'1. Staff costs'!S:S) -> 0 | G33: =SUMIF('2-3. Travel Costs&Costs of Stay'!C:C,B33,'2-3. Travel Costs&Costs of Stay'!L:L) -> 0 | H33: =SUMIF('2-3. Travel Costs&Costs of Stay'!C:C,B33,'2-3. Travel Costs&Costs of Stay'!M:M) -> 0 | I33: =SUMIF('4. Equipment Costs'!C:C,B33,'4. Equipment Costs'!H:H) -> 0 | J33: =SUMIF('5. Subcontracting Costs'!C:C,B33,'5. Subcontracting Costs'!H:H) -> 0 | K33: 0
B34: P9 | F34: =SUMIF('1. Staff costs'!C:C,B34,'1. Staff costs'!S:S) -> 0 | G34: =SUMIF('2-3. Travel Costs&Costs of Stay'!C:C,B34,'2-3. Travel Costs&Costs of Stay'!L:L) -> 0 | H34: =SUMIF('2-3. Travel Costs&Costs of Stay'!C:C,B34,'2-3. Travel Costs&Costs of Stay'!M:M) -> 0 | I34: =SUMIF('4. Equipment Costs'!C:C,B34,'4. Equipment Costs'!H:H) -> 0 | J34: =SUMIF('5. Subcontracting Costs'!C:C,B34,'5. Subcontracting Costs'!H:H) -> 0 | K34: 0
B35: P10 | F35: =SUMIF('1. Staff costs'!C:C,B35,'1. Staff costs'!S:S) -> 0 | G35: =SUMIF('2-3. Travel Costs&Costs of Stay'!C:C,B35,'2-3. Travel Costs&Costs of Stay'!L:L) -> 0 | H35: =SUMIF('2-3. Travel Costs&Costs of Stay'!C:C,B35,'2-3. Travel Costs&Costs of Stay'!M:M) -> 0 | I35: =SUMIF('4. Equipment Costs'!C:C,B35,'4. Equipment Costs'!H:H) -> 0 | J35: =SUMIF('5. Subcontracting Costs'!C:C,B35,'5. Subcontracting Costs'!H:H) -> 0 | K35: 0
B36: P11 | F36: =SUMIF('1. Staff costs'!C:C,B36,'1. Staff costs'!S:S) -> 0 | G36: =SUMIF('2-3. Travel Costs&Costs of Stay'!C:C,B36,'2-3. Travel Costs&Costs of Stay'!L:L) -> 0 | H36: =SUMIF('2-3. Travel Costs&Costs of Stay'!C:C,B36,'2-3. Travel Costs&Costs of Stay'!M:M) -> 0 | I36: =SUMIF('4. Equipment Costs'!C:C,B36,'4. Equipment Costs'!H:H) -> 0 | J36: =SUMIF('5. Subcontracting Costs'!C:C,B36,'5. Subcontracting Costs'!H:H) -> 0 | K36: 0
B37: P12 | F37: =SUMIF('1. Staff costs'!C:C,B37,'1. Staff costs'!S:S) -> 0 | G37: =SUMIF('2-3. Travel Costs&Costs of Stay'!C:C,B37,'2-3. Travel Costs&Costs of Stay'!L:L) -> 0 | H37: =SUMIF('2-3. Travel Costs&Costs of Stay'!C:C,B37,'2-3. Travel Costs&Costs of Stay'!M:M) -> 0 | I37: =SUMIF('4. Equipment Costs'!C:C,B37,'4. Equipment Costs'!H:H) -> 0 | J37: =SUMIF('5. Subcontracting Costs'!C:C,B37,'5. Subcontracting Costs'!H:H) -> 0 | K37: 0
B38: P13 | F38: =SUMIF('1. Staff costs'!C:C,B38,'1. Staff costs'!S:S) -> 0 | G38: =SUMIF('2-3. Travel Costs&Costs of Stay'!C:C,B38,'2-3. Travel Costs&Costs of Stay'!L:L) -> 0 | H38: =SUMIF('2-3. Travel Costs&Costs of Stay'!C:C,B38,'2-3. Travel Costs&Costs of Stay'!M:M) -> 0 | I38: =SUMIF('4. Equipment Costs'!C:C,B38,'4. Equipment Costs'!H:H) -> 0 | J38: =SUMIF('5. Subcontracting Costs'!C:C,B38,'5. Subcontracting Costs'!H:H) -> 0 | K38: 0
B39: P14 | F39: =SUMIF('1. Staff costs'!C:C,B39,'1. Staff costs'!S:S) -> 0 | G39: =SUMIF('2-3. Travel Costs&Costs of Stay'!C:C,B39,'2-3. Travel Costs&Costs of Stay'!L:L) -> 0 | H39: =SUMIF('2-3. Travel Costs&Costs of Stay'!C:C,B39,'2-3. Travel Costs&Costs of Stay'!M:M) -> 0 | I39: =SUMIF('4. Equipment Costs'!C:C,B39,'4. Equipment Costs'!H:H) -> 0 | J39: =SUMIF('5. Subcontracting Costs'!C:C,B39,'5. Subcontracting Costs'!H:H) -> 0 | K39: 0
B40: P15 | F40: =SUMIF('1. Staff costs'!C:C,B40,'1. Staff costs'!S:S) -> 0 | G40: =SUMIF('2-3. Travel Costs&Costs of Stay'!C:C,B40,'2-3. Travel Costs&Costs of Stay'!L:L) -> 0 | H40: =SUMIF('2-3. Travel Costs&Costs of Stay'!C:C,B40,'2-3. Travel Costs&Costs of Stay'!M:M) -> 0 | I40: =SUMIF('4. Equipment Costs'!C:C,B40,'4. Equipment Costs'!H:H) -> 0 | J40: =SUMIF('5. Subcontracting Costs'!C:C,B40,'5. Subcontracting Costs'!H:H) -> 0 | K40: 0
B41: P16 | F41: =SUMIF('1. Staff costs'!C:C,B41,'1. Staff costs'!S:S) -> 0 | G41: =SUMIF('2-3. Travel Costs&Costs of Stay'!C:C,B41,'2-3. Travel Costs&Costs of Stay'!L:L) -> 0 | H41: =SUMIF('2-3. Travel Costs&Costs of Stay'!C:C,B41,'2-3. Travel Costs&Costs of Stay'!M:M) -> 0 | I41: =SUMIF('4. Equipment Costs'!C:C,B41,'4. Equipment Costs'!H:H) -> 0 | J41: =SUMIF('5. Subcontracting Costs'!C:C,B41,'5. Subcontracting Costs'!H:H) -> 0 | K41: 0
B42: P17 | F42: =SUMIF('1. Staff costs'!C:C,B42,'1. Staff costs'!S:S) -> 0 | G42: =SUMIF('2-3. Travel Costs&Costs of Stay'!C:C,B42,'2-3. Travel Costs&Costs of Stay'!L:L) -> 0 | H42: =SUMIF('2-3. Travel Costs&Costs of Stay'!C:C,B42,'2-3. Travel Costs&Costs of Stay'!M:M) -> 0 | I42: =SUMIF('4. Equipment Costs'!C:C,B42,'4. Equipment Costs'!H:H) -> 0 | J42: =SUMIF('5. Subcontracting Costs'!C:C,B42,'5. Subcontracting Costs'!H:H) -> 0 | K42: 0
B43: P18 | F43: =SUMIF('1. Staff costs'!C:C,B43,'1. Staff costs'!S:S) -> 0 | G43: =SUMIF('2-3. Travel Costs&Costs of Stay'!C:C,B43,'2-3. Travel Costs&Costs of Stay'!L:L) -> 0 | H43: =SUMIF('2-3. Travel Costs&Costs of Stay'!C:C,B43,'2-3. Travel Costs&Costs of Stay'!M:M) -> 0 | I43: =SUMIF('4. Equipment Costs'!C:C,B43,'4. Equipment Costs'!H:H) -> 0 | J43: =SUMIF('5. Subcontracting Costs'!C:C,B43,'5. Subcontracting Costs'!H:H) -> 0 | K43: 0
B44: P19 | F44: =SUMIF('1. Staff costs'!C:C,B44,'1. Staff costs'!S:S) -> 0 | G44: =SUMIF('2-3. Travel Costs&Costs of Stay'!C:C,B44,'2-3. Travel Costs&Costs of Stay'!L:L) -> 0 | H44: =SUMIF('2-3. Travel Costs&Costs of Stay'!C:C,B44,'2-3. Travel Costs&Costs of Stay'!M:M) -> 0 | I44: =SUMIF('4. Equipment Costs'!C:C,B44,'4. Equipment Costs'!H:H) -> 0 | J44: =SUMIF('5. Subcontracting Costs'!C:C,B44,'5. Subcontracting Costs'!H:H) -> 0 | K44: 0
B45: P20 | F45: =SUMIF('1. Staff costs'!C:C,B45,'1. Staff costs'!S:S) -> 0 | G45: =SUMIF('2-3. Travel Costs&Costs of Stay'!C:C,B45,'2-3. Travel Costs&Costs of Stay'!L:L) -> 0 | H45: =SUMIF('2-3. Travel Costs&Costs of Stay'!C:C,B45,'2-3. Travel Costs&Costs of Stay'!M:M) -> 0 | I45: =SUMIF('4. Equipment Costs'!C:C,B45,'4. Equipment Costs'!H:H) -> 0 | J45: =SUMIF('5. Subcontracting Costs'!C:C,B45,'5. Subcontracting Costs'!H:H) -> 0 | K45: 0
B46: P21 | F46: =SUMIF('1. Staff costs'!C:C,B46,'1. Staff costs'!S:S) -> 0 | G46: =SUMIF('2-3. Travel Costs&Costs of Stay'!C:C,B46,'2-3. Travel Costs&Costs of Stay'!L:L) -> 0 | H46: =SUMIF('2-3. Travel Costs&Costs of Stay'!C:C,B46,'2-3. Travel Costs&Costs of Stay'!M:M) -> 0 | I46: =SUMIF('4. Equipment Costs'!C:C,B46,'4. Equipment Costs'!H:H) -> 0 | J46: =SUMIF('5. Subcontracting Costs'!C:C,B46,'5. Subcontracting Costs'!H:H) -> 0 | K46: 0
B47: P22 | F47: =SUMIF('1. Staff costs'!C:C,B47,'1. Staff costs'!S:S) -> 0 | G47: =SUMIF('2-3. Travel Costs&Costs of Stay'!C:C,B47,'2-3. Travel Costs&Costs of Stay'!L:L) -> 0 | H47: =SUMIF('2-3. Travel Costs&Costs of Stay'!C:C,B47,'2-3. Travel Costs&Costs of Stay'!M:M) -> 0 | I47: =SUMIF('4. Equipment Costs'!C:C,B47,'4. Equipment Costs'!H:H) -> 0 | J47: =SUMIF('5. Subcontracting Costs'!C:C,B47,'5. Subcontracting Costs'!H:H) -> 0 | K47: 0
B48: P23 | F48: =SUMIF('1. Staff costs'!C:C,B48,'1. Staff costs'!S:S) -> 0 | G48: =SUMIF('2-3. Travel Costs&Costs of Stay'!C:C,B48,'2-3. Travel Costs&Costs of Stay'!L:L) -> 0 | H48: =SUMIF('2-3. Travel Costs&Costs of Stay'!C:C,B48,'2-3. Travel Costs&Costs of Stay'!M:M) -> 0 | I48: =SUMIF('4. Equipment Costs'!C:C,B48,'4. Equipment Costs'!H:H) -> 0 | J48: =SUMIF('5. Subcontracting Costs'!C:C,B48,'5. Subcontracting Costs'!H:H) -> 0 | K48: 0
B49: P24 | F49: =SUMIF('1. Staff costs'!C:C,B49,'1. Staff costs'!S:S) -> 0 | G49: =SUMIF('2-3. Travel Costs&Costs of Stay'!C:C,B49,'2-3. Travel Costs&Costs of Stay'!L:L) -> 0 | H49: =SUMIF('2-3. Travel Costs&Costs of Stay'!C:C,B49,'2-3. Travel Costs&Costs of Stay'!M:M) -> 0 | I49: =SUMIF('4. Equipment Costs'!C:C,B49,'4. Equipment Costs'!H:H) -> 0 | J49: =SUMIF('5. Subcontracting Costs'!C:C,B49,'5. Subcontracting Costs'!H:H) -> 0 | K49: 0
B50: P25 | F50: =SUMIF('1. Staff costs'!C:C,B50,'1. Staff costs'!S:S) -> 0 | G50: =SUMIF('2-3. Travel Costs&Costs of Stay'!C:C,B50,'2-3. Travel Costs&Costs of Stay'!L:L) -> 0 | H50: =SUMIF('2-3. Travel Costs&Costs of Stay'!C:C,B50,'2-3. Travel Costs&Costs of Stay'!M:M) -> 0 | I50: =SUMIF('4. Equipment Costs'!C:C,B50,'4. Equipment Costs'!H:H) -> 0 | J50: =SUMIF('5. Subcontracting Costs'!C:C,B50,'5. Subcontracting Costs'!H:H) -> 0 | K50: 0
B51: P26 | F51: =SUMIF('1. Staff costs'!C:C,B51,'1. Staff costs'!S:S) -> 0 | G51: =SUMIF('2-3. Travel Costs&Costs of Stay'!C:C,B51,'2-3. Travel Costs&Costs of Stay'!L:L) -> 0 | H51: =SUMIF('2-3. Travel Costs&Costs of Stay'!C:C,B51,'2-3. Travel Costs&Costs of Stay'!M:M) -> 0 | I51: =SUMIF('4. Equipment Costs'!C:C,B51,'4. Equipment Costs'!H:H) -> 0 | J51: =SUMIF('5. Subcontracting Costs'!C:C,B51,'5. Subcontracting Costs'!H:H) -> 0 | K51: 0
B52: P27 | F52: =SUMIF('1. Staff costs'!C:C,B52,'1. Staff costs'!S:S) -> 0 | G52: =SUMIF('2-3. Travel Costs&Costs of Stay'!C:C,B52,'2-3. Travel Costs&Costs of Stay'!L:L) -> 0 | H52: =SUMIF('2-3. Travel Costs&Costs of Stay'!C:C,B52,'2-3. Travel Costs&Costs of Stay'!M:M) -> 0 | I52: =SUMIF('4. Equipment Costs'!C:C,B52,'4. Equipment Costs'!H:H) -> 0 | J52: =SUMIF('5. Subcontracting Costs'!C:C,B52,'5. Subcontracting Costs'!H:H) -> 0 | K52: 0
B53: P28 | F53: =SUMIF('1. Staff costs'!C:C,B53,'1. Staff costs'!S:S) -> 0 | G53: =SUMIF('2-3. Travel Costs&Costs of Stay'!C:C,B53,'2-3. Travel Costs&Costs of Stay'!L:L) -> 0 | H53: =SUMIF('2-3. Travel Costs&Costs of Stay'!C:C,B53,'2-3. Travel Costs&Costs of Stay'!M:M) -> 0 | I53: =SUMIF('4. Equipment Costs'!C:C,B53,'4. Equipment Costs'!H:H) -> 0 | J53: =SUMIF('5. Subcontracting Costs'!C:C,B53,'5. Subcontracting Costs'!H:H) -> 0 | K53: 0
B54: P29 | F54: =SUMIF('1. Staff costs'!C:C,B54,'1. Staff costs'!S:S) -> 0 | G54: =SUMIF('2-3. Travel Costs&Costs of Stay'!C:C,B54,'2-3. Travel Costs&Costs of Stay'!L:L) -> 0 | H54: =SUMIF('2-3. Travel Costs&Costs of Stay'!C:C,B54,'2-3. Travel Costs&Costs of Stay'!M:M) -> 0 | I54: =SUMIF('4. Equipment Costs'!C:C,B54,'4. Equipment Costs'!H:H) -> 0 | J54: =SUMIF('5. Subcontracting Costs'!C:C,B54,'5. Subcontracting Costs'!H:H) -> 0 | K54: 0
B55: P30 | F55: =SUMIF('1. Staff costs'!C:C,B55,'1. Staff costs'!S:S) -> 0 | G55: =SUMIF('2-3. Travel Costs&Costs of Stay'!C:C,B55,'2-3. Travel Costs&Costs of Stay'!L:L) -> 0 | H55: =SUMIF('2-3. Travel Costs&Costs of Stay'!C:C,B55,'2-3. Travel Costs&Costs of Stay'!M:M) -> 0 | I55: =SUMIF('4. Equipment Costs'!C:C,B55,'4. Equipment Costs'!H:H) -> 0 | J55: =SUMIF('5. Subcontracting Costs'!C:C,B55,'5. Subcontracting Costs'!H:H) -> 0 | K55: 0
B56: P31 | F56: =SUMIF('1. Staff costs'!C:C,B56,'1. Staff costs'!S:S) -> 0 | G56: =SUMIF('2-3. Travel Costs&Costs of Stay'!C:C,B56,'2-3. Travel Costs&Costs of Stay'!L:L) -> 0 | H56: =SUMIF('2-3. Travel Costs&Costs of Stay'!C:C,B56,'2-3. Travel Costs&Costs of Stay'!M:M) -> 0 | I56: =SUMIF('4. Equipment Costs'!C:C,B56,'4. Equipment Costs'!H:H) -> 0 | J56: =SUMIF('5. Subcontracting Costs'!C:C,B56,'5. Subcontracting Costs'!H:H) -> 0 | K56: 0
B57: P32 | F57: =SUMIF('1. Staff costs'!C:C,B57,'1. Staff costs'!S:S) -> 0 | G57: =SUMIF('2-3. Travel Costs&Costs of Stay'!C:C,B57,'2-3. Travel Costs&Costs of Stay'!L:L) -> 0 | H57: =SUMIF('2-3. Travel Costs&Costs of Stay'!C:C,B57,'2-3. Travel Costs&Costs of Stay'!M:M) -> 0 | I57: =SUMIF('4. Equipment Costs'!C:C,B57,'4. Equipment Costs'!H:H) -> 0 | J57: =SUMIF('5. Subcontracting Costs'!C:C,B57,'5. Subcontracting Costs'!H:H) -> 0 | K57: 0
B58: P33 | F58: =SUMIF('1. Staff costs'!C:C,B58,'1. Staff costs'!S:S) -> 0 | G58: =SUMIF('2-3. Travel Costs&Costs of Stay'!C:C,B58,'2-3. Travel Costs&Costs of Stay'!L:L) -> 0 | H58: =SUMIF('2-3. Travel Costs&Costs of Stay'!C:C,B58,'2-3. Travel Costs&Costs of Stay'!M:M) -> 0 | I58: =SUMIF('4. Equipment Costs'!C:C,B58,'4. Equipment Costs'!H:H) -> 0 | J58: =SUMIF('5. Subcontracting Costs'!C:C,B58,'5. Subcontracting Costs'!H:H) -> 0 | K58: =IF(OR(C58="",D58=""),0,SUM(F58:J58)) -> 0
B59: P34 | F59: =SUMIF('1. Staff costs'!C:C,B59,'1. Staff costs'!S:S) -> 0 | G59: =SUMIF('2-3. Travel Costs&Costs of Stay'!C:C,B59,'2-3. Travel Costs&Costs of Stay'!L:L) -> 0 | H59: =SUMIF('2-3. Travel Costs&Costs of Stay'!C:C,B59,'2-3. Travel Costs&Costs of Stay'!M:M) -> 0 | I59: =SUMIF('4. Equipment Costs'!C:C,B59,'4. Equipment Costs'!H:H) -> 0 | J59: =SUMIF('5. Subcontracting Costs'!C:C,B59,'5. Subcontracting Costs'!H:H) -> 0 | K59: 0
B60: P35 | F60: =SUMIF('1. Staff costs'!C:C,B60,'1. Staff costs'!S:S) -> 0 | G60: =SUMIF('2-3. Travel Costs&Costs of Stay'!C:C,B60,'2-3. Travel Costs&Costs of Stay'!L:L) -> 0 | H60: =SUMIF('2-3. Travel Costs&Costs of Stay'!C:C,B60,'2-3. Travel Costs&Costs of Stay'!M:M) -> 0 | I60: =SUMIF('4. Equipment Costs'!C:C,B60,'4. Equipment Costs'!H:H) -> 0 | J60: =SUMIF('5. Subcontracting Costs'!C:C,B60,'5. Subcontracting Costs'!H:H) -> 0 | K60: 0
B61: P36 | F61: =SUMIF('1. Staff costs'!C:C,B61,'1. Staff costs'!S:S) -> 0 | G61: =SUMIF('2-3. Travel Costs&Costs of Stay'!C:C,B61,'2-3. Travel Costs&Costs of Stay'!L:L) -> 0 | H61: =SUMIF('2-3. Travel Costs&Costs of Stay'!C:C,B61,'2-3. Travel Costs&Costs of Stay'!M:M) -> 0 | I61: =SUMIF('4. Equipment Costs'!C:C,B61,'4. Equipment Costs'!H:H) -> 0 | J61: =SUMIF('5. Subcontracting Costs'!C:C,B61,'5. Subcontracting Costs'!H:H) -> 0 | K61: 0
B62: P37 | F62: =SUMIF('1. Staff costs'!C:C,B62,'1. Staff costs'!S:S) -> 0 | G62: =SUMIF('2-3. Travel Costs&Costs of Stay'!C:C,B62,'2-3. Travel Costs&Costs of Stay'!L:L) -> 0 | H62: =SUMIF('2-3. Travel Costs&Costs of Stay'!C:C,B62,'2-3. Travel Costs&Costs of Stay'!M:M) -> 0 | I62: =SUMIF('4. Equipment Costs'!C:C,B62,'4. Equipment Costs'!H:H) -> 0 | J62: =SUMIF('5. Subcontracting Costs'!C:C,B62,'5. Subcontracting Costs'!H:H) -> 0 | K62: 0
B63: P38 | F63: =SUMIF('1. Staff costs'!C:C,B63,'1. Staff costs'!S:S) -> 0 | G63: =SUMIF('2-3. Travel Costs&Costs of Stay'!C:C,B63,'2-3. Travel Costs&Costs of Stay'!L:L) -> 0 | H63: =SUMIF('2-3. Travel Costs&Costs of Stay'!C:C,B63,'2-3. Travel Costs&Costs of Stay'!M:M) -> 0 | I63: =SUMIF('4. Equipment Costs'!C:C,B63,'4. Equipment Costs'!H:H) -> 0 | J63: =SUMIF('5. Subcontracting Costs'!C:C,B63,'5. Subcontracting Costs'!H:H) -> 0 | K63: 0
B64: P39 | F64: =SUMIF('1. Staff costs'!C:C,B64,'1. Staff costs'!S:S) -> 0 | G64: =SUMIF('2-3. Travel Costs&Costs of Stay'!C:C,B64,'2-3. Travel Costs&Costs of Stay'!L:L) -> 0 | H64: =SUMIF('2-3. Travel Costs&Costs of Stay'!C:C,B64,'2-3. Travel Costs&Costs of Stay'!M:M) -> 0 | I64: =SUMIF('4. Equipment Costs'!C:C,B64,'4. Equipment Costs'!H:H) -> 0 | J64: =SUMIF('5. Subcontracting Costs'!C:C,B64,'5. Subcontracting Costs'!H:H) -> 0 | K64: 0
B65: P40 | F65: =SUMIF('1. Staff costs'!C:C,B65,'1. Staff costs'!S:S) -> 0 | G65: =SUMIF('2-3. Travel Costs&Costs of Stay'!C:C,B65,'2-3. Travel Costs&Costs of Stay'!L:L) -> 0 | H65: =SUMIF('2-3. Travel Costs&Costs of Stay'!C:C,B65,'2-3. Travel Costs&Costs of Stay'!M:M) -> 0 | I65: =SUMIF('4. Equipment Costs'!C:C,B65,'4. Equipment Costs'!H:H) -> 0 | J65: =SUMIF('5. Subcontracting Costs'!C:C,B65,'5. Subcontracting Costs'!H:H) -> 0 | K65: 0
B66: P41 | F66: =SUMIF('1. Staff costs'!C:C,B66,'1. Staff costs'!S:S) -> 0 | G66: =SUMIF('2-3. Travel Costs&Costs of Stay'!C:C,B66,'2-3. Travel Costs&Costs of Stay'!L:L) -> 0 | H66: =SUMIF('2-3. Travel Costs&Costs of Stay'!C:C,B66,'2-3. Travel Costs&Costs of Stay'!M:M) -> 0 | I66: =SUMIF('4. Equipment Costs'!C:C,B66,'4. Equipment Costs'!H:H) -> 0 | J66: =SUMIF('5. Subcontracting Costs'!C:C,B66,'5. Subcontracting Costs'!H:H) -> 0 | K66: 0
B67: P42 | F67: =SUMIF('1. Staff costs'!C:C,B67,'1. Staff costs'!S:S) -> 0 | G67: =SUMIF('2-3. Travel Costs&Costs of Stay'!C:C,B67,'2-3. Travel Costs&Costs of Stay'!L:L) -> 0 | H67: =SUMIF('2-3. Travel Costs&Costs of Stay'!C:C,B67,'2-3. Travel Costs&Costs of Stay'!M:M) -> 0 | I67: =SUMIF('4. Equipment Costs'!C:C,B67,'4. Equipment Costs'!H:H) -> 0 | J67: =SUMIF('5. Subcontracting Costs'!C:C,B67,'5. Subcontracting Costs'!H:H) -> 0 | K67: 0
B68: P43 | F68: =SUMIF('1. Staff costs'!C:C,B68,'1. Staff costs'!S:S) -> 0 | G68: =SUMIF('2-3. Travel Costs&Costs of Stay'!C:C,B68,'2-3. Travel Costs&Costs of Stay'!L:L) -> 0 | H68: =SUMIF('2-3. Travel Costs&Costs of Stay'!C:C,B68,'2-3. Travel Costs&Costs of Stay'!M:M) -> 0 | I68: =SUMIF('4. Equipment Costs'!C:C,B68,'4. Equipment Costs'!H:H) -> 0 | J68: =SUMIF('5. Subcontracting Costs'!C:C,B68,'5. Subcontracting Costs'!H:H) -> 0 | K68: 0
B69: P44 | F69: =SUMIF('1. Staff costs'!C:C,B69,'1. Staff costs'!S:S) -> 0 | G69: =SUMIF('2-3. Travel Costs&Costs of Stay'!C:C,B69,'2-3. Travel Costs&Costs of Stay'!L:L) -> 0 | H69: =SUMIF('2-3. Travel Costs&Costs of Stay'!C:C,B69,'2-3. Travel Costs&Costs of Stay'!M:M) -> 0 | I69: =SUMIF('4. Equipment Costs'!C:C,B69,'4. Equipment Costs'!H:H) -> 0 | J69: =SUMIF('5. Subcontracting Costs'!C:C,B69,'5. Subcontracting Costs'!H:H) -> 0 | K69: 0
B70: P45 | F70: =SUMIF('1. Staff costs'!C:C,B70,'1. Staff costs'!S:S) -> 0 | G70: =SUMIF('2-3. Travel Costs&Costs of Stay'!C:C,B70,'2-3. Travel Costs&Costs of Stay'!L:L) -> 0 | H70: =SUMIF('2-3. Travel Costs&Costs of Stay'!C:C,B70,'2-3. Travel Costs&Costs of Stay'!M:M) -> 0 | I70: =SUMIF('4. Equipment Costs'!C:C,B70,'4. Equipment Costs'!H:H) -> 0 | J70: =SUMIF('5. Subcontracting Costs'!C:C,B70,'5. Subcontracting Costs'!H:H) -> 0 | K70: 0
B71: P46 | F71: =SUMIF('1. Staff costs'!C:C,B71,'1. Staff costs'!S:S) -> 0 | G71: =SUMIF('2-3. Travel Costs&Costs of Stay'!C:C,B71,'2-3. Travel Costs&Costs of Stay'!L:L) -> 0 | H71: =SUMIF('2-3. Travel Costs&Costs of Stay'!C:C,B71,'2-3. Travel Costs&Costs of Stay'!M:M) -> 0 | I71: =SUMIF('4. Equipment Costs'!C:C,B71,'4. Equipment Costs'!H:H) -> 0 | J71: =SUMIF('5. Subcontracting Costs'!C:C,B71,'5. Subcontracting Costs'!H:H) -> 0 | K71: 0
B72: P47 | F72: =SUMIF('1. Staff costs'!C:C,B72,'1. Staff costs'!S:S) -> 0 | G72: =SUMIF('2-3. Travel Costs&Costs of Stay'!C:C,B72,'2-3. Travel Costs&Costs of Stay'!L:L) -> 0 | H72: =SUMIF('2-3. Travel Costs&Costs of Stay'!C:C,B72,'2-3. Travel Costs&Costs of Stay'!M:M) -> 0 | I72: =SUMIF('4. Equipment Costs'!C:C,B72,'4. Equipment Costs'!H:H) -> 0 | J72: =SUMIF('5. Subcontracting Costs'!C:C,B72,'5. Subcontracting Costs'!H:H) -> 0 | K72: 0
B73: P48 | F73: =SUMIF('1. Staff costs'!C:C,B73,'1. Staff costs'!S:S) -> 0 | G73: =SUMIF('2-3. Travel Costs&Costs of Stay'!C:C,B73,'2-3. Travel Costs&Costs of Stay'!L:L) -> 0 | H73: =SUMIF('2-3. Travel Costs&Costs of Stay'!C:C,B73,'2-3. Travel Costs&Costs of Stay'!M:M) -> 0 | I73: =SUMIF('4. Equipment Costs'!C:C,B73,'4. Equipment Costs'!H:H) -> 0 | J73: =SUMIF('5. Subcontracting Costs'!C:C,B73,'5. Subcontracting Costs'!H:H) -> 0 | K73: 0
B74: P49 | F74: =SUMIF('1. Staff costs'!C:C,B74,'1. Staff costs'!S:S) -> 0 | G74: =SUMIF('2-3. Travel Costs&Costs of Stay'!C:C,B74,'2-3. Travel Costs&Costs of Stay'!L:L) -> 0 | H74: =SUMIF('2-3. Travel Costs&Costs of Stay'!C:C,B74,'2-3. Travel Costs&Costs of Stay'!M:M) -> 0 | I74: =SUMIF('4. Equipment Costs'!C:C,B74,'4. Equipment Costs'!H:H) -> 0 | J74: =SUMIF('5. Subcontracting Costs'!C:C,B74,'5. Subcontracting Costs'!H:H) -> 0 | K74: 0
B75: P50 | F75: =SUMIF('1. Staff costs'!C:C,B75,'1. Staff costs'!S:S) -> 0 | G75: =SUMIF('2-3. Travel Costs&Costs of Stay'!C:C,B75,'2-3. Travel Costs&Costs of Stay'!L:L) -> 0 | H75: =SUMIF('2-3. Travel Costs&Costs of Stay'!C:C,B75,'2-3. Travel Costs&Costs of Stay'!M:M) -> 0 | I75: =SUMIF('4. Equipment Costs'!C:C,B75,'4. Equipment Costs'!H:H) -> 0 | J75: =SUMIF('5. Subcontracting Costs'!C:C,B75,'5. Subcontracting Costs'!H:H) -> 0 | K75: 0
B76: P51 | F76: =SUMIF('1. Staff costs'!C:C,B76,'1. Staff costs'!S:S) -> 0 | G76: =SUMIF('2-3. Travel Costs&Costs of Stay'!C:C,B76,'2-3. Travel Costs&Costs of Stay'!L:L) -> 0 | H76: =SUMIF('2-3. Travel Costs&Costs of Stay'!C:C,B76,'2-3. Travel Costs&Costs of Stay'!M:M) -> 0 | I76: =SUMIF('4. Equipment Costs'!C:C,B76,'4. Equipment Costs'!H:H) -> 0 | J76: =SUMIF('5. Subcontracting Costs'!C:C,B76,'5. Subcontracting Costs'!H:H) -> 0 | K76: 0
B77: P52 | F77: =SUMIF('1. Staff costs'!C:C,B77,'1. Staff costs'!S:S) -> 0 | G77: =SUMIF('2-3. Travel Costs&Costs of Stay'!C:C,B77,'2-3. Travel Costs&Costs of Stay'!L:L) -> 0 | H77: =SUMIF('2-3. Travel Costs&Costs of Stay'!C:C,B77,'2-3. Travel Costs&Costs of Stay'!M:M) -> 0 | I77: =SUMIF('4. Equipment Costs'!C:C,B77,'4. Equipment Costs'!H:H) -> 0 | J77: =SUMIF('5. Subcontracting Costs'!C:C,B77,'5. Subcontracting Costs'!H:H) -> 0 | K77: 0
B78: P53 | F78: =SUMIF('1. Staff costs'!C:C,B78,'1. Staff costs'!S:S) -> 0 | G78: =SUMIF('2-3. Travel Costs&Costs of Stay'!C:C,B78,'2-3. Travel Costs&Costs of Stay'!L:L) -> 0 | H78: =SUMIF('2-3. Travel Costs&Costs of Stay'!C:C,B78,'2-3. Travel Costs&Costs of Stay'!M:M) -> 0 | I78: =SUMIF('4. Equipment Costs'!C:C,B78,'4. Equipment Costs'!H:H) -> 0 | J78: =SUMIF('5. Subcontracting Costs'!C:C,B78,'5. Subcontracting Costs'!H:H) -> 0 | K78: 0
B79: P54 | F79: =SUMIF('1. Staff costs'!C:C,B79,'1. Staff costs'!S:S) -> 0 | G79: =SUMIF('2-3. Travel Costs&Costs of Stay'!C:C,B79,'2-3. Travel Costs&Costs of Stay'!L:L) -> 0 | H79: =SUMIF('2-3. Travel Costs&Costs of Stay'!C:C,B79,'2-3. Travel Costs&Costs of Stay'!M:M) -> 0 | I79: =SUMIF('4. Equipment Costs'!C:C,B79,'4. Equipment Costs'!H:H) -> 0 | J79: =SUMIF('5. Subcontracting Costs'!C:C,B79,'5. Subcontracting Costs'!H:H) -> 0 | K79: 0
B80: P55 | F80: =SUMIF('1. Staff costs'!C:C,B80,'1. Staff costs'!S:S) -> 0 | G80: =SUMIF('2-3. Travel Costs&Costs of Stay'!C:C,B80,'2-3. Travel Costs&Costs of Stay'!L:L) -> 0 | H80: =SUMIF('2-3. Travel Costs&Costs of Stay'!C:C,B80,'2-3. Travel Costs&Costs of Stay'!M:M) -> 0 | I80: =SUMIF('4. Equipment Costs'!C:C,B80,'4. Equipment Costs'!H:H) -> 0 | J80: =SUMIF('5. Subcontracting Costs'!C:C,B80,'5. Subcontracting Costs'!H:H) -> 0 | K80: 0

Sheet Sheet Validation (hidden)
A1: Data Sheet Validation
A2: 1. Staff Costs | B2: =IF(COUNTIF('1. Staff costs'!T:T,"Error")<=1,"OK","Please check data in Tab '"&A2&"'") -> Please check data in Tab '1. Staff Costs'
A3: 2-3. Travel Costs&Costs of Stay | B3: =IF(COUNTIF('2-3. Travel Costs&Costs of Stay'!O:O,"Error")<=1,"OK","Please check data in Tab '"&A3&"'") -> Please check data in Tab '2-3. Travel Costs&Costs of Stay'
A4: 4. Equipment Costs | B4: =IF(COUNTIF('4. Equipment Costs'!I:T,"Error")<=1,"OK","Please check data in Tab '"&A4&"'") -> Please check data in Tab '4. Equipment Costs'
A5: 5. Subcontracting Costs | B5: =IF(COUNTIF('5. Subcontracting Costs'!I:I,"Error")<=1,"OK","Please check data in Tab '"&A5&"'") -> Please check data in Tab '5. Subcontracting Costs'
A6: Co-financing | B6: =IF(COUNTIF('Co-financing'!J:J,"Error")<=1,"OK","Please check data in Tab '"&A6&"'") -> Please check data in Tab 'Co-financing'
A7: Exceptional Travel Costs (EUR) | B7: =IF('2-3. Travel Costs&Costs of Stay'!K4="","OK","Please check Exceptional Travel Costs (EUR) in Tab '"&A3&"'") -> OK

Sheet 1. Staff costs
B2: 1. Staff Costs
D4: Total (EUR) | E4: Number of Days
B5: Manager | D5: =SUM(H:H) -> 0 | E5: =SUMIF(T:T,"<>Error",F:F) -> 0
B6: Teacher/Trainer/Researcher | D6: =SUM(K:K) -> 0 | E6: =SUMIF(T:T,"<>Error",I:I) -> 0
B7: Technical Staff | D7: =SUM(N:N) -> 0 | E7: =SUMIF(T:T,"<>Error",L:L) -> 0
B8: Administrative Staff | D8: =SUM(Q:Q) -> 0 | E8: =SUMIF(T:T,"<>Error",O:O) -> 0
D9: =SUM(D5:D8) -> 0 | E9: =SUM(E5:E8) -> 0
B11: Work Package | C11: Partner N° | D11: Name of Partner (to encode in overview sheet) | E11: Country (to encode in overview sheet) | F11: ='Unit Costs & Funding Rule'!D7 -> Manager | I11: ='Unit Costs & Funding Rule'!E7 -> Teacher/Trainer/Researcher | L11: ='Unit Costs & Funding Rule'!F7 -> Technical Staff | O11: ='Unit Costs & Funding Rule'!G7 -> Administrative Staff | R11: Total Number of Days | S11: Total (EUR) | T11: Check Data Encoding
F12: Number of days | G12: Unit cost per day | H12: Total (EUR) | I12: Number of days | J12: Unit cost per day | K12: Total (EUR) | L12: Number of days | M12: Unit cost per day | N12: Total (EUR) | O12: Number of days | P12: Unit cost per day | Q12: Total (EUR)
D13: =IFERROR(IF(VLOOKUP(C13,PartnerN°Ref,2,FALSE)=0,"",VLOOKUP(C13,PartnerN°Ref,2,FALSE)),"") ->  | E13: =IFERROR(IF(OR(VLOOKUP(C13,PartnerN°Ref,4,FALSE)="Country not found",VLOOKUP(C13,PartnerN°Ref,3,FALSE)=0),"",VLOOKUP(C13,PartnerN°Ref,3,FALSE)),"") ->  | F13: 0 | G13: =IF(T13="Error",0,INDEX(Rates,MATCH(E13,CountryALL,0),MATCH($F$11,Category,0))) -> 0 | H13: =IFERROR(IF(T13="Error",0,ROUND(F13*G13,2)),0) -> 0 | I13: 0 | J13: =IF(T13="Error",0,INDEX(Rates,MATCH(E13,CountryALL,0),MATCH($I$11,Category,0))) -> 0 | K13: =IFERROR(IF(T13="Error",0,ROUND(I13*J13,2)),0) -> 0 | L13: 0 | M13: =IF(T13="Error",0,INDEX(Rates,MATCH(E13,CountryALL,0),MATCH($L$11,Category,0))) -> 0 | N13: =IFERROR(IF(T13="Error",0,ROUND(L13*M13,2)),0) -> 0 | O13: 0 | P13: =IF(T13="Error",0,INDEX(Rates,MATCH(E13,CountryALL,0),MATCH($O$11,Category,0))) -> 0 | Q13: =IFERROR(IF(T13="Error",0,ROUND(O13*P13,2)),0) -> 0 | R13: =IF(T13="Error",0,F13+I13+L13+O13) -> 0 | S13: =IF(T13="Error",0,H13+K13+N13+Q13) -> 0 | T13: =IF(OR(COUNTIF(WorkPackage,B13)=0,COUNTIF(PartnerN°,C13)=0,D13="",COUNTIF(CountryALL,E13)=0,ISNUMBER(F13)=FALSE,ISNUMBER(I13)=FALSE,ISNUMBER(L13)=FALSE,ISNUMBER(O13)=FALSE,IF(ISNUMBER(F13)=TRUE,F13=INT(F13*10)/10=FALSE),IF(ISNUMBER(I13)=TRUE,I13=INT(I13*10)/10=FALSE),IF(ISNUMBER(L13)=TRUE,L13=INT(L13*10)/10=FALSE),IF(ISNUMBER(O13)=TRUE,O13=INT(O13*10)/10=FALSE)),"Error","") -> Error
F14: 0 | G14: 0 | H14: 0 | I14: 0 | J14: 0 | K14: 0 | L14: 0 | M14: 0 | N14: 0 | O14: 0 | P14: 0 | Q14: 0 | R14: 0 | S14: 0 | T14: Error

Sheet 2-3. Travel Costs&Costs of Stay
B2: 2-3. Travel Costs & Costs of Stay
B4: Travel Costs Student (EUR) | D4: =SUMIF(G:G,"Student",L:L) -> 0 | E4: =D4+D5 -> 0 | F4: =SUMIFS(H:H,G:G,"Student",O:O,"<>Error") -> 0 | H4: Exceptional Travel Costs (EUR) | K4: =IF(AND(D8=0,J4>0),"EXCEEDING 80% OF TOTAL TRAVEL COSTS",IFERROR(IF(J4/D8>0.8,"EXCEEDING 80% OF TOTAL TRAVEL COSTS",""),"")) -> 
B5: Costs of Stay Student (EUR) | D5: =SUMIF(G:G,"Student",M:M) -> 0
B6: Travel Costs Staff (EUR) | D6: =SUMIF(G:G,"Staff",L:L) -> 0 | E6: =D6+D7 -> 0 | F6: =SUMIFS(H:H,G:G,"Staff",O:O,"<>Error") -> 0 | H6: Exceptional Travel Costs Please encode here above the estimated amount for exceptional travel costs. Please note that this amount will be added to the amount of travel costs forectasted for the Partner n°1
B7: Costs of Stay Staff (EUR) | D7: =SUMIF(G:G,"Staff",M:M) -> 0 | H7: Please encode here above the estimated amount for exceptional travel costs. Please note that this amount will be added to the amount of travel costs of the Partner n°1.
B8: Total Travel Costs (EUR) | D8: =SUM(L:L) -> 0 | E8: =D8+D9 -> 0 | F8: =F4+F6 -> 0
B9: Total Costs of Stay (EUR) | D9: =SUM(M:M) -> 0
B11: Work Package | C11: Partner N° | D11: Name of Partner (to encode in overview sheet) | E11: Country (to encode in overview sheet) | F11: City of Departure | G11: Student/ Staff | H11: Number of Participants | I11: City of Destination | J11: Travel Distance | K11: Number of days (per participant) | L11: Travel Costs (EUR) | M11: Costs of Stay (EUR) | N11: Total (EUR) | O11: Check Data Encoding
D13: =IFERROR(IF(VLOOKUP(C13,PartnerN°Ref,2,FALSE)=0,"",VLOOKUP(C13,PartnerN°Ref,2,FALSE)),"") ->  | E13: =IFERROR(IF(OR(VLOOKUP(C13,PartnerN°Ref,4,FALSE)="Country not found",VLOOKUP(C13,PartnerN°Ref,3,FALSE)=0),"",VLOOKUP(C13,PartnerN°Ref,3,FALSE)),"") ->  | H13: 0 | K13: 0 | L13: =IF(O13="Error",0,ROUND(ROUND(H13,0)*(VLOOKUP(J13,TravelCosts,2,FALSE)),2)) -> 0 | M13: =IF(O13="Error",0,IF(AND(G13="Staff",K13>0,K13<15),(120*K13)*H13,IF(AND(G13="Staff",K13>14,K13<61),(1680+((K13-14)*70))*H13,IF(AND(G13="Staff",K13>60,K13<91),(4900+((K13-60)*50))*H13,IF(AND(G13="Student",K13>0,K13<15),(55*K13)*H13,IF(AND(G13="Student",K13>14,K13<91),(770+((K13-14)*40))*H13,0)))))) -> 0 | N13: =L13+M13 -> 0 | O13: =IF(OR(COUNTIF(WorkPackage,B13)=0,COUNTIF(PartnerN°,C13)=0,D13="",COUNTIF(CountryALL,E13)=0,F13="",COUNTIF(Category2,G13)=0,ISNUMBER(H13)=FALSE,H13<=0,I13="",COUNTIF(TravelBands,J13)=0,ISNUMBER(K13)=FALSE,OR(K13<0,K13>90),IF(ISNUMBER(H13)=TRUE,H13=INT(H13*1)/1=FALSE),IF(ISNUMBER(K13)=TRUE,K13=INT(K13*1)/1=FALSE)),"Error","") -> Error
H14: 0 | K14: 0 | L14: 0 | M14: 0 | N14: =L14+M14 -> 0 | O14: =IF(OR(COUNTIF(WorkPackage,B14)=0,COUNTIF(PartnerN°,C14)=0,D14="",COUNTIF(CountryALL,E14)=0,F14="",COUNTIF(Category2,G14)=0,ISNUMBER(H14)=FALSE,H14<=0,I14="",COUNTIF(TravelBands,J14)=0,ISNUMBER(K14)=FALSE,OR(K14<0,K14>90),IF(ISNUMBER(H14)=TRUE,H14=INT(H14*1)/1=FALSE),IF(ISNUMBER(K14)=TRUE,K14=INT(K14*1)/1=FALSE)),"Error","") -> Error

Sheet 4. Equipment Costs
B2: 4. Equipment Costs
B4: Total (EUR) | C4: =SUM(H:H) -> 0
B11: Work Package | C11: Partner N° | D11: Name of Partner (to encode in overview sheet) | E11: Country (to encode in overview sheet) | F11: Nature, type and specifications of the item | G11: Amount Excluding VAT (EUR) | H11: Total (EUR) | I11: Check Data Encoding
D13: =IFERROR(IF(VLOOKUP(C13,PartnerN°Ref,2,FALSE)=0,"",VLOOKUP(C13,PartnerN°Ref,2,FALSE)),"") ->  | E13: =IFERROR(IF(OR(VLOOKUP(C13,PartnerN°Ref,4,FALSE)="Country not found",VLOOKUP(C13,PartnerN°Ref,3,FALSE)=0),"",VLOOKUP(C13,PartnerN°Ref,3,FALSE)),"") ->  | G13: 0 | H13: =IF(I13="Error",0,ROUND(G13,2)) -> 0 | I13: =IF(OR(COUNTIF(WorkPackage,B13)=0,COUNTIF(PartnerN°,C13)=0,D13="",COUNTIF(CountryEligEquip,E13)=0,F13="",ISNUMBER(G13)=FALSE,IF(ISNUMBER(G13)=TRUE,G13=INT(G13*100)/100=FALSE)),"Error","") -> Error
D14: =IFERROR(IF(VLOOKUP(C14,PartnerN°Ref,2,FALSE)=0,"",VLOOKUP(C14,PartnerN°Ref,2,FALSE)),"") ->  | E14: =IFERROR(IF(OR(VLOOKUP(C14,PartnerN°Ref,4,FALSE)="Country not found",VLOOKUP(C14,PartnerN°Ref,3,FALSE)=0),"",VLOOKUP(C14,PartnerN°Ref,3,FALSE)),"") ->  | G14: 0 | H14: =IF(I14="Error",0,ROUND(G14,2)) -> 0 | I14: =IF(OR(COUNTIF(WorkPackage,B14)=0,COUNTIF(PartnerN°,C14)=0,D14="",COUNTIF(CountryEligEquip,E14)=0,F14="",ISNUMBER(G14)=FALSE,IF(ISNUMBER(G14)=TRUE,G14=INT(G14*100)/100=FALSE)),"Error","") -> Error

Sheet 5. Subcontracting Costs
B2: 5. Subcontracting Costs
B4: Total (EUR) | C4: =SUM(H:H) -> 0
B11: Work Package | C11: Partner N° | D11: Name of Partner (to encode in overview sheet) | E11: Country (to encode in overview sheet) | F11: Nature, type and specifications of the item | G11: Amount Excluding VAT (EUR) | H11: Total (EUR) | I11: Check Data Encoding
D13: =IFERROR(IF(VLOOKUP(C13,PartnerN°Ref,2,FALSE)=0,"",VLOOKUP(C13,PartnerN°Ref,2,FALSE)),"") ->  | E13: =IFERROR(IF(OR(VLOOKUP(C13,PartnerN°Ref,4,FALSE)="Country not found",VLOOKUP(C13,PartnerN°Ref,3,FALSE)=0),"",VLOOKUP(C13,PartnerN°Ref,3,FALSE)),"") ->  | G13: 0 | H13: =IF(I13="Error",0,ROUND(G13,2)) -> 0 | I13: =IF(OR(COUNTIF(WorkPackage,B13)=0,COUNTIF(PartnerN°,C13)=0,D13="",COUNTIF(CountryALL,E13)=0,F13="",ISNUMBER(G13)=FALSE,IF(ISNUMBER(G13)=TRUE,G13=INT(G13*100)/100=FALSE)),"Error","") -> Error
D14: =IFERROR(IF(VLOOKUP(C14,PartnerN°Ref,2,FALSE)=0,"",VLOOKUP(C14,PartnerN°Ref,2,FALSE)),"") ->  | E14: =IFERROR(IF(OR(VLOOKUP(C14,PartnerN°Ref,4,FALSE)="Country not found",VLOOKUP(C14,PartnerN°Ref,3,FALSE)=0),"",VLOOKUP(C14,PartnerN°Ref,3,FALSE)),"") ->  | G14: 0 | H14: =IF(I14="Error",0,ROUND(G14,2)) -> 0 | I14: =IF(OR(COUNTIF(WorkPackage,B14)=0,COUNTIF(PartnerN°,C14)=0,D14="",COUNTIF(CountryALL,E14)=0,F14="",ISNUMBER(G14)=FALSE,IF(ISNUMBER(G14)=TRUE,G14=INT(G14*100)/100=FALSE)),"Error","") -> Error

Sheet Co-financing
B2: Information for the Co-financing
B4: Total (EUR) | C4: =SUM(I:I) -> 0
B11: Partner N° | C11: Name of Partner (to encode in overview sheet) | D11: Country (to encode in overview sheet) | E11: Item* | F11: Source of Co-financing** | G11: Justification*** | H11: Amount Excluding VAT (EUR) | I11: Total (EUR) | J11: Check Data Encoding
C13: =IFERROR(IF(VLOOKUP(B13,PartnerN°Ref,2,FALSE)=0,"",VLOOKUP(B13,PartnerN°Ref,2,FALSE)),"") ->  | D13: =IFERROR(IF(OR(VLOOKUP(B13,PartnerN°Ref,4,FALSE)="Country not found",VLOOKUP(B13,PartnerN°Ref,3,FALSE)=0),"",VLOOKUP(B13,PartnerN°Ref,3,FALSE)),"") ->  | H13: 0 | I13: =IF(J13="Error",0,ROUND(H13,2)) -> 0 | J13: =IF(OR(COUNTIF(PartnerN°,B13)=0,C13="",COUNTIF(CountryALL,D13)=0,E13="",F13="",G13="",ISNUMBER(H13)=FALSE,IF(ISNUMBER(H13)=TRUE,H13=INT(H13*100)/100=FALSE)),"Error","") -> Error
C14: =IFERROR(IF(VLOOKUP(B14,PartnerN°Ref,2,FALSE)=0,"",VLOOKUP(B14,PartnerN°Ref,2,FALSE)),"") ->  | D14: =IFERROR(IF(OR(VLOOKUP(B14,PartnerN°Ref,4,FALSE)="Country not found",VLOOKUP(B14,PartnerN°Ref,3,FALSE)=0),"",VLOOKUP(B14,PartnerN°Ref,3,FALSE)),"") ->  | H14: 0 | I14: =IF(J14="Error",0,ROUND(H14,2)) -> 0 | J14: =IF(OR(COUNTIF(PartnerN°,B14)=0,C14="",COUNTIF(CountryALL,D14)=0,E14="",F14="",G14="",ISNUMBER(H14)=FALSE,IF(ISNUMBER(H14)=TRUE,H14=INT(H14*100)/100=FALSE)),"Error","") -> Error
B16: * e.g.: Equipment, Staff costs, travel costs and/or costs of stay, printing & publishing
B17: ** e.g.: governmental grant, organisation/institution's own resources
B18: *** e.g.: Preparation of training materials - 2 days x 7,5 hours x 3 persons x € 25

Sheet Breakdown & Project Funding
B2: Budget Breakdown by Workpackage / Budget Headings
B4: Work Package | C4: 1. Staff Costs | D4: 2. Travel Costs | E4: 3. Costs of Stay | F4: 4. Equipment Costs | G4: 5. Subcontracting Costs | H4: a) Exceptional Travel Costs | I4: Total (EUR)
B5: ='Unit Costs & Funding Rule'!P10 -> Preparation | C5: =SUMIF('1. Staff costs'!B:B,B5,'1. Staff costs'!S:S) -> 0 | D5: =SUMIF('2-3. Travel Costs&Costs of Stay'!B:B,B5,'2-3. Travel Costs&Costs of Stay'!L:L) -> 0 | E5: =SUMIF('2-3. Travel Costs&Costs of Stay'!B:B,B5,'2-3. Travel Costs&Costs of Stay'!M:M) -> 0 | F5: =SUMIF('4. Equipment Costs'!B:B,B5,'4. Equipment Costs'!H:H) -> 0 | G5: =SUMIF('5. Subcontracting Costs'!B:B,B5,'5. Subcontracting Costs'!H:H) -> 0 | I5: =SUM(C5:G5) -> 0
B6: ='Unit Costs & Funding Rule'!P11 -> Development | C6: =SUMIF('1. Staff costs'!B:B,B6,'1. Staff costs'!S:S) -> 0 | D6: =SUMIF('2-3. Travel Costs&Costs of Stay'!B:B,B6,'2-3. Travel Costs&Costs of Stay'!L:L) -> 0 | E6: =SUMIF('2-3. Travel Costs&Costs of Stay'!B:B,B6,'2-3. Travel Costs&Costs of Stay'!M:M) -> 0 | F6: =SUMIF('4. Equipment Costs'!B:B,B6,'4. Equipment Costs'!H:H) -> 0 | G6: =SUMIF('5. Subcontracting Costs'!B:B,B6,'5. Subcontracting Costs'!H:H) -> 0 | I6: =SUM(C6:G6) -> 0
B7: ='Unit Costs & Funding Rule'!P12 -> Quality Plan | C7: =SUMIF('1. Staff costs'!B:B,B7,'1. Staff costs'!S:S) -> 0 | D7: =SUMIF('2-3. Travel Costs&Costs of Stay'!B:B,B7,'2-3. Travel Costs&Costs of Stay'!L:L) -> 0 | E7: =SUMIF('2-3. Travel Costs&Costs of Stay'!B:B,B7,'2-3. Travel Costs&Costs of Stay'!M:M) -> 0 | F7: =SUMIF('4. Equipment Costs'!B:B,B7,'4. Equipment Costs'!H:H) -> 0 | G7: =SUMIF('5. Subcontracting Costs'!B:B,B7,'5. Subcontracting Costs'!H:H) -> 0 | I7: 0
B8: ='Unit Costs & Funding Rule'!P13 -> Dissemination & Exploitation | C8: =SUMIF('1. Staff costs'!B:B,B8,'1. Staff costs'!S:S) -> 0 | D8: =SUMIF('2-3. Travel Costs&Costs of Stay'!B:B,B8,'2-3. Travel Costs&Costs of Stay'!L:L) -> 0 | E8: =SUMIF('2-3. Travel Costs&Costs of Stay'!B:B,B8,'2-3. Travel Costs&Costs of Stay'!M:M) -> 0 | F8: =SUMIF('4. Equipment Costs'!B:B,B8,'4. Equipment Costs'!H:H) -> 0 | G8: =SUMIF('5. Subcontracting Costs'!B:B,B8,'5. Subcontracting Costs'!H:H) -> 0 | I8: 0
B9: ='Unit Costs & Funding Rule'!P14 -> Management | C9: =SUMIF('1. Staff costs'!B:B,B9,'1. Staff costs'!S:S) -> 0 | D9: =SUMIF('2-3. Travel Costs&Costs of Stay'!B:B,B9,'2-3. Travel Costs&Costs of Stay'!L:L) -> 0 | E9: =SUMIF('2-3. Travel Costs&Costs of Stay'!B:B,B9,'2-3. Travel Costs&Costs of Stay'!M:M) -> 0 | F9: =SUMIF('4. Equipment Costs'!B:B,B9,'4. Equipment Costs'!H:H) -> 0 | G9: =SUMIF('5. Subcontracting Costs'!B:B,B9,'5. Subcontracting Costs'!H:H) -> 0 | I9: 0
B10: Total | C10: =SUM(C5:C9) -> 0 | D10: 0 | E10: 0 | F10: 0 | G10: =SUM(G5:G9) -> 0 | H10: =IF(OR(Overview!C26="",Overview!D26=""),0,'2-3. Travel Costs&Costs of Stay'!J4) -> 0 | I10: =SUM(C10:H10) -> 0
B12: Budget Breakdown by Programme or Partner Countries / Budget Headings
B14: Countries | C14: 1. Staff Costs | D14: 2. Travel Costs + Exceptional Travel Costs | E14: 3. Costs of Stay | F14: 4. Equipment Costs | G14: 5. Subcontracting Costs | H14: Total (EUR)
B15: Programme Countries | C15: =SUMIF(Overview!$E$26:$E$80,B15,Overview!$F$26:$F$80) -> 0 | D15: =SUMIF(Overview!$E$26:$E$80,B15,Overview!$G$26:$G$80) -> 0 | E15: =SUMIF(Overview!$E$26:$E$80,B15,Overview!$H$26:$H$80) -> 0 | F15: =SUMIF(Overview!$E$26:$E$80,B15,Overview!$I$26:$I$80) -> 0 | G15: =SUMIF(Overview!$E$26:$E$80,B15,Overview!$J$26:$J$80) -> 0 | H15: =SUM(C15:G15) -> 0
B16: Partner Countries | C16: =SUMIF(Overview!$E$26:$E$80,B16,Overview!$F$26:$F$80) -> 0 | D16: =SUMIF(Overview!$E$26:$E$80,B16,Overview!$G$26:$G$80) -> 0 | E16: =SUMIF(Overview!$E$26:$E$80,B16,Overview!$H$26:$H$80) -> 0 | F16: =SUMIF(Overview!$E$26:$E$80,B16,Overview!$I$26:$I$80) -> 0 | G16: =SUMIF(Overview!$E$26:$E$80,B16,Overview!$J$26:$J$80) -> 0 | H16: =SUM(C16:G16) -> 0
B17: Total | C17: =SUM(C15:C16) -> 0 | D17: 0 | E17: 0 | F17: 0 | G17: 0 | H17: =SUM(C17:G17) -> 0
B19: Budget Breakdown by Partner / Work Package
B21: Partner N° | C21: ='Unit Costs & Funding Rule'!P10 -> Preparation | D21: ='Unit Costs & Funding Rule'!P11 -> Development | E21: ='Unit Costs & Funding Rule'!P12 -> Quality Plan | F21: ='Unit Costs & Funding Rule'!P13 -> Dissemination & Exploitation | G21: ='Unit Costs & Funding Rule'!P14 -> Management | H21: a) Exceptional Travel Costs | I21: Total (EUR)
B22: P1 | C22: =SUMIFS('1. Staff costs'!S:S,'1. Staff costs'!C:C,B22,'1. Staff costs'!B:B,$C$21)+SUMIFS('2-3. Travel Costs&Costs of Stay'!N:N,'2-3. Travel Costs&Costs of Stay'!C:C,B22,'2-3. Travel Costs&Costs of Stay'!B:B,$C$21)+SUMIFS('4. Equipment Costs'!H:H,'4. Equipment Costs'!C:C,B22,'4. Equipment Costs'!B:B,$C$21)+SUMIFS('5. Subcontracting Costs'!H:H,'5. Subcontracting Costs'!C:C,B22,'5. Subcontracting Costs'!B:B,$C$21) -> 0 | D22: =SUMIFS('1. Staff costs'!S:S,'1. Staff costs'!C:C,B22,'1. Staff costs'!B:B,$D$21)+SUMIFS('2-3. Travel Costs&Costs of Stay'!N:N,'2-3. Travel Costs&Costs of Stay'!C:C,B22,'2-3. Travel Costs&Costs of Stay'!B:B,$D$21)+SUMIFS('4. Equipment Costs'!H:H,'4. Equipment Costs'!C:C,B22,'4. Equipment Costs'!B:B,$D$21)+SUMIFS('5. Subcontracting Costs'!H:H,'5. Subcontracting Costs'!C:C,B22,'5. Subcontracting Costs'!B:B,$D$21) -> 0 | E22: =SUMIFS('1. Staff costs'!S:S,'1. Staff costs'!C:C,B22,'1. Staff costs'!B:B,$E$21)+SUMIFS('2-3. Travel Costs&Costs of Stay'!N:N,'2-3. Travel Costs&Costs of Stay'!C:C,B22,'2-3. Travel Costs&Costs of Stay'!B:B,$E$21)+SUMIFS('4. Equipment Costs'!H:H,'4. Equipment Costs'!C:C,B22,'4. Equipment Costs'!B:B,$E$21)+SUMIFS('5. Subcontracting Costs'!H:H,'5. Subcontracting Costs'!C:C,B22,'5. Subcontracting Costs'!B:B,$E$21) -> 0 | F22: =SUMIFS('1. Staff costs'!S:S,'1. Staff costs'!C:C,B22,'1. Staff costs'!B:B,$B$8)+SUMIFS('2-3. Travel Costs&Costs of Stay'!N:N,'2-3. Travel Costs&Costs of Stay'!C:C,B22,'2-3. Travel Costs&Costs of Stay'!B:B,$B$8)+SUMIFS('4. Equipment Costs'!H:H,'4. Equipment Costs'!C:C,B22,'4. Equipment Costs'!B:B,$B$8)+SUMIFS('5. Subcontracting Costs'!H:H,'5. Subcontracting Costs'!C:C,B22,'5. Subcontracting Costs'!B:B,$B$8) -> 0 | G22: =SUMIFS('1. Staff costs'!S:S,'1. Staff costs'!C:C,B22,'1. Staff costs'!B:B,$G$21)+SUMIFS('2-3. Travel Costs&Costs of Stay'!N:N,'2-3. Travel Costs&Costs of Stay'!C:C,B22,'2-3. Travel Costs&Costs of Stay'!B:B,$G$21)+SUMIFS('4. Equipment Costs'!H:H,'4. Equipment Costs'!C:C,B22,'4. Equipment Costs'!B:B,$G$21)+SUMIFS('5. Subcontracting Costs'!H:H,'5. Subcontracting Costs'!C:C,B22,'5. Subcontracting Costs'!B:B,$G$21) -> 0 | H22: =IF(OR(Overview!C26="",Overview!D26=""),0,'2-3. Travel Costs&Costs of Stay'!J4) -> 0 | I22: =SUM(C22:H22) -> 0
B23: P2 | C23: =SUMIFS('1. Staff costs'!S:S,'1. Staff costs'!C:C,B23,'1. Staff costs'!B:B,$C$21)+SUMIFS('2-3. Travel Costs&Costs of Stay'!N:N,'2-3. Travel Costs&Costs of Stay'!C:C,B23,'2-3. Travel Costs&Costs of Stay'!B:B,$C$21)+SUMIFS('4. Equipment Costs'!H:H,'4. Equipment Costs'!C:C,B23,'4. Equipment Costs'!B:B,$C$21)+SUMIFS('5. Subcontracting Costs'!H:H,'5. Subcontracting Costs'!C:C,B23,'5. Subcontracting Costs'!B:B,$C$21) -> 0 | D23: =SUMIFS('1. Staff costs'!S:S,'1. Staff costs'!C:C,B23,'1. Staff costs'!B:B,$D$21)+SUMIFS('2-3. Travel Costs&Costs of Stay'!N:N,'2-3. Travel Costs&Costs of Stay'!C:C,B23,'2-3. Travel Costs&Costs of Stay'!B:B,$D$21)+SUMIFS('4. Equipment Costs'!H:H,'4. Equipment Costs'!C:C,B23,'4. Equipment Costs'!B:B,$D$21)+SUMIFS('5. Subcontracting Costs'!H:H,'5. Subcontracting Costs'!C:C,B23,'5. Subcontracting Costs'!B:B,$D$21) -> 0 | E23: =SUMIFS('1. Staff costs'!S:S,'1. Staff costs'!C:C,B23,'1. Staff costs'!B:B,$E$21)+SUMIFS('2-3. Travel Costs&Costs of Stay'!N:N,'2-3. Travel Costs&Costs of Stay'!C:C,B23,'2-3. Travel Costs&Costs of Stay'!B:B,$E$21)+SUMIFS('4. Equipment Costs'!H:H,'4. Equipment Costs'!C:C,B23,'4. Equipment Costs'!B:B,$E$21)+SUMIFS('5. Subcontracting Costs'!H:H,'5. Subcontracting Costs'!C:C,B23,'5. Subcontracting Costs'!B:B,$E$21) -> 0 | F23: =SUMIFS('1. Staff costs'!S:S,'1. Staff costs'!C:C,B23,'1. Staff costs'!B:B,$B$8)+SUMIFS('2-3. Travel Costs&Costs of Stay'!N:N,'2-3. Travel Costs&Costs of Stay'!C:C,B23,'2-3. Travel Costs&Costs of Stay'!B:B,$B$8)+SUMIFS('4. Equipment Costs'!H:H,'4. Equipment Costs'!C:C,B23,'4. Equipment Costs'!B:B,$B$8)+SUMIFS('5. Subcontracting Costs'!H:H,'5. Subcontracting Costs'!C:C,B23,'5. Subcontracting Costs'!B:B,$B$8) -> 0 | G23: =SUMIFS('1. Staff costs'!S:S,'1. Staff costs'!C:C,B23,'1. Staff costs'!B:B,$G$21)+SUMIFS('2-3. Travel Costs&Costs of Stay'!N:N,'2-3. Travel Costs&Costs of Stay'!C:C,B23,'2-3. Travel Costs&Costs of Stay'!B:B,$G$21)+SUMIFS('4. Equipment Costs'!H:H,'4. Equipment Costs'!C:C,B23,'4. Equipment Costs'!B:B,$G$21)+SUMIFS('5. Subcontracting Costs'!H:H,'5. Subcontracting Costs'!C:C,B23,'5. Subcontracting Costs'!B:B,$G$21) -> 0 | H23: 0 | I23: =SUM(C23:H23) -> 0
B24: P3 | C24: =SUMIFS('1. Staff costs'!S:S,'1. Staff costs'!C:C,B24,'1. Staff costs'!B:B,$C$21)+SUMIFS('2-3. Travel Costs&Costs of Stay'!N:N,'2-3. Travel Costs&Costs of Stay'!C:C,B24,'2-3. Travel Costs&Costs of Stay'!B:B,$C$21)+SUMIFS('4. Equipment Costs'!H:H,'4. Equipment Costs'!C:C,B24,'4. Equipment Costs'!B:B,$C$21)+SUMIFS('5. Subcontracting Costs'!H:H,'5. Subcontracting Costs'!C:C,B24,'5. Subcontracting Costs'!B:B,$C$21) -> 0 | D24: =SUMIFS('1. Staff costs'!S:S,'1. Staff costs'!C:C,B24,'1. Staff costs'!B:B,$D$21)+SUMIFS('2-3. Travel Costs&Costs of Stay'!N:N,'2-3. Travel Costs&Costs of Stay'!C:C,B24,'2-3. Travel Costs&Costs of Stay'!B:B,$D$21)+SUMIFS('4. Equipment Costs'!H:H,'4. Equipment Costs'!C:C,B24,'4. Equipment Costs'!B:B,$D$21)+SUMIFS('5. Subcontracting Costs'!H:H,'5. Subcontracting Costs'!C:C,B24,'5. Subcontracting Costs'!B:B,$D$21) -> 0 | E24: =SUMIFS('1. Staff costs'!S:S,'1. Staff costs'!C:C,B24,'1. Staff costs'!B:B,$E$21)+SUMIFS('2-3. Travel Costs&Costs of Stay'!N:N,'2-3. Travel Costs&Costs of Stay'!C:C,B24,'2-3. Travel Costs&Costs of Stay'!B:B,$E$21)+SUMIFS('4. Equipment Costs'!H:H,'4. Equipment Costs'!C:C,B24,'4. Equipment Costs'!B:B,$E$21)+SUMIFS('5. Subcontracting Costs'!H:H,'5. Subcontracting Costs'!C:C,B24,'5. Subcontracting Costs'!B:B,$E$21) -> 0 | F24: =SUMIFS('1. Staff costs'!S:S,'1. Staff costs'!C:C,B24,'1. Staff costs'!B:B,$B$8)+SUMIFS('2-3. Travel Costs&Costs of Stay'!N:N,'2-3. Travel Costs&Costs of Stay'!C:C,B24,'2-3. Travel Costs&Costs of Stay'!B:B,$B$8)+SUMIFS('4. Equipment Costs'!H:H,'4. Equipment Costs'!C:C,B24,'4. Equipment Costs'!B:B,$B$8)+SUMIFS('5. Subcontracting Costs'!H:H,'5. Subcontracting Costs'!C:C,B24,'5. Subcontracting Costs'!B:B,$B$8) -> 0 | G24: =SUMIFS('1. Staff costs'!S:S,'1. Staff costs'!C:C,B24,'1. Staff costs'!B:B,$G$21)+SUMIFS('2-3. Travel Costs&Costs of Stay'!N:N,'2-3. Travel Costs&Costs of Stay'!C:C,B24,'2-3. Travel Costs&Costs of Stay'!B:B,$G$21)+SUMIFS('4. Equipment Costs'!H:H,'4. Equipment Costs'!C:C,B24,'4. Equipment Costs'!B:B,$G$21)+SUMIFS('5. Subcontracting Costs'!H:H,'5. Subcontracting Costs'!C:C,B24,'5. Subcontracting Costs'!B:B,$G$21) -> 0 | H24: 0 | I24: 0
B25: P4 | C25: =SUMIFS('1. Staff costs'!S:S,'1. Staff costs'!C:C,B25,'1. Staff costs'!B:B,$C$21)+SUMIFS('2-3. Travel Costs&Costs of Stay'!N:N,'2-3. Travel Costs&Costs of Stay'!C:C,B25,'2-3. Travel Costs&Costs of Stay'!B:B,$C$21)+SUMIFS('4. Equipment Costs'!H:H,'4. Equipment Costs'!C:C,B25,'4. Equipment Costs'!B:B,$C$21)+SUMIFS('5. Subcontracting Costs'!H:H,'5. Subcontracting Costs'!C:C,B25,'5. Subcontracting Costs'!B:B,$C$21) -> 0 | D25: =SUMIFS('1. Staff costs'!S:S,'1. Staff costs'!C:C,B25,'1. Staff costs'!B:B,$D$21)+SUMIFS('2-3. Travel Costs&Costs of Stay'!N:N,'2-3. Travel Costs&Costs of Stay'!C:C,B25,'2-3. Travel Costs&Costs of Stay'!B:B,$D$21)+SUMIFS('4. Equipment Costs'!H:H,'4. Equipment Costs'!C:C,B25,'4. Equipment Costs'!B:B,$D$21)+SUMIFS('5. Subcontracting Costs'!H:H,'5. Subcontracting Costs'!C:C,B25,'5. Subcontracting Costs'!B:B,$D$21) -> 0 | E25: =SUMIFS('1. Staff costs'!S:S,'1. Staff costs'!C:C,B25,'1. Staff costs'!B:B,$E$21)+SUMIFS('2-3. Travel Costs&Costs of Stay'!N:N,'2-3. Travel Costs&Costs of Stay'!C:C,B25,'2-3. Travel Costs&Costs of Stay'!B:B,$E$21)+SUMIFS('4. Equipment Costs'!H:H,'4. Equipment Costs'!C:C,B25,'4. Equipment Costs'!B:B,$E$21)+SUMIFS('5. Subcontracting Costs'!H:H,'5. Subcontracting Costs'!C:C,B25,'5. Subcontracting Costs'!B:B,$E$21) -> 0 | F25: =SUMIFS('1. Staff costs'!S:S,'1. Staff costs'!C:C,B25,'1. Staff costs'!B:B,$B$8)+SUMIFS('2-3. Travel Costs&Costs of Stay'!N:N,'2-3. Travel Costs&Costs of Stay'!C:C,B25,'2-3. Travel Costs&Costs of Stay'!B:B,$B$8)+SUMIFS('4. Equipment Costs'!H:H,'4. Equipment Costs'!C:C,B25,'4. Equipment Costs'!B:B,$B$8)+SUMIFS('5. Subcontracting Costs'!H:H,'5. Subcontracting Costs'!C:C,B25,'5. Subcontracting Costs'!B:B,$B$8) -> 0 | G25: =SUMIFS('1. Staff costs'!S:S,'1. Staff costs'!C:C,B25,'1. Staff costs'!B:B,$G$21)+SUMIFS('2-3. Travel Costs&Costs of Stay'!N:N,'2-3. Travel Costs&Costs of Stay'!C:C,B25,'2-3. Travel Costs&Costs of Stay'!B:B,$G$21)+SUMIFS('4. Equipment Costs'!H:H,'4. Equipment Costs'!C:C,B25,'4. Equipment Costs'!B:B,$G$21)+SUMIFS('5. Subcontracting Costs'!H:H,'5. Subcontracting Costs'!C:C,B25,'5. Subcontracting Costs'!B:B,$G$21) -> 0 | H25: 0 | I25: 0
B26: P5 | C26: =SUMIFS('1. Staff costs'!S:S,'1. Staff costs'!C:C,B26,'1. Staff costs'!B:B,$C$21)+SUMIFS('2-3. Travel Costs&Costs of Stay'!N:N,'2-3. Travel Costs&Costs of Stay'!C:C,B26,'2-3. Travel Costs&Costs of Stay'!B:B,$C$21)+SUMIFS('4. Equipment Costs'!H:H,'4. Equipment Costs'!C:C,B26,'4. Equipment Costs'!B:B,$C$21)+SUMIFS('5. Subcontracting Costs'!H:H,'5. Subcontracting Costs'!C:C,B26,'5. Subcontracting Costs'!B:B,$C$21) -> 0 | D26: =SUMIFS('1. Staff costs'!S:S,'1. Staff costs'!C:C,B26,'1. Staff costs'!B:B,$D$21)+SUMIFS('2-3. Travel Costs&Costs of Stay'!N:N,'2-3. Travel Costs&Costs of Stay'!C:C,B26,'2-3. Travel Costs&Costs of Stay'!B:B,$D$21)+SUMIFS('4. Equipment Costs'!H:H,'4. Equipment Costs'!C:C,B26,'4. Equipment Costs'!B:B,$D$21)+SUMIFS('5. Subcontracting Costs'!H:H,'5. Subcontracting Costs'!C:C,B26,'5. Subcontracting Costs'!B:B,$D$21) -> 0 | E26: =SUMIFS('1. Staff costs'!S:S,'1. Staff costs'!C:C,B26,'1. Staff costs'!B:B,$E$21)+SUMIFS('2-3. Travel Costs&Costs of Stay'!N:N,'2-3. Travel Costs&Costs of Stay'!C:C,B26,'2-3. Travel Costs&Costs of Stay'!B:B,$E$21)+SUMIFS('4. Equipment Costs'!H:H,'4. Equipment Costs'!C:C,B26,'4. Equipment Costs'!B:B,$E$21)+SUMIFS('5. Subcontracting Costs'!H:H,'5. Subcontracting Costs'!C:C,B26,'5. Subcontracting Costs'!B:B,$E$21) -> 0 | F26: =SUMIFS('1. Staff costs'!S:S,'1. Staff costs'!C:C,B26,'1. Staff costs'!B:B,$B$8)+SUMIFS('2-3. Travel Costs&Costs of Stay'!N:N,'2-3. Travel Costs&Costs of Stay'!C:C,B26,'2-3. Travel Costs&Costs of Stay'!B:B,$B$8)+SUMIFS('4. Equipment Costs'!H:H,'4. Equipment Costs'!C:C,B26,'4. Equipment Costs'!B:B,$B$8)+SUMIFS('5. Subcontracting Costs'!H:H,'5. Subcontracting Costs'!C:C,B26,'5. Subcontracting Costs'!B:B,$B$8) -> 0 | G26: =SUMIFS('1. Staff costs'!S:S,'1. Staff costs'!C:C,B26,'1. Staff costs'!B:B,$G$21)+SUMIFS('2-3. Travel Costs&Costs of Stay'!N:N,'2-3. Travel Costs&Costs of Stay'!C:C,B26,'2-3. Travel Costs&Costs of Stay'!B:B,$G$21)+SUMIFS('4. Equipment Costs'!H:H,'4. Equipment Costs'!C:C,B26,'4. Equipment Costs'!B:B,$G$21)+SUMIFS('5. Subcontracting Costs'!H:H,'5. Subcontracting Costs'!C:C,B26,'5. Subcontracting Costs'!B:B,$G$21) -> 0 | H26: 0 | I26: 0
B27: P6 | C27: =SUMIFS('1. Staff costs'!S:S,'1. Staff costs'!C:C,B27,'1. Staff costs'!B:B,$C$21)+SUMIFS('2-3. Travel Costs&Costs of Stay'!N:N,'2-3. Travel Costs&Costs of Stay'!C:C,B27,'2-3. Travel Costs&Costs of Stay'!B:B,$C$21)+SUMIFS('4. Equipment Costs'!H:H,'4. Equipment Costs'!C:C,B27,'4. Equipment Costs'!B:B,$C$21)+SUMIFS('5. Subcontracting Costs'!H:H,'5. Subcontracting Costs'!C:C,B27,'5. Subcontracting Costs'!B:B,$C$21) -> 0 | D27: =SUMIFS('1. Staff costs'!S:S,'1. Staff costs'!C:C,B27,'1. Staff costs'!B:B,$D$21)+SUMIFS('2-3. Travel Costs&Costs of Stay'!N:N,'2-3. Travel Costs&Costs of Stay'!C:C,B27,'2-3. Travel Costs&Costs of Stay'!B:B,$D$21)+SUMIFS('4. Equipment Costs'!H:H,'4. Equipment Costs'!C:C,B27,'4. Equipment Costs'!B:B,$D$21)+SUMIFS('5. Subcontracting Costs'!H:H,'5. Subcontracting Costs'!C:C,B27,'5. Subcontracting Costs'!B:B,$D$21) -> 0 | E27: =SUMIFS('1. Staff costs'!S:S,'1. Staff costs'!C:C,B27,'1. Staff costs'!B:B,$E$21)+SUMIFS('2-3. Travel Costs&Costs of Stay'!N:N,'2-3. Travel Costs&Costs of Stay'!C:C,B27,'2-3. Travel Costs&Costs of Stay'!B:B,$E$21)+SUMIFS('4. Equipment Costs'!H:H,'4. Equipment Costs'!C:C,B27,'4. Equipment Costs'!B:B,$E$21)+SUMIFS('5. Subcontracting Costs'!H:H,'5. Subcontracting Costs'!C:C,B27,'5. Subcontracting Costs'!B:B,$E$21) -> 0 | F27: =SUMIFS('1. Staff costs'!S:S,'1. Staff costs'!C:C,B27,'1. Staff costs'!B:B,$B$8)+SUMIFS('2-3. Travel Costs&Costs of Stay'!N:N,'2-3. Travel Costs&Costs of Stay'!C:C,B27,'2-3. Travel Costs&Costs of Stay'!B:B,$B$8)+SUMIFS('4. Equipment Costs'!H:H,'4. Equipment Costs'!C:C,B27,'4. Equipment Costs'!B:B,$B$8)+SUMIFS('5. Subcontracting Costs'!H:H,'5. Subcontracting Costs'!C:C,B27,'5. Subcontracting Costs'!B:B,$B$8) -> 0 | G27: =SUMIFS('1. Staff costs'!S:S,'1. Staff costs'!C:C,B27,'1. Staff costs'!B:B,$G$21)+SUMIFS('2-3. Travel Costs&Costs of Stay'!N:N,'2-3. Travel Costs&Costs of Stay'!C:C,B27,'2-3. Travel Costs&Costs of Stay'!B:B,$G$21)+SUMIFS('4. Equipment Costs'!H:H,'4. Equipment Costs'!C:C,B27,'4. Equipment Costs'!B:B,$G$21)+SUMIFS('5. Subcontracting Costs'!H:H,'5. Subcontracting Costs'!C:C,B27,'5. Subcontracting Costs'!B:B,$G$21) -> 0 | H27: 0 | I27: 0
B28: P7 | C28: =SUMIFS('1. Staff costs'!S:S,'1. Staff costs'!C:C,B28,'1. Staff costs'!B:B,$C$21)+SUMIFS('2-3. Travel Costs&Costs of Stay'!N:N,'2-3. Travel Costs&Costs of Stay'!C:C,B28,'2-3. Travel Costs&Costs of Stay'!B:B,$C$21)+SUMIFS('4. Equipment Costs'!H:H,'4. Equipment Costs'!C:C,B28,'4. Equipment Costs'!B:B,$C$21)+SUMIFS('5. Subcontracting Costs'!H:H,'5. Subcontracting Costs'!C:C,B28,'5. Subcontracting Costs'!B:B,$C$21) -> 0 | D28: =SUMIFS('1. Staff costs'!S:S,'1. Staff costs'!C:C,B28,'1. Staff costs'!B:B,$D$21)+SUMIFS('2-3. Travel Costs&Costs of Stay'!N:N,'2-3. Travel Costs&Costs of Stay'!C:C,B28,'2-3. Travel Costs&Costs of Stay'!B:B,$D$21)+SUMIFS('4. Equipment Costs'!H:H,'4. Equipment Costs'!C:C,B28,'4. Equipment Costs'!B:B,$D$21)+SUMIFS('5. Subcontracting Costs'!H:H,'5. Subcontracting Costs'!C:C,B28,'5. Subcontracting Costs'!B:B,$D$21) -> 0 | E28: =SUMIFS('1. Staff costs'!S:S,'1. Staff costs'!C:C,B28,'1. Staff costs'!B:B,$E$21)+SUMIFS('2-3. Travel Costs&Costs of Stay'!N:N,'2-3. Travel Costs&Costs of Stay'!C:C,B28,'2-3. Travel Costs&Costs of Stay'!B:B,$E$21)+SUMIFS('4. Equipment Costs'!H:H,'4. Equipment Costs'!C:C,B28,'4. Equipment Costs'!B:B,$E$21)+SUMIFS('5. Subcontracting Costs'!H:H,'5. Subcontracting Costs'!C:C,B28,'5. Subcontracting Costs'!B:B,$E$21) -> 0 | F28: =SUMIFS('1. Staff costs'!S:S,'1. Staff costs'!C:C,B28,'1. Staff costs'!B:B,$B$8)+SUMIFS('2-3. Travel Costs&Costs of Stay'!N:N,'2-3. Travel Costs&Costs of Stay'!C:C,B28,'2-3. Travel Costs&Costs of Stay'!B:B,$B$8)+SUMIFS('4. Equipment Costs'!H:H,'4. Equipment Costs'!C:C,B28,'4. Equipment Costs'!B:B,$B$8)+SUMIFS('5. Subcontracting Costs'!H:H,'5. Subcontracting Costs'!C:C,B28,'5. Subcontracting Costs'!B:B,$B$8) -> 0 | G28: =SUMIFS('1. Staff costs'!S:S,'1. Staff costs'!C:C,B28,'1. Staff costs'!B:B,$G$21)+SUMIFS('2-3. Travel Costs&Costs of Stay'!N:N,'2-3. Travel Costs&Costs of Stay'!C:C,B28,'2-3. Travel Costs&Costs of Stay'!B:B,$G$21)+SUMIFS('4. Equipment Costs'!H:H,'4. Equipment Costs'!C:C,B28,'4. Equipment Costs'!B:B,$G$21)+SUMIFS('5. Subcontracting Costs'!H:H,'5. Subcontracting Costs'!C:C,B28,'5. Subcontracting Costs'!B:B,$G$21) -> 0 | H28: 0 | I28: 0
B29: P8 | C29: =SUMIFS('1. Staff costs'!S:S,'1. Staff costs'!C:C,B29,'1. Staff costs'!B:B,$C$21)+SUMIFS('2-3. Travel Costs&Costs of Stay'!N:N,'2-3. Travel Costs&Costs of Stay'!C:C,B29,'2-3. Travel Costs&Costs of Stay'!B:B,$C$21)+SUMIFS('4. Equipment Costs'!H:H,'4. Equipment Costs'!C:C,B29,'4. Equipment Costs'!B:B,$C$21)+SUMIFS('5. Subcontracting Costs'!H:H,'5. Subcontracting Costs'!C:C,B29,'5. Subcontracting Costs'!B:B,$C$21) -> 0 | D29: =SUMIFS('1. Staff costs'!S:S,'1. Staff costs'!C:C,B29,'1. Staff costs'!B:B,$D$21)+SUMIFS('2-3. Travel Costs&Costs of Stay'!N:N,'2-3. Travel Costs&Costs of Stay'!C:C,B29,'2-3. Travel Costs&Costs of Stay'!B:B,$D$21)+SUMIFS('4. Equipment Costs'!H:H,'4. Equipment Costs'!C:C,B29,'4. Equipment Costs'!B:B,$D$21)+SUMIFS('5. Subcontracting Costs'!H:H,'5. Subcontracting Costs'!C:C,B29,'5. Subcontracting Costs'!B:B,$D$21) -> 0 | E29: =SUMIFS('1. Staff costs'!S:S,'1. Staff costs'!C:C,B29,'1. Staff costs'!B:B,$E$21)+SUMIFS('2-3. Travel Costs&Costs of Stay'!N:N,'2-3. Travel Costs&Costs of Stay'!C:C,B29,'2-3. Travel Costs&Costs of Stay'!B:B,$E$21)+SUMIFS('4. Equipment Costs'!H:H,'4. Equipment Costs'!C:C,B29,'4. Equipment Costs'!B:B,$E$21)+SUMIFS('5. Subcontracting Costs'!H:H,'5. Subcontracting Costs'!C:C,B29,'5. Subcontracting Costs'!B:B,$E$21) -> 0 | F29: =SUMIFS('1. Staff costs'!S:S,'1. Staff costs'!C:C,B29,'1. Staff costs'!B:B,$B$8)+SUMIFS('2-3. Travel Costs&Costs of Stay'!N:N,'2-3. Travel Costs&Costs of Stay'!C:C,B29,'2-3. Travel Costs&Costs of Stay'!B:B,$B$8)+SUMIFS('4. Equipment Costs'!H:H,'4. Equipment Costs'!C:C,B29,'4. Equipment Costs'!B:B,$B$8)+SUMIFS('5. Subcontracting Costs'!H:H,'5. Subcontracting Costs'!C:C,B29,'5. Subcontracting Costs'!B:B,$B$8) -> 0 | G29: =SUMIFS('1. Staff costs'!S:S,'1. Staff costs'!C:C,B29,'1. Staff costs'!B:B,$G$21)+SUMIFS('2-3. Travel Costs&Costs of Stay'!N:N,'2-3. Travel Costs&Costs of Stay'!C:C,B29,'2-3. Travel Costs&Costs of Stay'!B:B,$G$21)+SUMIFS('4. Equipment Costs'!H:H,'4. Equipment Costs'!C:C,B29,'4. Equipment Costs'!B:B,$G$21)+SUMIFS('5. Subcontracting Costs'!H:H,'5. Subcontracting Costs'!C:C,B29,'5. Subcontracting Costs'!B:B,$G$21) -> 0 | H29: 0 | I29: 0
B30: P9 | C30: =SUMIFS('1. Staff costs'!S:S,'1. Staff costs'!C:C,B30,'1. Staff costs'!B:B,$C$21)+SUMIFS('2-3. Travel Costs&Costs of Stay'!N:N,'2-3. Travel Costs&Costs of Stay'!C:C,B30,'2-3. Travel Costs&Costs of Stay'!B:B,$C$21)+SUMIFS('4. Equipment Costs'!H:H,'4. Equipment Costs'!C:C,B30,'4. Equipment Costs'!B:B,$C$21)+SUMIFS('5. Subcontracting Costs'!H:H,'5. Subcontracting Costs'!C:C,B30,'5. Subcontracting Costs'!B:B,$C$21) -> 0 | D30: =SUMIFS('1. Staff costs'!S:S,'1. Staff costs'!C:C,B30,'1. Staff costs'!B:B,$D$21)+SUMIFS('2-3. Travel Costs&Costs of Stay'!N:N,'2-3. Travel Costs&Costs of Stay'!C:C,B30,'2-3. Travel Costs&Costs of Stay'!B:B,$D$21)+SUMIFS('4. Equipment Costs'!H:H,'4. Equipment Costs'!C:C,B30,'4. Equipment Costs'!B:B,$D$21)+SUMIFS('5. Subcontracting Costs'!H:H,'5. Subcontracting Costs'!C:C,B30,'5. Subcontracting Costs'!B:B,$D$21) -> 0 | E30: =SUMIFS('1. Staff costs'!S:S,'1. Staff costs'!C:C,B30,'1. Staff costs'!B:B,$E$21)+SUMIFS('2-3. Travel Costs&Costs of Stay'!N:N,'2-3. Travel Costs&Costs of Stay'!C:C,B30,'2-3. Travel Costs&Costs of Stay'!B:B,$E$21)+SUMIFS('4. Equipment Costs'!H:H,'4. Equipment Costs'!C:C,B30,'4. Equipment Costs'!B:B,$E$21)+SUMIFS('5. Subcontracting Costs'!H:H,'5. Subcontracting Costs'!C:C,B30,'5. Subcontracting Costs'!B:B,$E$21) -> 0 | F30: =SUMIFS('1. Staff costs'!S:S,'1. Staff costs'!C:C,B30,'1. Staff costs'!B:B,$B$8)+SUMIFS('2-3. Travel Costs&Costs of Stay'!N:N,'2-3. Travel Costs&Costs of Stay'!C:C,B30,'2-3. Travel Costs&Costs of Stay'!B:B,$B$8)+SUMIFS('4. Equipment Costs'!H:H,'4. Equipment Costs'!C:C,B30,'4. Equipment Costs'!B:B,$B$8)+SUMIFS('5. Subcontracting Costs'!H:H,'5. Subcontracting Costs'!C:C,B30,'5. Subcontracting Costs'!B:B,$B$8) -> 0 | G30: =SUMIFS('1. Staff costs'!S:S,'1. Staff costs'!C:C,B30,'1. Staff costs'!B:B,$G$21)+SUMIFS('2-3. Travel Costs&Costs of Stay'!N:N,'2-3. Travel Costs&Costs of Stay'!C:C,B30,'2-3. Travel Costs&Costs of Stay'!B:B,$G$21)+SUMIFS('4. Equipment Costs'!H:H,'4. Equipment Costs'!C:C,B30,'4. Equipment Costs'!B:B,$G$21)+SUMIFS('5. Subcontracting Costs'!H:H,'5. Subcontracting Costs'!C:C,B30,'5. Subcontracting Costs'!B:B,$G$21) -> 0 | H30: 0 | I30: 0
B31: P10 | C31: =SUMIFS('1. Staff costs'!S:S,'1. Staff costs'!C:C,B31,'1. Staff costs'!B:B,$C$21)+SUMIFS('2-3. Travel Costs&Costs of Stay'!N:N,'2-3. Travel Costs&Costs of Stay'!C:C,B31,'2-3. Travel Costs&Costs of Stay'!B:B,$C$21)+SUMIFS('4. Equipment Costs'!H:H,'4. Equipment Costs'!C:C,B31,'4. Equipment Costs'!B:B,$C$21)+SUMIFS('5. Subcontracting Costs'!H:H,'5. Subcontracting Costs'!C:C,B31,'5. Subcontracting Costs'!B:B,$C$21) -> 0 | D31: =SUMIFS('1. Staff costs'!S:S,'1. Staff costs'!C:C,B31,'1. Staff costs'!B:B,$D$21)+SUMIFS('2-3. Travel Costs&Costs of Stay'!N:N,'2-3. Travel Costs&Costs of Stay'!C:C,B31,'2-3. Travel Costs&Costs of Stay'!B:B,$D$21)+SUMIFS('4. Equipment Costs'!H:H,'4. Equipment Costs'!C:C,B31,'4. Equipment Costs'!B:B,$D$21)+SUMIFS('5. Subcontracting Costs'!H:H,'5. Subcontracting Costs'!C:C,B31,'5. Subcontracting Costs'!B:B,$D$21) -> 0 | E31: =SUMIFS('1. Staff costs'!S:S,'1. Staff costs'!C:C,B31,'1. Staff costs'!B:B,$E$21)+SUMIFS('2-3. Travel Costs&Costs of Stay'!N:N,'2-3. Travel Costs&Costs of Stay'!C:C,B31,'2-3. Travel Costs&Costs of Stay'!B:B,$E$21)+SUMIFS('4. Equipment Costs'!H:H,'4. Equipment Costs'!C:C,B31,'4. Equipment Costs'!B:B,$E$21)+SUMIFS('5. Subcontracting Costs'!H:H,'5. Subcontracting Costs'!C:C,B31,'5. Subcontracting Costs'!B:B,$E$21) -> 0 | F31: =SUMIFS('1. Staff costs'!S:S,'1. Staff costs'!C:C,B31,'1. Staff costs'!B:B,$B$8)+SUMIFS('2-3. Travel Costs&Costs of Stay'!N:N,'2-3. Travel Costs&Costs of Stay'!C:C,B31,'2-3. Travel Costs&Costs of Stay'!B:B,$B$8)+SUMIFS('4. Equipment Costs'!H:H,'4. Equipment Costs'!C:C,B31,'4. Equipment Costs'!B:B,$B$8)+SUMIFS('5. Subcontracting Costs'!H:H,'5. Subcontracting Costs'!C:C,B31,'5. Subcontracting Costs'!B:B,$B$8) -> 0 | G31: =SUMIFS('1. Staff costs'!S:S,'1. Staff costs'!C:C,B31,'1. Staff costs'!B:B,$G$21)+SUMIFS('2-3. Travel Costs&Costs of Stay'!N:N,'2-3. Travel Costs&Costs of Stay'!C:C,B31,'2-3. Travel Costs&Costs of Stay'!B:B,$G$21)+SUMIFS('4. Equipment Costs'!H:H,'4. Equipment Costs'!C:C,B31,'4. Equipment Costs'!B:B,$G$21)+SUMIFS('5. Subcontracting Costs'!H:H,'5. Subcontracting Costs'!C:C,B31,'5. Subcontracting Costs'!B:B,$G$21) -> 0 | H31: 0 | I31: 0
B32: P11 | C32: =SUMIFS('1. Staff costs'!S:S,'1. Staff costs'!C:C,B32,'1. Staff costs'!B:B,$C$21)+SUMIFS('2-3. Travel Costs&Costs of Stay'!N:N,'2-3. Travel Costs&Costs of Stay'!C:C,B32,'2-3. Travel Costs&Costs of Stay'!B:B,$C$21)+SUMIFS('4. Equipment Costs'!H:H,'4. Equipment Costs'!C:C,B32,'4. Equipment Costs'!B:B,$C$21)+SUMIFS('5. Subcontracting Costs'!H:H,'5. Subcontracting Costs'!C:C,B32,'5. Subcontracting Costs'!B:B,$C$21) -> 0 | D32: =SUMIFS('1. Staff costs'!S:S,'1. Staff costs'!C:C,B32,'1. Staff costs'!B:B,$D$21)+SUMIFS('2-3. Travel Costs&Costs of Stay'!N:N,'2-3. Travel Costs&Costs of Stay'!C:C,B32,'2-3. Travel Costs&Costs of Stay'!B:B,$D$21)+SUMIFS('4. Equipment Costs'!H:H,'4. Equipment Costs'!C:C,B32,'4. Equipment Costs'!B:B,$D$21)+SUMIFS('5. Subcontracting Costs'!H:H,'5. Subcontracting Costs'!C:C,B32,'5. Subcontracting Costs'!B:B,$D$21) -> 0 | E32: =SUMIFS('1. Staff costs'!S:S,'1. Staff costs'!C:C,B32,'1. Staff costs'!B:B,$E$21)+SUMIFS('2-3. Travel Costs&Costs of Stay'!N:N,'2-3. Travel Costs&Costs of Stay'!C:C,B32,'2-3. Travel Costs&Costs of Stay'!B:B,$E$21)+SUMIFS('4. Equipment Costs'!H:H,'4. Equipment Costs'!C:C,B32,'4. Equipment Costs'!B:B,$E$21)+SUMIFS('5. Subcontracting Costs'!H:H,'5. Subcontracting Costs'!C:C,B32,'5. Subcontracting Costs'!B:B,$E$21) -> 0 | F32: =SUMIFS('1. Staff costs'!S:S,'1. Staff costs'!C:C,B32,'1. Staff costs'!B:B,$B$8)+SUMIFS('2-3. Travel Costs&Costs of Stay'!N:N,'2-3. Travel Costs&Costs of Stay'!C:C,B32,'2-3. Travel Costs&Costs of Stay'!B:B,$B$8)+SUMIFS('4. Equipment Costs'!H:H,'4. Equipment Costs'!C:C,B32,'4. Equipment Costs'!B:B,$B$8)+SUMIFS('5. Subcontracting Costs'!H:H,'5. Subcontracting Costs'!C:C,B32,'5. Subcontracting Costs'!B:B,$B$8) -> 0 | G32: =SUMIFS('1. Staff costs'!S:S,'1. Staff costs'!C:C,B32,'1. Staff costs'!B:B,$G$21)+SUMIFS('2-3. Travel Costs&Costs of Stay'!N:N,'2-3. Travel Costs&Costs of Stay'!C:C,B32,'2-3. Travel Costs&Costs of Stay'!B:B,$G$21)+SUMIFS('4. Equipment Costs'!H:H,'4. Equipment Costs'!C:C,B32,'4. Equipment Costs'!B:B,$G$21)+SUMIFS('5. Subcontracting Costs'!H:H,'5. Subcontracting Costs'!C:C,B32,'5. Subcontracting Costs'!B:B,$G$21) -> 0 | H32: 0 | I32: 0
B33: P12 | C33: =SUMIFS('1. Staff costs'!S:S,'1. Staff costs'!C:C,B33,'1. Staff costs'!B:B,$C$21)+SUMIFS('2-3. Travel Costs&Costs of Stay'!N:N,'2-3. Travel Costs&Costs of Stay'!C:C,B33,'2-3. Travel Costs&Costs of Stay'!B:B,$C$21)+SUMIFS('4. Equipment Costs'!H:H,'4. Equipment Costs'!C:C,B33,'4. Equipment Costs'!B:B,$C$21)+SUMIFS('5. Subcontracting Costs'!H:H,'5. Subcontracting Costs'!C:C,B33,'5. Subcontracting Costs'!B:B,$C$21) -> 0 | D33: =SUMIFS('1. Staff costs'!S:S,'1. Staff costs'!C:C,B33,'1. Staff costs'!B:B,$D$21)+SUMIFS('2-3. Travel Costs&Costs of Stay'!N:N,'2-3. Travel Costs&Costs of Stay'!C:C,B33,'2-3. Travel Costs&Costs of Stay'!B:B,$D$21)+SUMIFS('4. Equipment Costs'!H:H,'4. Equipment Costs'!C:C,B33,'4. Equipment Costs'!B:B,$D$21)+SUMIFS('5. Subcontracting Costs'!H:H,'5. Subcontracting Costs'!C:C,B33,'5. Subcontracting Costs'!B:B,$D$21) -> 0 | E33: =SUMIFS('1. Staff costs'!S:S,'1. Staff costs'!C:C,B33,'1. Staff costs'!B:B,$E$21)+SUMIFS('2-3. Travel Costs&Costs of Stay'!N:N,'2-3. Travel Costs&Costs of Stay'!C:C,B33,'2-3. Travel Costs&Costs of Stay'!B:B,$E$21)+SUMIFS('4. Equipment Costs'!H:H,'4. Equipment Costs'!C:C,B33,'4. Equipment Costs'!B:B,$E$21)+SUMIFS('5. Subcontracting Costs'!H:H,'5. Subcontracting Costs'!C:C,B33,'5. Subcontracting Costs'!B:B,$E$21) -> 0 | F33: =SUMIFS('1. Staff costs'!S:S,'1. Staff costs'!C:C,B33,'1. Staff costs'!B:B,$B$8)+SUMIFS('2-3. Travel Costs&Costs of Stay'!N:N,'2-3. Travel Costs&Costs of Stay'!C:C,B33,'2-3. Travel Costs&Costs of Stay'!B:B,$B$8)+SUMIFS('4. Equipment Costs'!H:H,'4. Equipment Costs'!C:C,B33,'4. Equipment Costs'!B:B,$B$8)+SUMIFS('5. Subcontracting Costs'!H:H,'5. Subcontracting Costs'!C:C,B33,'5. Subcontracting Costs'!B:B,$B$8) -> 0 | G33: =SUMIFS('1. Staff costs'!S:S,'1. Staff costs'!C:C,B33,'1. Staff costs'!B:B,$G$21)+SUMIFS('2-3. Travel Costs&Costs of Stay'!N:N,'2-3. Travel Costs&Costs of Stay'!C:C,B33,'2-3. Travel Costs&Costs of Stay'!B:B,$G$21)+SUMIFS('4. Equipment Costs'!H:H,'4. Equipment Costs'!C:C,B33,'4. Equipment Costs'!B:B,$G$21)+SUMIFS('5. Subcontracting Costs'!H:H,'5. Subcontracting Costs'!C:C,B33,'5. Subcontracting Costs'!B:B,$G$21) -> 0 | H33: 0 | I33: 0
B34: P13 | C34: =SUMIFS('1. Staff costs'!S:S,'1. Staff costs'!C:C,B34,'1. Staff costs'!B:B,$C$21)+SUMIFS('2-3. Travel Costs&Costs of Stay'!N:N,'2-3. Travel Costs&Costs of Stay'!C:C,B34,'2-3. Travel Costs&Costs of Stay'!B:B,$C$21)+SUMIFS('4. Equipment Costs'!H:H,'4. Equipment Costs'!C:C,B34,'4. Equipment Costs'!B:B,$C$21)+SUMIFS('5. Subcontracting Costs'!H:H,'5. Subcontracting Costs'!C:C,B34,'5. Subcontracting Costs'!B:B,$C$21) -> 0 | D34: =SUMIFS('1. Staff costs'!S:S,'1. Staff costs'!C:C,B34,'1. Staff costs'!B:B,$D$21)+SUMIFS('2-3. Travel Costs&Costs of Stay'!N:N,'2-3. Travel Costs&Costs of Stay'!C:C,B34,'2-3. Travel Costs&Costs of Stay'!B:B,$D$21)+SUMIFS('4. Equipment Costs'!H:H,'4. Equipment Costs'!C:C,B34,'4. Equipment Costs'!B:B,$D$21)+SUMIFS('5. Subcontracting Costs'!H:H,'5. Subcontracting Costs'!C:C,B34,'5. Subcontracting Costs'!B:B,$D$21) -> 0 | E34: =SUMIFS('1. Staff costs'!S:S,'1. Staff costs'!C:C,B34,'1. Staff costs'!B:B,$E$21)+SUMIFS('2-3. Travel Costs&Costs of Stay'!N:N,'2-3. Travel Costs&Costs of Stay'!C:C,B34,'2-3. Travel Costs&Costs of Stay'!B:B,$E$21)+SUMIFS('4. Equipment Costs'!H:H,'4. Equipment Costs'!C:C,B34,'4. Equipment Costs'!B:B,$E$21)+SUMIFS('5. Subcontracting Costs'!H:H,'5. Subcontracting Costs'!C:C,B34,'5. Subcontracting Costs'!B:B,$E$21) -> 0 | F34: =SUMIFS('1. Staff costs'!S:S,'1. Staff costs'!C:C,B34,'1. Staff costs'!B:B,$B$8)+SUMIFS('2-3. Travel Costs&Costs of Stay'!N:N,'2-3. Travel Costs&Costs of Stay'!C:C,B34,'2-3. Travel Costs&Costs of Stay'!B:B,$B$8)+SUMIFS('4. Equipment Costs'!H:H,'4. Equipment Costs'!C:C,B34,'4. Equipment Costs'!B:B,$B$8)+SUMIFS('5. Subcontracting Costs'!H:H,'5. Subcontracting Costs'!C:C,B34,'5. Subcontracting Costs'!B:B,$B$8) -> 0 | G34: =SUMIFS('1. Staff costs'!S:S,'1. Staff costs'!C:C,B34,'1. Staff costs'!B:B,$G$21)+SUMIFS('2-3. Travel Costs&Costs of Stay'!N:N,'2-3. Travel Costs&Costs of Stay'!C:C,B34,'2-3. Travel Costs&Costs of Stay'!B:B,$G$21)+SUMIFS('4. Equipment Costs'!H:H,'4. Equipment Costs'!C:C,B34,'4. Equipment Costs'!B:B,$G$21)+SUMIFS('5. Subcontracting Costs'!H:H,'5. Subcontracting Costs'!C:C,B34,'5. Subcontracting Costs'!B:B,$G$21) -> 0 | H34: 0 | I34: 0
B35: P14 | C35: =SUMIFS('1. Staff costs'!S:S,'1. Staff costs'!C:C,B35,'1. Staff costs'!B:B,$C$21)+SUMIFS('2-3. Travel Costs&Costs of Stay'!N:N,'2-3. Travel Costs&Costs of Stay'!C:C,B35,'2-3. Travel Costs&Costs of Stay'!B:B,$C$21)+SUMIFS('4. Equipment Costs'!H:H,'4. Equipment Costs'!C:C,B35,'4. Equipment Costs'!B:B,$C$21)+SUMIFS('5. Subcontracting Costs'!H:H,'5. Subcontracting Costs'!C:C,B35,'5. Subcontracting Costs'!B:B,$C$21) -> 0 | D35: =SUMIFS('1. Staff costs'!S:S,'1. Staff costs'!C:C,B35,'1. Staff costs'!B:B,$D$21)+SUMIFS('2-3. Travel Costs&Costs of Stay'!N:N,'2-3. Travel Costs&Costs of Stay'!C:C,B35,'2-3. Travel Costs&Costs of Stay'!B:B,$D$21)+SUMIFS('4. Equipment Costs'!H:H,'4. Equipment Costs'!C:C,B35,'4. Equipment Costs'!B:B,$D$21)+SUMIFS('5. Subcontracting Costs'!H:H,'5. Subcontracting Costs'!C:C,B35,'5. Subcontracting Costs'!B:B,$D$21) -> 0 | E35: =SUMIFS('1. Staff costs'!S:S,'1. Staff costs'!C:C,B35,'1. Staff costs'!B:B,$E$21)+SUMIFS('2-3. Travel Costs&Costs of Stay'!N:N,'2-3. Travel Costs&Costs of Stay'!C:C,B35,'2-3. Travel Costs&Costs of Stay'!B:B,$E$21)+SUMIFS('4. Equipment Costs'!H:H,'4. Equipment Costs'!C:C,B35,'4. Equipment Costs'!B:B,$E$21)+SUMIFS('5. Subcontracting Costs'!H:H,'5. Subcontracting Costs'!C:C,B35,'5. Subcontracting Costs'!B:B,$E$21) -> 0 | F35: =SUMIFS('1. Staff costs'!S:S,'1. Staff costs'!C:C,B35,'1. Staff costs'!B:B,$B$8)+SUMIFS('2-3. Travel Costs&Costs of Stay'!N:N,'2-3. Travel Costs&Costs of Stay'!C:C,B35,'2-3. Travel Costs&Costs of Stay'!B:B,$B$8)+SUMIFS('4. Equipment Costs'!H:H,'4. Equipment Costs'!C:C,B35,'4. Equipment Costs'!B:B,$B$8)+SUMIFS('5. Subcontracting Costs'!H:H,'5. Subcontracting Costs'!C:C,B35,'5. Subcontracting Costs'!B:B,$B$8) -> 0 | G35: =SUMIFS('1. Staff costs'!S:S,'1. Staff costs'!C:C,B35,'1. Staff costs'!B:B,$G$21)+SUMIFS('2-3. Travel Costs&Costs of Stay'!N:N,'2-3. Travel Costs&Costs of Stay'!C:C,B35,'2-3. Travel Costs&Costs of Stay'!B:B,$G$21)+SUMIFS('4. Equipment Costs'!H:H,'4. Equipment Costs'!C:C,B35,'4. Equipment Costs'!B:B,$G$21)+SUMIFS('5. Subcontracting Costs'!H:H,'5. Subcontracting Costs'!C:C,B35,'5. Subcontracting Costs'!B:B,$G$21) -> 0 | H35: 0 | I35: 0
B36: P15 | C36: =SUMIFS('1. Staff costs'!S:S,'1. Staff costs'!C:C,B36,'1. Staff costs'!B:B,$C$21)+SUMIFS('2-3. Travel Costs&Costs of Stay'!N:N,'2-3. Travel Costs&Costs of Stay'!C:C,B36,'2-3. Travel Costs&Costs of Stay'!B:B,$C$21)+SUMIFS('4. Equipment Costs'!H:H,'4. Equipment Costs'!C:C,B36,'4. Equipment Costs'!B:B,$C$21)+SUMIFS('5. Subcontracting Costs'!H:H,'5. Subcontracting Costs'!C:C,B36,'5. Subcontracting Costs'!B:B,$C$21) -> 0 | D36: =SUMIFS('1. Staff costs'!S:S,'1. Staff costs'!C:C,B36,'1. Staff costs'!B:B,$D$21)+SUMIFS('2-3. Travel Costs&Costs of Stay'!N:N,'2-3. Travel Costs&Costs of Stay'!C:C,B36,'2-3. Travel Costs&Costs of Stay'!B:B,$D$21)+SUMIFS('4. Equipment Costs'!H:H,'4. Equipment Costs'!C:C,B36,'4. Equipment Costs'!B:B,$D$21)+SUMIFS('5. Subcontracting Costs'!H:H,'5. Subcontracting Costs'!C:C,B36,'5. Subcontracting Costs'!B:B,$D$21) -> 0 | E36: =SUMIFS('1. Staff costs'!S:S,'1. Staff costs'!C:C,B36,'1. Staff costs'!B:B,$E$21)+SUMIFS('2-3. Travel Costs&Costs of Stay'!N:N,'2-3. Travel Costs&Costs of Stay'!C:C,B36,'2-3. Travel Costs&Costs of Stay'!B:B,$E$21)+SUMIFS('4. Equipment Costs'!H:H,'4. Equipment Costs'!C:C,B36,'4. Equipment Costs'!B:B,$E$21)+SUMIFS('5. Subcontracting Costs'!H:H,'5. Subcontracting Costs'!C:C,B36,'5. Subcontracting Costs'!B:B,$E$21) -> 0 | F36: =SUMIFS('1. Staff costs'!S:S,'1. Staff costs'!C:C,B36,'1. Staff costs'!B:B,$B$8)+SUMIFS('2-3. Travel Costs&Costs of Stay'!N:N,'2-3. Travel Costs&Costs of Stay'!C:C,B36,'2-3. Travel Costs&Costs of Stay'!B:B,$B$8)+SUMIFS('4. Equipment Costs'!H:H,'4. Equipment Costs'!C:C,B36,'4. Equipment Costs'!B:B,$B$8)+SUMIFS('5. Subcontracting Costs'!H:H,'5. Subcontracting Costs'!C:C,B36,'5. Subcontracting Costs'!B:B,$B$8) -> 0 | G36: =SUMIFS('1. Staff costs'!S:S,'1. Staff costs'!C:C,B36,'1. Staff costs'!B:B,$G$21)+SUMIFS('2-3. Travel Costs&Costs of Stay'!N:N,'2-3. Travel Costs&Costs of Stay'!C:C,B36,'2-3. Travel Costs&Costs of Stay'!B:B,$G$21)+SUMIFS('4. Equipment Costs'!H:H,'4. Equipment Costs'!C:C,B36,'4. Equipment Costs'!B:B,$G$21)+SUMIFS('5. Subcontracting Costs'!H:H,'5. Subcontracting Costs'!C:C,B36,'5. Subcontracting Costs'!B:B,$G$21) -> 0 | H36: 0 | I36: 0
B37: P16 | C37: =SUMIFS('1. Staff costs'!S:S,'1. Staff costs'!C:C,B37,'1. Staff costs'!B:B,$C$21)+SUMIFS('2-3. Travel Costs&Costs of Stay'!N:N,'2-3. Travel Costs&Costs of Stay'!C:C,B37,'2-3. Travel Costs&Costs of Stay'!B:B,$C$21)+SUMIFS('4. Equipment Costs'!H:H,'4. Equipment Costs'!C:C,B37,'4. Equipment Costs'!B:B,$C$21)+SUMIFS('5. Subcontracting Costs'!H:H,'5. Subcontracting Costs'!C:C,B37,'5. Subcontracting Costs'!B:B,$C$21) -> 0 | D37: =SUMIFS('1. Staff costs'!S:S,'1. Staff costs'!C:C,B37,'1. Staff costs'!B:B,$D$21)+SUMIFS('2-3. Travel Costs&Costs of Stay'!N:N,'2-3. Travel Costs&Costs of Stay'!C:C,B37,'2-3. Travel Costs&Costs of Stay'!B:B,$D$21)+SUMIFS('4. Equipment Costs'!H:H,'4. Equipment Costs'!C:C,B37,'4. Equipment Costs'!B:B,$D$21)+SUMIFS('5. Subcontracting Costs'!H:H,'5. Subcontracting Costs'!C:C,B37,'5. Subcontracting Costs'!B:B,$D$21) -> 0 | E37: =SUMIFS('1. Staff costs'!S:S,'1. Staff costs'!C:C,B37,'1. Staff costs'!B:B,$E$21)+SUMIFS('2-3. Travel Costs&Costs of Stay'!N:N,'2-3. Travel Costs&Costs of Stay'!C:C,B37,'2-3. Travel Costs&Costs of Stay'!B:B,$E$21)+SUMIFS('4. Equipment Costs'!H:H,'4. Equipment Costs'!C:C,B37,'4. Equipment Costs'!B:B,$E$21)+SUMIFS('5. Subcontracting Costs'!H:H,'5. Subcontracting Costs'!C:C,B37,'5. Subcontracting Costs'!B:B,$E$21) -> 0 | F37: =SUMIFS('1. Staff costs'!S:S,'1. Staff costs'!C:C,B37,'1. Staff costs'!B:B,$B$8)+SUMIFS('2-3. Travel Costs&Costs of Stay'!N:N,'2-3. Travel Costs&Costs of Stay'!C:C,B37,'2-3. Travel Costs&Costs of Stay'!B:B,$B$8)+SUMIFS('4. Equipment Costs'!H:H,'4. Equipment Costs'!C:C,B37,'4. Equipment Costs'!B:B,$B$8)+SUMIFS('5. Subcontracting Costs'!H:H,'5. Subcontracting Costs'!C:C,B37,'5. Subcontracting Costs'!B:B,$B$8) -> 0 | G37: =SUMIFS('1. Staff costs'!S:S,'1. Staff costs'!C:C,B37,'1. Staff costs'!B:B,$G$21)+SUMIFS('2-3. Travel Costs&Costs of Stay'!N:N,'2-3. Travel Costs&Costs of Stay'!C:C,B37,'2-3. Travel Costs&Costs of Stay'!B:B,$G$21)+SUMIFS('4. Equipment Costs'!H:H,'4. Equipment Costs'!C:C,B37,'4. Equipment Costs'!B:B,$G$21)+SUMIFS('5. Subcontracting Costs'!H:H,'5. Subcontracting Costs'!C:C,B37,'5. Subcontracting Costs'!B:B,$G$21) -> 0 | H37: 0 | I37: 0
B38: P17 | C38: =SUMIFS('1. Staff costs'!S:S,'1. Staff costs'!C:C,B38,'1. Staff costs'!B:B,$C$21)+SUMIFS('2-3. Travel Costs&Costs of Stay'!N:N,'2-3. Travel Costs&Costs of Stay'!C:C,B38,'2-3. Travel Costs&Costs of Stay'!B:B,$C$21)+SUMIFS('4. Equipment Costs'!H:H,'4. Equipment Costs'!C:C,B38,'4. Equipment Costs'!B:B,$C$21)+SUMIFS('5. Subcontracting Costs'!H:H,'5. Subcontracting Costs'!C:C,B38,'5. Subcontracting Costs'!B:B,$C$21) -> 0 | D38: =SUMIFS('1. Staff costs'!S:S,'1. Staff costs'!C:C,B38,'1. Staff costs'!B:B,$D$21)+SUMIFS('2-3. Travel Costs&Costs of Stay'!N:N,'2-3. Travel Costs&Costs of Stay'!C:C,B38,'2-3. Travel Costs&Costs of Stay'!B:B,$D$21)+SUMIFS('4. Equipment Costs'!H:H,'4. Equipment Costs'!C:C,B38,'4. Equipment Costs'!B:B,$D$21)+SUMIFS('5. Subcontracting Costs'!H:H,'5. Subcontracting Costs'!C:C,B38,'5. Subcontracting Costs'!B:B,$D$21) -> 0 | E38: =SUMIFS('1. Staff costs'!S:S,'1. Staff costs'!C:C,B38,'1. Staff costs'!B:B,$E$21)+SUMIFS('2-3. Travel Costs&Costs of Stay'!N:N,'2-3. Travel Costs&Costs of Stay'!C:C,B38,'2-3. Travel Costs&Costs of Stay'!B:B,$E$21)+SUMIFS('4. Equipment Costs'!H:H,'4. Equipment Costs'!C:C,B38,'4. Equipment Costs'!B:B,$E$21)+SUMIFS('5. Subcontracting Costs'!H:H,'5. Subcontracting Costs'!C:C,B38,'5. Subcontracting Costs'!B:B,$E$21) -> 0 | F38: =SUMIFS('1. Staff costs'!S:S,'1. Staff costs'!C:C,B38,'1. Staff costs'!B:B,$B$8)+SUMIFS('2-3. Travel Costs&Costs of Stay'!N:N,'2-3. Travel Costs&Costs of Stay'!C:C,B38,'2-3. Travel Costs&Costs of Stay'!B:B,$B$8)+SUMIFS('4. Equipment Costs'!H:H,'4. Equipment Costs'!C:C,B38,'4. Equipment Costs'!B:B,$B$8)+SUMIFS('5. Subcontracting Costs'!H:H,'5. Subcontracting Costs'!C:C,B38,'5. Subcontracting Costs'!B:B,$B$8) -> 0 | G38: =SUMIFS('1. Staff costs'!S:S,'1. Staff costs'!C:C,B38,'1. Staff costs'!B:B,$G$21)+SUMIFS('2-3. Travel Costs&Costs of Stay'!N:N,'2-3. Travel Costs&Costs of Stay'!C:C,B38,'2-3. Travel Costs&Costs of Stay'!B:B,$G$21)+SUMIFS('4. Equipment Costs'!H:H,'4. Equipment Costs'!C:C,B38,'4. Equipment Costs'!B:B,$G$21)+SUMIFS('5. Subcontracting Costs'!H:H,'5. Subcontracting Costs'!C:C,B38,'5. Subcontracting Costs'!B:B,$G$21) -> 0 | H38: 0 | I38: 0
B39: P18 | C39: =SUMIFS('1. Staff costs'!S:S,'1. Staff costs'!C:C,B39,'1. Staff costs'!B:B,$C$21)+SUMIFS('2-3. Travel Costs&Costs of Stay'!N:N,'2-3. Travel Costs&Costs of Stay'!C:C,B39,'2-3. Travel Costs&Costs of Stay'!B:B,$C$21)+SUMIFS('4. Equipment Costs'!H:H,'4. Equipment Costs'!C:C,B39,'4. Equipment Costs'!B:B,$C$21)+SUMIFS('5. Subcontracting Costs'!H:H,'5. Subcontracting Costs'!C:C,B39,'5. Subcontracting Costs'!B:B,$C$21) -> 0 | D39: =SUMIFS('1. Staff costs'!S:S,'1. Staff costs'!C:C,B39,'1. Staff costs'!B:B,$D$21)+SUMIFS('2-3. Travel Costs&Costs of Stay'!N:N,'2-3. Travel Costs&Costs of Stay'!C:C,B39,'2-3. Travel Costs&Costs of Stay'!B:B,$D$21)+SUMIFS('4. Equipment Costs'!H:H,'4. Equipment Costs'!C:C,B39,'4. Equipment Costs'!B:B,$D$21)+SUMIFS('5. Subcontracting Costs'!H:H,'5. Subcontracting Costs'!C:C,B39,'5. Subcontracting Costs'!B:B,$D$21) -> 0 | E39: =SUMIFS('1. Staff costs'!S:S,'1. Staff costs'!C:C,B39,'1. Staff costs'!B:B,$E$21)+SUMIFS('2-3. Travel Costs&Costs of Stay'!N:N,'2-3. Travel Costs&Costs of Stay'!C:C,B39,'2-3. Travel Costs&Costs of Stay'!B:B,$E$21)+SUMIFS('4. Equipment Costs'!H:H,'4. Equipment Costs'!C:C,B39,'4. Equipment Costs'!B:B,$E$21)+SUMIFS('5. Subcontracting Costs'!H:H,'5. Subcontracting Costs'!C:C,B39,'5. Subcontracting Costs'!B:B,$E$21) -> 0 | F39: =SUMIFS('1. Staff costs'!S:S,'1. Staff costs'!C:C,B39,'1. Staff costs'!B:B,$B$8)+SUMIFS('2-3. Travel Costs&Costs of Stay'!N:N,'2-3. Travel Costs&Costs of Stay'!C:C,B39,'2-3. Travel Costs&Costs of Stay'!B:B,$B$8)+SUMIFS('4. Equipment Costs'!H:H,'4. Equipment Costs'!C:C,B39,'4. Equipment Costs'!B:B,$B$8)+SUMIFS('5. Subcontracting Costs'!H:H,'5. Subcontracting Costs'!C:C,B39,'5. Subcontracting Costs'!B:B,$B$8) -> 0 | G39: =SUMIFS('1. Staff costs'!S:S,'1. Staff costs'!C:C,B39,'1. Staff costs'!B:B,$G$21)+SUMIFS('2-3. Travel Costs&Costs of Stay'!N:N,'2-3. Travel Costs&Costs of Stay'!C:C,B39,'2-3. Travel Costs&Costs of Stay'!B:B,$G$21)+SUMIFS('4. Equipment Costs'!H:H,'4. Equipment Costs'!C:C,B39,'4. Equipment Costs'!B:B,$G$21)+SUMIFS('5. Subcontracting Costs'!H:H,'5. Subcontracting Costs'!C:C,B39,'5. Subcontracting Costs'!B:B,$G$21) -> 0 | H39: 0 | I39: 0
B40: P19 | C40: =SUMIFS('1. Staff costs'!S:S,'1. Staff costs'!C:C,B40,'1. Staff costs'!B:B,$C$21)+SUMIFS('2-3. Travel Costs&Costs of Stay'!N:N,'2-3. Travel Costs&Costs of Stay'!C:C,B40,'2-3. Travel Costs&Costs of Stay'!B:B,$C$21)+SUMIFS('4. Equipment Costs'!H:H,'4. Equipment Costs'!C:C,B40,'4. Equipment Costs'!B:B,$C$21)+SUMIFS('5. Subcontracting Costs'!H:H,'5. Subcontracting Costs'!C:C,B40,'5. Subcontracting Costs'!B:B,$C$21) -> 0 | D40: =SUMIFS('1. Staff costs'!S:S,'1. Staff costs'!C:C,B40,'1. Staff costs'!B:B,$D$21)+SUMIFS('2-3. Travel Costs&Costs of Stay'!N:N,'2-3. Travel Costs&Costs of Stay'!C:C,B40,'2-3. Travel Costs&Costs of Stay'!B:B,$D$21)+SUMIFS('4. Equipment Costs'!H:H,'4. Equipment Costs'!C:C,B40,'4. Equipment Costs'!B:B,$D$21)+SUMIFS('5. Subcontracting Costs'!H:H,'5. Subcontracting Costs'!C:C,B40,'5. Subcontracting Costs'!B:B,$D$21) -> 0 | E40: =SUMIFS('1. Staff costs'!S:S,'1. Staff costs'!C:C,B40,'1. Staff costs'!B:B,$E$21)+SUMIFS('2-3. Travel Costs&Costs of Stay'!N:N,'2-3. Travel Costs&Costs of Stay'!C:C,B40,'2-3. Travel Costs&Costs of Stay'!B:B,$E$21)+SUMIFS('4. Equipment Costs'!H:H,'4. Equipment Costs'!C:C,B40,'4. Equipment Costs'!B:B,$E$21)+SUMIFS('5. Subcontracting Costs'!H:H,'5. Subcontracting Costs'!C:C,B40,'5. Subcontracting Costs'!B:B,$E$21) -> 0 | F40: =SUMIFS('1. Staff costs'!S:S,'1. Staff costs'!C:C,B40,'1. Staff costs'!B:B,$B$8)+SUMIFS('2-3. Travel Costs&Costs of Stay'!N:N,'2-3. Travel Costs&Costs of Stay'!C:C,B40,'2-3. Travel Costs&Costs of Stay'!B:B,$B$8)+SUMIFS('4. Equipment Costs'!H:H,'4. Equipment Costs'!C:C,B40,'4. Equipment Costs'!B:B,$B$8)+SUMIFS('5. Subcontracting Costs'!H:H,'5. Subcontracting Costs'!C:C,B40,'5. Subcontracting Costs'!B:B,$B$8) -> 0 | G40: =SUMIFS('1. Staff costs'!S:S,'1. Staff costs'!C:C,B40,'1. Staff costs'!B:B,$G$21)+SUMIFS('2-3. Travel Costs&Costs of Stay'!N:N,'2-3. Travel Costs&Costs of Stay'!C:C,B40,'2-3. Travel Costs&Costs of Stay'!B:B,$G$21)+SUMIFS('4. Equipment Costs'!H:H,'4. Equipment Costs'!C:C,B40,'4. Equipment Costs'!B:B,$G$21)+SUMIFS('5. Subcontracting Costs'!H:H,'5. Subcontracting Costs'!C:C,B40,'5. Subcontracting Costs'!B:B,$G$21) -> 0 | H40: 0 | I40: 0
B41: P20 | C41: =SUMIFS('1. Staff costs'!S:S,'1. Staff costs'!C:C,B41,'1. Staff costs'!B:B,$C$21)+SUMIFS('2-3. Travel Costs&Costs of Stay'!N:N,'2-3. Travel Costs&Costs of Stay'!C:C,B41,'2-3. Travel Costs&Costs of Stay'!B:B,$C$21)+SUMIFS('4. Equipment Costs'!H:H,'4. Equipment Costs'!C:C,B41,'4. Equipment Costs'!B:B,$C$21)+SUMIFS('5. Subcontracting Costs'!H:H,'5. Subcontracting Costs'!C:C,B41,'5. Subcontracting Costs'!B:B,$C$21) -> 0 | D41: =SUMIFS('1. Staff costs'!S:S,'1. Staff costs'!C:C,B41,'1. Staff costs'!B:B,$D$21)+SUMIFS('2-3. Travel Costs&Costs of Stay'!N:N,'2-3. Travel Costs&Costs of Stay'!C:C,B41,'2-3. Travel Costs&Costs of Stay'!B:B,$D$21)+SUMIFS('4. Equipment Costs'!H:H,'4. Equipment Costs'!C:C,B41,'4. Equipment Costs'!B:B,$D$21)+SUMIFS('5. Subcontracting Costs'!H:H,'5. Subcontracting Costs'!C:C,B41,'5. Subcontracting Costs'!B:B,$D$21) -> 0 | E41: =SUMIFS('1. Staff costs'!S:S,'1. Staff costs'!C:C,B41,'1. Staff costs'!B:B,$E$21)+SUMIFS('2-3. Travel Costs&Costs of Stay'!N:N,'2-3. Travel Costs&Costs of Stay'!C:C,B41,'2-3. Travel Costs&Costs of Stay'!B:B,$E$21)+SUMIFS('4. Equipment Costs'!H:H,'4. Equipment Costs'!C:C,B41,'4. Equipment Costs'!B:B,$E$21)+SUMIFS('5. Subcontracting Costs'!H:H,'5. Subcontracting Costs'!C:C,B41,'5. Subcontracting Costs'!B:B,$E$21) -> 0 | F41: =SUMIFS('1. Staff costs'!S:S,'1. Staff costs'!C:C,B41,'1. Staff costs'!B:B,$B$8)+SUMIFS('2-3. Travel Costs&Costs of Stay'!N:N,'2-3. Travel Costs&Costs of Stay'!C:C,B41,'2-3. Travel Costs&Costs of Stay'!B:B,$B$8)+SUMIFS('4. Equipment Costs'!H:H,'4. Equipment Costs'!C:C,B41,'4. Equipment Costs'!B:B,$B$8)+SUMIFS('5. Subcontracting Costs'!H:H,'5. Subcontracting Costs'!C:C,B41,'5. Subcontracting Costs'!B:B,$B$8) -> 0 | G41: =SUMIFS('1. Staff costs'!S:S,'1. Staff costs'!C:C,B41,'1. Staff costs'!B:B,$G$21)+SUMIFS('2-3. Travel Costs&Costs of Stay'!N:N,'2-3. Travel Costs&Costs of Stay'!C:C,B41,'2-3. Travel Costs&Costs of Stay'!B:B,$G$21)+SUMIFS('4. Equipment Costs'!H:H,'4. Equipment Costs'!C:C,B41,'4. Equipment Costs'!B:B,$G$21)+SUMIFS('5. Subcontracting Costs'!H:H,'5. Subcontracting Costs'!C:C,B41,'5. Subcontracting Costs'!B:B,$G$21) -> 0 | H41: 0 | I41: 0
B42: P21 | C42: =SUMIFS('1. Staff costs'!S:S,'1. Staff costs'!C:C,B42,'1. Staff costs'!B:B,$C$21)+SUMIFS('2-3. Travel Costs&Costs of Stay'!N:N,'2-3. Travel Costs&Costs of Stay'!C:C,B42,'2-3. Travel Costs&Costs of Stay'!B:B,$C$21)+SUMIFS('4. Equipment Costs'!H:H,'4. Equipment Costs'!C:C,B42,'4. Equipment Costs'!B:B,$C$21)+SUMIFS('5. Subcontracting Costs'!H:H,'5. Subcontracting Costs'!C:C,B42,'5. Subcontracting Costs'!B:B,$C$21) -> 0 | D42: =SUMIFS('1. Staff costs'!S:S,'1. Staff costs'!C:C,B42,'1. Staff costs'!B:B,$D$21)+SUMIFS('2-3. Travel Costs&Costs of Stay'!N:N,'2-3. Travel Costs&Costs of Stay'!C:C,B42,'2-3. Travel Costs&Costs of Stay'!B:B,$D$21)+SUMIFS('4. Equipment Costs'!H:H,'4. Equipment Costs'!C:C,B42,'4. Equipment Costs'!B:B,$D$21)+SUMIFS('5. Subcontracting Costs'!H:H,'5. Subcontracting Costs'!C:C,B42,'5. Subcontracting Costs'!B:B,$D$21) -> 0 | E42: =SUMIFS('1. Staff costs'!S:S,'1. Staff costs'!C:C,B42,'1. Staff costs'!B:B,$E$21)+SUMIFS('2-3. Travel Costs&Costs of Stay'!N:N,'2-3. Travel Costs&Costs of Stay'!C:C,B42,'2-3. Travel Costs&Costs of Stay'!B:B,$E$21)+SUMIFS('4. Equipment Costs'!H:H,'4. Equipment Costs'!C:C,B42,'4. Equipment Costs'!B:B,$E$21)+SUMIFS('5. Subcontracting Costs'!H:H,'5. Subcontracting Costs'!C:C,B42,'5. Subcontracting Costs'!B:B,$E$21) -> 0 | F42: =SUMIFS('1. Staff costs'!S:S,'1. Staff costs'!C:C,B42,'1. Staff costs'!B:B,$B$8)+SUMIFS('2-3. Travel Costs&Costs of Stay'!N:N,'2-3. Travel Costs&Costs of Stay'!C:C,B42,'2-3. Travel Costs&Costs of Stay'!B:B,$B$8)+SUMIFS('4. Equipment Costs'!H:H,'4. Equipment Costs'!C:C,B42,'4. Equipment Costs'!B:B,$B$8)+SUMIFS('5. Subcontracting Costs'!H:H,'5. Subcontracting Costs'!C:C,B42,'5. Subcontracting Costs'!B:B,$B$8) -> 0 | G42: =SUMIFS('1. Staff costs'!S:S,'1. Staff costs'!C:C,B42,'1. Staff costs'!B:B,$G$21)+SUMIFS('2-3. Travel Costs&Costs of Stay'!N:N,'2-3. Travel Costs&Costs of Stay'!C:C,B42,'2-3. Travel Costs&Costs of Stay'!B:B,$G$21)+SUMIFS('4. Equipment Costs'!H:H,'4. Equipment Costs'!C:C,B42,'4. Equipment Costs'!B:B,$G$21)+SUMIFS('5. Subcontracting Costs'!H:H,'5. Subcontracting Costs'!C:C,B42,'5. Subcontracting Costs'!B:B,$G$21) -> 0 | H42: 0 | I42: 0
B43: P22 | C43: =SUMIFS('1. Staff costs'!S:S,'1. Staff costs'!C:C,B43,'1. Staff costs'!B:B,$C$21)+SUMIFS('2-3. Travel Costs&Costs of Stay'!N:N,'2-3. Travel Costs&Costs of Stay'!C:C,B43,'2-3. Travel Costs&Costs of Stay'!B:B,$C$21)+SUMIFS('4. Equipment Costs'!H:H,'4. Equipment Costs'!C:C,B43,'4. Equipment Costs'!B:B,$C$21)+SUMIFS('5. Subcontracting Costs'!H:H,'5. Subcontracting Costs'!C:C,B43,'5. Subcontracting Costs'!B:B,$C$21) -> 0 | D43: =SUMIFS('1. Staff costs'!S:S,'1. Staff costs'!C:C,B43,'1. Staff costs'!B:B,$D$21)+SUMIFS('2-3. Travel Costs&Costs of Stay'!N:N,'2-3. Travel Costs&Costs of Stay'!C:C,B43,'2-3. Travel Costs&Costs of Stay'!B:B,$D$21)+SUMIFS('4. Equipment Costs'!H:H,'4. Equipment Costs'!C:C,B43,'4. Equipment Costs'!B:B,$D$21)+SUMIFS('5. Subcontracting Costs'!H:H,'5. Subcontracting Costs'!C:C,B43,'5. Subcontracting Costs'!B:B,$D$21) -> 0 | E43: =SUMIFS('1. Staff costs'!S:S,'1. Staff costs'!C:C,B43,'1. Staff costs'!B:B,$E$21)+SUMIFS('2-3. Travel Costs&Costs of Stay'!N:N,'2-3. Travel Costs&Costs of Stay'!C:C,B43,'2-3. Travel Costs&Costs of Stay'!B:B,$E$21)+SUMIFS('4. Equipment Costs'!H:H,'4. Equipment Costs'!C:C,B43,'4. Equipment Costs'!B:B,$E$21)+SUMIFS('5. Subcontracting Costs'!H:H,'5. Subcontracting Costs'!C:C,B43,'5. Subcontracting Costs'!B:B,$E$21) -> 0 | F43: =SUMIFS('1. Staff costs'!S:S,'1. Staff costs'!C:C,B43,'1. Staff costs'!B:B,$B$8)+SUMIFS('2-3. Travel Costs&Costs of Stay'!N:N,'2-3. Travel Costs&Costs of Stay'!C:C,B43,'2-3. Travel Costs&Costs of Stay'!B:B,$B$8)+SUMIFS('4. Equipment Costs'!H:H,'4. Equipment Costs'!C:C,B43,'4. Equipment Costs'!B:B,$B$8)+SUMIFS('5. Subcontracting Costs'!H:H,'5. Subcontracting Costs'!C:C,B43,'5. Subcontracting Costs'!B:B,$B$8) -> 0 | G43: =SUMIFS('1. Staff costs'!S:S,'1. Staff costs'!C:C,B43,'1. Staff costs'!B:B,$G$21)+SUMIFS('2-3. Travel Costs&Costs of Stay'!N:N,'2-3. Travel Costs&Costs of Stay'!C:C,B43,'2-3. Travel Costs&Costs of Stay'!B:B,$G$21)+SUMIFS('4. Equipment Costs'!H:H,'4. Equipment Costs'!C:C,B43,'4. Equipment Costs'!B:B,$G$21)+SUMIFS('5. Subcontracting Costs'!H:H,'5. Subcontracting Costs'!C:C,B43,'5. Subcontracting Costs'!B:B,$G$21) -> 0 | H43: 0 | I43: 0
B44: P23 | C44: =SUMIFS('1. Staff costs'!S:S,'1. Staff costs'!C:C,B44,'1. Staff costs'!B:B,$C$21)+SUMIFS('2-3. Travel Costs&Costs of Stay'!N:N,'2-3. Travel Costs&Costs of Stay'!C:C,B44,'2-3. Travel Costs&Costs of Stay'!B:B,$C$21)+SUMIFS('4. Equipment Costs'!H:H,'4. Equipment Costs'!C:C,B44,'4. Equipment Costs'!B:B,$C$21)+SUMIFS('5. Subcontracting Costs'!H:H,'5. Subcontracting Costs'!C:C,B44,'5. Subcontracting Costs'!B:B,$C$21) -> 0 | D44: =SUMIFS('1. Staff costs'!S:S,'1. Staff costs'!C:C,B44,'1. Staff costs'!B:B,$D$21)+SUMIFS('2-3. Travel Costs&Costs of Stay'!N:N,'2-3. Travel Costs&Costs of Stay'!C:C,B44,'2-3. Travel Costs&Costs of Stay'!B:B,$D$21)+SUMIFS('4. Equipment Costs'!H:H,'4. Equipment Costs'!C:C,B44,'4. Equipment Costs'!B:B,$D$21)+SUMIFS('5. Subcontracting Costs'!H:H,'5. Subcontracting Costs'!C:C,B44,'5. Subcontracting Costs'!B:B,$D$21) -> 0 | E44: =SUMIFS('1. Staff costs'!S:S,'1. Staff costs'!C:C,B44,'1. Staff costs'!B:B,$E$21)+SUMIFS('2-3. Travel Costs&Costs of Stay'!N:N,'2-3. Travel Costs&Costs of Stay'!C:C,B44,'2-3. Travel Costs&Costs of Stay'!B:B,$E$21)+SUMIFS('4. Equipment Costs'!H:H,'4. Equipment Costs'!C:C,B44,'4. Equipment Costs'!B:B,$E$21)+SUMIFS('5. Subcontracting Costs'!H:H,'5. Subcontracting Costs'!C:C,B44,'5. Subcontracting Costs'!B:B,$E$21) -> 0 | F44: =SUMIFS('1. Staff costs'!S:S,'1. Staff costs'!C:C,B44,'1. Staff costs'!B:B,$B$8)+SUMIFS('2-3. Travel Costs&Costs of Stay'!N:N,'2-3. Travel Costs&Costs of Stay'!C:C,B44,'2-3. Travel Costs&Costs of Stay'!B:B,$B$8)+SUMIFS('4. Equipment Costs'!H:H,'4. Equipment Costs'!C:C,B44,'4. Equipment Costs'!B:B,$B$8)+SUMIFS('5. Subcontracting Costs'!H:H,'5. Subcontracting Costs'!C:C,B44,'5. Subcontracting Costs'!B:B,$B$8) -> 0 | G44: =SUMIFS('1. Staff costs'!S:S,'1. Staff costs'!C:C,B44,'1. Staff costs'!B:B,$G$21)+SUMIFS('2-3. Travel Costs&Costs of Stay'!N:N,'2-3. Travel Costs&Costs of Stay'!C:C,B44,'2-3. Travel Costs&Costs of Stay'!B:B,$G$21)+SUMIFS('4. Equipment Costs'!H:H,'4. Equipment Costs'!C:C,B44,'4. Equipment Costs'!B:B,$G$21)+SUMIFS('5. Subcontracting Costs'!H:H,'5. Subcontracting Costs'!C:C,B44,'5. Subcontracting Costs'!B:B,$G$21) -> 0 | H44: 0 | I44: 0
B45: P24 | C45: =SUMIFS('1. Staff costs'!S:S,'1. Staff costs'!C:C,B45,'1. Staff costs'!B:B,$C$21)+SUMIFS('2-3. Travel Costs&Costs of Stay'!N:N,'2-3. Travel Costs&Costs of Stay'!C:C,B45,'2-3. Travel Costs&Costs of Stay'!B:B,$C$21)+SUMIFS('4. Equipment Costs'!H:H,'4. Equipment Costs'!C:C,B45,'4. Equipment Costs'!B:B,$C$21)+SUMIFS('5. Subcontracting Costs'!H:H,'5. Subcontracting Costs'!C:C,B45,'5. Subcontracting Costs'!B:B,$C$21) -> 0 | D45: =SUMIFS('1. Staff costs'!S:S,'1. Staff costs'!C:C,B45,'1. Staff costs'!B:B,$D$21)+SUMIFS('2-3. Travel Costs&Costs of Stay'!N:N,'2-3. Travel Costs&Costs of Stay'!C:C,B45,'2-3. Travel Costs&Costs of Stay'!B:B,$D$21)+SUMIFS('4. Equipment Costs'!H:H,'4. Equipment Costs'!C:C,B45,'4. Equipment Costs'!B:B,$D$21)+SUMIFS('5. Subcontracting Costs'!H:H,'5. Subcontracting Costs'!C:C,B45,'5. Subcontracting Costs'!B:B,$D$21) -> 0 | E45: =SUMIFS('1. Staff costs'!S:S,'1. Staff costs'!C:C,B45,'1. Staff costs'!B:B,$E$21)+SUMIFS('2-3. Travel Costs&Costs of Stay'!N:N,'2-3. Travel Costs&Costs of Stay'!C:C,B45,'2-3. Travel Costs&Costs of Stay'!B:B,$E$21)+SUMIFS('4. Equipment Costs'!H:H,'4. Equipment Costs'!C:C,B45,'4. Equipment Costs'!B:B,$E$21)+SUMIFS('5. Subcontracting Costs'!H:H,'5. Subcontracting Costs'!C:C,B45,'5. Subcontracting Costs'!B:B,$E$21) -> 0 | F45: =SUMIFS('1. Staff costs'!S:S,'1. Staff costs'!C:C,B45,'1. Staff costs'!B:B,$B$8)+SUMIFS('2-3. Travel Costs&Costs of Stay'!N:N,'2-3. Travel Costs&Costs of Stay'!C:C,B45,'2-3. Travel Costs&Costs of Stay'!B:B,$B$8)+SUMIFS('4. Equipment Costs'!H:H,'4. Equipment Costs'!C:C,B45,'4. Equipment Costs'!B:B,$B$8)+SUMIFS('5. Subcontracting Costs'!H:H,'5. Subcontracting Costs'!C:C,B45,'5. Subcontracting Costs'!B:B,$B$8) -> 0 | G45: =SUMIFS('1. Staff costs'!S:S,'1. Staff costs'!C:C,B45,'1. Staff costs'!B:B,$G$21)+SUMIFS('2-3. Travel Costs&Costs of Stay'!N:N,'2-3. Travel Costs&Costs of Stay'!C:C,B45,'2-3. Travel Costs&Costs of Stay'!B:B,$G$21)+SUMIFS('4. Equipment Costs'!H:H,'4. Equipment Costs'!C:C,B45,'4. Equipment Costs'!B:B,$G$21)+SUMIFS('5. Subcontracting Costs'!H:H,'5. Subcontracting Costs'!C:C,B45,'5. Subcontracting Costs'!B:B,$G$21) -> 0 | H45: 0 | I45: 0
B46: P25 | C46: =SUMIFS('1. Staff costs'!S:S,'1. Staff costs'!C:C,B46,'1. Staff costs'!B:B,$C$21)+SUMIFS('2-3. Travel Costs&Costs of Stay'!N:N,'2-3. Travel Costs&Costs of Stay'!C:C,B46,'2-3. Travel Costs&Costs of Stay'!B:B,$C$21)+SUMIFS('4. Equipment Costs'!H:H,'4. Equipment Costs'!C:C,B46,'4. Equipment Costs'!B:B,$C$21)+SUMIFS('5. Subcontracting Costs'!H:H,'5. Subcontracting Costs'!C:C,B46,'5. Subcontracting Costs'!B:B,$C$21) -> 0 | D46: =SUMIFS('1. Staff costs'!S:S,'1. Staff costs'!C:C,B46,'1. Staff costs'!B:B,$D$21)+SUMIFS('2-3. Travel Costs&Costs of Stay'!N:N,'2-3. Travel Costs&Costs of Stay'!C:C,B46,'2-3. Travel Costs&Costs of Stay'!B:B,$D$21)+SUMIFS('4. Equipment Costs'!H:H,'4. Equipment Costs'!C:C,B46,'4. Equipment Costs'!B:B,$D$21)+SUMIFS('5. Subcontracting Costs'!H:H,'5. Subcontracting Costs'!C:C,B46,'5. Subcontracting Costs'!B:B,$D$21) -> 0 | E46: =SUMIFS('1. Staff costs'!S:S,'1. Staff costs'!C:C,B46,'1. Staff costs'!B:B,$E$21)+SUMIFS('2-3. Travel Costs&Costs of Stay'!N:N,'2-3. Travel Costs&Costs of Stay'!C:C,B46,'2-3. Travel Costs&Costs of Stay'!B:B,$E$21)+SUMIFS('4. Equipment Costs'!H:H,'4. Equipment Costs'!C:C,B46,'4. Equipment Costs'!B:B,$E$21)+SUMIFS('5. Subcontracting Costs'!H:H,'5. Subcontracting Costs'!C:C,B46,'5. Subcontracting Costs'!B:B,$E$21) -> 0 | F46: =SUMIFS('1. Staff costs'!S:S,'1. Staff costs'!C:C,B46,'1. Staff costs'!B:B,$B$8)+SUMIFS('2-3. Travel Costs&Costs of Stay'!N:N,'2-3. Travel Costs&Costs of Stay'!C:C,B46,'2-3. Travel Costs&Costs of Stay'!B:B,$B$8)+SUMIFS('4. Equipment Costs'!H:H,'4. Equipment Costs'!C:C,B46,'4. Equipment Costs'!B:B,$B$8)+SUMIFS('5. Subcontracting Costs'!H:H,'5. Subcontracting Costs'!C:C,B46,'5. Subcontracting Costs'!B:B,$B$8) -> 0 | G46: =SUMIFS('1. Staff costs'!S:S,'1. Staff costs'!C:C,B46,'1. Staff costs'!B:B,$G$21)+SUMIFS('2-3. Travel Costs&Costs of Stay'!N:N,'2-3. Travel Costs&Costs of Stay'!C:C,B46,'2-3. Travel Costs&Costs of Stay'!B:B,$G$21)+SUMIFS('4. Equipment Costs'!H:H,'4. Equipment Costs'!C:C,B46,'4. Equipment Costs'!B:B,$G$21)+SUMIFS('5. Subcontracting Costs'!H:H,'5. Subcontracting Costs'!C:C,B46,'5. Subcontracting Costs'!B:B,$G$21) -> 0 | H46: 0 | I46: 0
B47: P26 | C47: =SUMIFS('1. Staff costs'!S:S,'1. Staff costs'!C:C,B47,'1. Staff costs'!B:B,$C$21)+SUMIFS('2-3. Travel Costs&Costs of Stay'!N:N,'2-3. Travel Costs&Costs of Stay'!C:C,B47,'2-3. Travel Costs&Costs of Stay'!B:B,$C$21)+SUMIFS('4. Equipment Costs'!H:H,'4. Equipment Costs'!C:C,B47,'4. Equipment Costs'!B:B,$C$21)+SUMIFS('5. Subcontracting Costs'!H:H,'5. Subcontracting Costs'!C:C,B47,'5. Subcontracting Costs'!B:B,$C$21) -> 0 | D47: =SUMIFS('1. Staff costs'!S:S,'1. Staff costs'!C:C,B47,'1. Staff costs'!B:B,$D$21)+SUMIFS('2-3. Travel Costs&Costs of Stay'!N:N,'2-3. Travel Costs&Costs of Stay'!C:C,B47,'2-3. Travel Costs&Costs of Stay'!B:B,$D$21)+SUMIFS('4. Equipment Costs'!H:H,'4. Equipment Costs'!C:C,B47,'4. Equipment Costs'!B:B,$D$21)+SUMIFS('5. Subcontracting Costs'!H:H,'5. Subcontracting Costs'!C:C,B47,'5. Subcontracting Costs'!B:B,$D$21) -> 0 | E47: =SUMIFS('1. Staff costs'!S:S,'1. Staff costs'!C:C,B47,'1. Staff costs'!B:B,$E$21)+SUMIFS('2-3. Travel Costs&Costs of Stay'!N:N,'2-3. Travel Costs&Costs of Stay'!C:C,B47,'2-3. Travel Costs&Costs of Stay'!B:B,$E$21)+SUMIFS('4. Equipment Costs'!H:H,'4. Equipment Costs'!C:C,B47,'4. Equipment Costs'!B:B,$E$21)+SUMIFS('5. Subcontracting Costs'!H:H,'5. Subcontracting Costs'!C:C,B47,'5. Subcontracting Costs'!B:B,$E$21) -> 0 | F47: =SUMIFS('1. Staff costs'!S:S,'1. Staff costs'!C:C,B47,'1. Staff costs'!B:B,$B$8)+SUMIFS('2-3. Travel Costs&Costs of Stay'!N:N,'2-3. Travel Costs&Costs of Stay'!C:C,B47,'2-3. Travel Costs&Costs of Stay'!B:B,$B$8)+SUMIFS('4. Equipment Costs'!H:H,'4. Equipment Costs'!C:C,B47,'4. Equipment Costs'!B:B,$B$8)+SUMIFS('5. Subcontracting Costs'!H:H,'5. Subcontracting Costs'!C:C,B47,'5. Subcontracting Costs'!B:B,$B$8) -> 0 | G47: =SUMIFS('1. Staff costs'!S:S,'1. Staff costs'!C:C,B47,'1. Staff costs'!B:B,$G$21)+SUMIFS('2-3. Travel Costs&Costs of Stay'!N:N,'2-3. Travel Costs&Costs of Stay'!C:C,B47,'2-3. Travel Costs&Costs of Stay'!B:B,$G$21)+SUMIFS('4. Equipment Costs'!H:H,'4. Equipment Costs'!C:C,B47,'4. Equipment Costs'!B:B,$G$21)+SUMIFS('5. Subcontracting Costs'!H:H,'5. Subcontracting Costs'!C:C,B47,'5. Subcontracting Costs'!B:B,$G$21) -> 0 | H47: 0 | I47: 0
B48: P27 | C48: =SUMIFS('1. Staff costs'!S:S,'1. Staff costs'!C:C,B48,'1. Staff costs'!B:B,$C$21)+SUMIFS('2-3. Travel Costs&Costs of Stay'!N:N,'2-3. Travel Costs&Costs of Stay'!C:C,B48,'2-3. Travel Costs&Costs of Stay'!B:B,$C$21)+SUMIFS('4. Equipment Costs'!H:H,'4. Equipment Costs'!C:C,B48,'4. Equipment Costs'!B:B,$C$21)+SUMIFS('5. Subcontracting Costs'!H:H,'5. Subcontracting Costs'!C:C,B48,'5. Subcontracting Costs'!B:B,$C$21) -> 0 | D48: =SUMIFS('1. Staff costs'!S:S,'1. Staff costs'!C:C,B48,'1. Staff costs'!B:B,$D$21)+SUMIFS('2-3. Travel Costs&Costs of Stay'!N:N,'2-3. Travel Costs&Costs of Stay'!C:C,B48,'2-3. Travel Costs&Costs of Stay'!B:B,$D$21)+SUMIFS('4. Equipment Costs'!H:H,'4. Equipment Costs'!C:C,B48,'4. Equipment Costs'!B:B,$D$21)+SUMIFS('5. Subcontracting Costs'!H:H,'5. Subcontracting Costs'!C:C,B48,'5. Subcontracting Costs'!B:B,$D$21) -> 0 | E48: =SUMIFS('1. Staff costs'!S:S,'1. Staff costs'!C:C,B48,'1. Staff costs'!B:B,$E$21)+SUMIFS('2-3. Travel Costs&Costs of Stay'!N:N,'2-3. Travel Costs&Costs of Stay'!C:C,B48,'2-3. Travel Costs&Costs of Stay'!B:B,$E$21)+SUMIFS('4. Equipment Costs'!H:H,'4. Equipment Costs'!C:C,B48,'4. Equipment Costs'!B:B,$E$21)+SUMIFS('5. Subcontracting Costs'!H:H,'5. Subcontracting Costs'!C:C,B48,'5. Subcontracting Costs'!B:B,$E$21) -> 0 | F48: =SUMIFS('1. Staff costs'!S:S,'1. Staff costs'!C:C,B48,'1. Staff costs'!B:B,$B$8)+SUMIFS('2-3. Travel Costs&Costs of Stay'!N:N,'2-3. Travel Costs&Costs of Stay'!C:C,B48,'2-3. Travel Costs&Costs of Stay'!B:B,$B$8)+SUMIFS('4. Equipment Costs'!H:H,'4. Equipment Costs'!C:C,B48,'4. Equipment Costs'!B:B,$B$8)+SUMIFS('5. Subcontracting Costs'!H:H,'5. Subcontracting Costs'!C:C,B48,'5. Subcontracting Costs'!B:B,$B$8) -> 0 | G48: =SUMIFS('1. Staff costs'!S:S,'1. Staff costs'!C:C,B48,'1. Staff costs'!B:B,$G$21)+SUMIFS('2-3. Travel Costs&Costs of Stay'!N:N,'2-3. Travel Costs&Costs of Stay'!C:C,B48,'2-3. Travel Costs&Costs of Stay'!B:B,$G$21)+SUMIFS('4. Equipment Costs'!H:H,'4. Equipment Costs'!C:C,B48,'4. Equipment Costs'!B:B,$G$21)+SUMIFS('5. Subcontracting Costs'!H:H,'5. Subcontracting Costs'!C:C,B48,'5. Subcontracting Costs'!B:B,$G$21) -> 0 | H48: 0 | I48: 0
B49: P28 | C49: =SUMIFS('1. Staff costs'!S:S,'1. Staff costs'!C:C,B49,'1. Staff costs'!B:B,$C$21)+SUMIFS('2-3. Travel Costs&Costs of Stay'!N:N,'2-3. Travel Costs&Costs of Stay'!C:C,B49,'2-3. Travel Costs&Costs of Stay'!B:B,$C$21)+SUMIFS('4. Equipment Costs'!H:H,'4. Equipment Costs'!C:C,B49,'4. Equipment Costs'!B:B,$C$21)+SUMIFS('5. Subcontracting Costs'!H:H,'5. Subcontracting Costs'!C:C,B49,'5. Subcontracting Costs'!B:B,$C$21) -> 0 | D49: =SUMIFS('1. Staff costs'!S:S,'1. Staff costs'!C:C,B49,'1. Staff costs'!B:B,$D$21)+SUMIFS('2-3. Travel Costs&Costs of Stay'!N:N,'2-3. Travel Costs&Costs of Stay'!C:C,B49,'2-3. Travel Costs&Costs of Stay'!B:B,$D$21)+SUMIFS('4. Equipment Costs'!H:H,'4. Equipment Costs'!C:C,B49,'4. Equipment Costs'!B:B,$D$21)+SUMIFS('5. Subcontracting Costs'!H:H,'5. Subcontracting Costs'!C:C,B49,'5. Subcontracting Costs'!B:B,$D$21) -> 0 | E49: =SUMIFS('1. Staff costs'!S:S,'1. Staff costs'!C:C,B49,'1. Staff costs'!B:B,$E$21)+SUMIFS('2-3. Travel Costs&Costs of Stay'!N:N,'2-3. Travel Costs&Costs of Stay'!C:C,B49,'2-3. Travel Costs&Costs of Stay'!B:B,$E$21)+SUMIFS('4. Equipment Costs'!H:H,'4. Equipment Costs'!C:C,B49,'4. Equipment Costs'!B:B,$E$21)+SUMIFS('5. Subcontracting Costs'!H:H,'5. Subcontracting Costs'!C:C,B49,'5. Subcontracting Costs'!B:B,$E$21) -> 0 | F49: =SUMIFS('1. Staff costs'!S:S,'1. Staff costs'!C:C,B49,'1. Staff costs'!B:B,$B$8)+SUMIFS('2-3. Travel Costs&Costs of Stay'!N:N,'2-3. Travel Costs&Costs of Stay'!C:C,B49,'2-3. Travel Costs&Costs of Stay'!B:B,$B$8)+SUMIFS('4. Equipment Costs'!H:H,'4. Equipment Costs'!C:C,B49,'4. Equipment Costs'!B:B,$B$8)+SUMIFS('5. Subcontracting Costs'!H:H,'5. Subcontracting Costs'!C:C,B49,'5. Subcontracting Costs'!B:B,$B$8) -> 0 | G49: =SUMIFS('1. Staff costs'!S:S,'1. Staff costs'!C:C,B49,'1. Staff costs'!B:B,$G$21)+SUMIFS('2-3. Travel Costs&Costs of Stay'!N:N,'2-3. Travel Costs&Costs of Stay'!C:C,B49,'2-3. Travel Costs&Costs of Stay'!B:B,$G$21)+SUMIFS('4. Equipment Costs'!H:H,'4. Equipment Costs'!C:C,B49,'4. Equipment Costs'!B:B,$G$21)+SUMIFS('5. Subcontracting Costs'!H:H,'5. Subcontracting Costs'!C:C,B49,'5. Subcontracting Costs'!B:B,$G$21) -> 0 | H49: 0 | I49: 0
B50: P29 | C50: =SUMIFS('1. Staff costs'!S:S,'1. Staff costs'!C:C,B50,'1. Staff costs'!B:B,$C$21)+SUMIFS('2-3. Travel Costs&Costs of Stay'!N:N,'2-3. Travel Costs&Costs of Stay'!C:C,B50,'2-3. Travel Costs&Costs of Stay'!B:B,$C$21)+SUMIFS('4. Equipment Costs'!H:H,'4. Equipment Costs'!C:C,B50,'4. Equipment Costs'!B:B,$C$21)+SUMIFS('5. Subcontracting Costs'!H:H,'5. Subcontracting Costs'!C:C,B50,'5. Subcontracting Costs'!B:B,$C$21) -> 0 | D50: =SUMIFS('1. Staff costs'!S:S,'1. Staff costs'!C:C,B50,'1. Staff costs'!B:B,$D$21)+SUMIFS('2-3. Travel Costs&Costs of Stay'!N:N,'2-3. Travel Costs&Costs of Stay'!C:C,B50,'2-3. Travel Costs&Costs of Stay'!B:B,$D$21)+SUMIFS('4. Equipment Costs'!H:H,'4. Equipment Costs'!C:C,B50,'4. Equipment Costs'!B:B,$D$21)+SUMIFS('5. Subcontracting Costs'!H:H,'5. Subcontracting Costs'!C:C,B50,'5. Subcontracting Costs'!B:B,$D$21) -> 0 | E50: =SUMIFS('1. Staff costs'!S:S,'1. Staff costs'!C:C,B50,'1. Staff costs'!B:B,$E$21)+SUMIFS('2-3. Travel Costs&Costs of Stay'!N:N,'2-3. Travel Costs&Costs of Stay'!C:C,B50,'2-3. Travel Costs&Costs of Stay'!B:B,$E$21)+SUMIFS('4. Equipment Costs'!H:H,'4. Equipment Costs'!C:C,B50,'4. Equipment Costs'!B:B,$E$21)+SUMIFS('5. Subcontracting Costs'!H:H,'5. Subcontracting Costs'!C:C,B50,'5. Subcontracting Costs'!B:B,$E$21) -> 0 | F50: =SUMIFS('1. Staff costs'!S:S,'1. Staff costs'!C:C,B50,'1. Staff costs'!B:B,$B$8)+SUMIFS('2-3. Travel Costs&Costs of Stay'!N:N,'2-3. Travel Costs&Costs of Stay'!C:C,B50,'2-3. Travel Costs&Costs of Stay'!B:B,$B$8)+SUMIFS('4. Equipment Costs'!H:H,'4. Equipment Costs'!C:C,B50,'4. Equipment Costs'!B:B,$B$8)+SUMIFS('5. Subcontracting Costs'!H:H,'5. Subcontracting Costs'!C:C,B50,'5. Subcontracting Costs'!B:B,$B$8) -> 0 | G50: =SUMIFS('1. Staff costs'!S:S,'1. Staff costs'!C:C,B50,'1. Staff costs'!B:B,$G$21)+SUMIFS('2-3. Travel Costs&Costs of Stay'!N:N,'2-3. Travel Costs&Costs of Stay'!C:C,B50,'2-3. Travel Costs&Costs of Stay'!B:B,$G$21)+SUMIFS('4. Equipment Costs'!H:H,'4. Equipment Costs'!C:C,B50,'4. Equipment Costs'!B:B,$G$21)+SUMIFS('5. Subcontracting Costs'!H:H,'5. Subcontracting Costs'!C:C,B50,'5. Subcontracting Costs'!B:B,$G$21) -> 0 | H50: 0 | I50: 0
B51: P30 | C51: =SUMIFS('1. Staff costs'!S:S,'1. Staff costs'!C:C,B51,'1. Staff costs'!B:B,$C$21)+SUMIFS('2-3. Travel Costs&Costs of Stay'!N:N,'2-3. Travel Costs&Costs of Stay'!C:C,B51,'2-3. Travel Costs&Costs of Stay'!B:B,$C$21)+SUMIFS('4. Equipment Costs'!H:H,'4. Equipment Costs'!C:C,B51,'4. Equipment Costs'!B:B,$C$21)+SUMIFS('5. Subcontracting Costs'!H:H,'5. Subcontracting Costs'!C:C,B51,'5. Subcontracting Costs'!B:B,$C$21) -> 0 | D51: =SUMIFS('1. Staff costs'!S:S,'1. Staff costs'!C:C,B51,'1. Staff costs'!B:B,$D$21)+SUMIFS('2-3. Travel Costs&Costs of Stay'!N:N,'2-3. Travel Costs&Costs of Stay'!C:C,B51,'2-3. Travel Costs&Costs of Stay'!B:B,$D$21)+SUMIFS('4. Equipment Costs'!H:H,'4. Equipment Costs'!C:C,B51,'4. Equipment Costs'!B:B,$D$21)+SUMIFS('5. Subcontracting Costs'!H:H,'5. Subcontracting Costs'!C:C,B51,'5. Subcontracting Costs'!B:B,$D$21) -> 0 | E51: =SUMIFS('1. Staff costs'!S:S,'1. Staff costs'!C:C,B51,'1. Staff costs'!B:B,$E$21)+SUMIFS('2-3. Travel Costs&Costs of Stay'!N:N,'2-3. Travel Costs&Costs of Stay'!C:C,B51,'2-3. Travel Costs&Costs of Stay'!B:B,$E$21)+SUMIFS('4. Equipment Costs'!H:H,'4. Equipment Costs'!C:C,B51,'4. Equipment Costs'!B:B,$E$21)+SUMIFS('5. Subcontracting Costs'!H:H,'5. Subcontracting Costs'!C:C,B51,'5. Subcontracting Costs'!B:B,$E$21) -> 0 | F51: =SUMIFS('1. Staff costs'!S:S,'1. Staff costs'!C:C,B51,'1. Staff costs'!B:B,$B$8)+SUMIFS('2-3. Travel Costs&Costs of Stay'!N:N,'2-3. Travel Costs&Costs of Stay'!C:C,B51,'2-3. Travel Costs&Costs of Stay'!B:B,$B$8)+SUMIFS('4. Equipment Costs'!H:H,'4. Equipment Costs'!C:C,B51,'4. Equipment Costs'!B:B,$B$8)+SUMIFS('5. Subcontracting Costs'!H:H,'5. Subcontracting Costs'!C:C,B51,'5. Subcontracting Costs'!B:B,$B$8) -> 0 | G51: =SUMIFS('1. Staff costs'!S:S,'1. Staff costs'!C:C,B51,'1. Staff costs'!B:B,$G$21)+SUMIFS('2-3. Travel Costs&Costs of Stay'!N:N,'2-3. Travel Costs&Costs of Stay'!C:C,B51,'2-3. Travel Costs&Costs of Stay'!B:B,$G$21)+SUMIFS('4. Equipment Costs'!H:H,'4. Equipment Costs'!C:C,B51,'4. Equipment Costs'!B:B,$G$21)+SUMIFS('5. Subcontracting Costs'!H:H,'5. Subcontracting Costs'!C:C,B51,'5. Subcontracting Costs'!B:B,$G$21) -> 0 | H51: 0 | I51: 0
B52: P31 | C52: =SUMIFS('1. Staff costs'!S:S,'1. Staff costs'!C:C,B52,'1. Staff costs'!B:B,$C$21)+SUMIFS('2-3. Travel Costs&Costs of Stay'!N:N,'2-3. Travel Costs&Costs of Stay'!C:C,B52,'2-3. Travel Costs&Costs of Stay'!B:B,$C$21)+SUMIFS('4. Equipment Costs'!H:H,'4. Equipment Costs'!C:C,B52,'4. Equipment Costs'!B:B,$C$21)+SUMIFS('5. Subcontracting Costs'!H:H,'5. Subcontracting Costs'!C:C,B52,'5. Subcontracting Costs'!B:B,$C$21) -> 0 | D52: =SUMIFS('1. Staff costs'!S:S,'1. Staff costs'!C:C,B52,'1. Staff costs'!B:B,$D$21)+SUMIFS('2-3. Travel Costs&Costs of Stay'!N:N,'2-3. Travel Costs&Costs of Stay'!C:C,B52,'2-3. Travel Costs&Costs of Stay'!B:B,$D$21)+SUMIFS('4. Equipment Costs'!H:H,'4. Equipment Costs'!C:C,B52,'4. Equipment Costs'!B:B,$D$21)+SUMIFS('5. Subcontracting Costs'!H:H,'5. Subcontracting Costs'!C:C,B52,'5. Subcontracting Costs'!B:B,$D$21) -> 0 | E52: =SUMIFS('1. Staff costs'!S:S,'1. Staff costs'!C:C,B52,'1. Staff costs'!B:B,$E$21)+SUMIFS('2-3. Travel Costs&Costs of Stay'!N:N,'2-3. Travel Costs&Costs of Stay'!C:C,B52,'2-3. Travel Costs&Costs of Stay'!B:B,$E$21)+SUMIFS('4. Equipment Costs'!H:H,'4. Equipment Costs'!C:C,B52,'4. Equipment Costs'!B:B,$E$21)+SUMIFS('5. Subcontracting Costs'!H:H,'5. Subcontracting Costs'!C:C,B52,'5. Subcontracting Costs'!B:B,$E$21) -> 0 | F52: =SUMIFS('1. Staff costs'!S:S,'1. Staff costs'!C:C,B52,'1. Staff costs'!B:B,$B$8)+SUMIFS('2-3. Travel Costs&Costs of Stay'!N:N,'2-3. Travel Costs&Costs of Stay'!C:C,B52,'2-3. Travel Costs&Costs of Stay'!B:B,$B$8)+SUMIFS('4. Equipment Costs'!H:H,'4. Equipment Costs'!C:C,B52,'4. Equipment Costs'!B:B,$B$8)+SUMIFS('5. Subcontracting Costs'!H:H,'5. Subcontracting Costs'!C:C,B52,'5. Subcontracting Costs'!B:B,$B$8) -> 0 | G52: =SUMIFS('1. Staff costs'!S:S,'1. Staff costs'!C:C,B52,'1. Staff costs'!B:B,$G$21)+SUMIFS('2-3. Travel Costs&Costs of Stay'!N:N,'2-3. Travel Costs&Costs of Stay'!C:C,B52,'2-3. Travel Costs&Costs of Stay'!B:B,$G$21)+SUMIFS('4. Equipment Costs'!H:H,'4. Equipment Costs'!C:C,B52,'4. Equipment Costs'!B:B,$G$21)+SUMIFS('5. Subcontracting Costs'!H:H,'5. Subcontracting Costs'!C:C,B52,'5. Subcontracting Costs'!B:B,$G$21) -> 0 | H52: 0 | I52: 0
B53: P32 | C53: =SUMIFS('1. Staff costs'!S:S,'1. Staff costs'!C:C,B53,'1. Staff costs'!B:B,$C$21)+SUMIFS('2-3. Travel Costs&Costs of Stay'!N:N,'2-3. Travel Costs&Costs of Stay'!C:C,B53,'2-3. Travel Costs&Costs of Stay'!B:B,$C$21)+SUMIFS('4. Equipment Costs'!H:H,'4. Equipment Costs'!C:C,B53,'4. Equipment Costs'!B:B,$C$21)+SUMIFS('5. Subcontracting Costs'!H:H,'5. Subcontracting Costs'!C:C,B53,'5. Subcontracting Costs'!B:B,$C$21) -> 0 | D53: =SUMIFS('1. Staff costs'!S:S,'1. Staff costs'!C:C,B53,'1. Staff costs'!B:B,$D$21)+SUMIFS('2-3. Travel Costs&Costs of Stay'!N:N,'2-3. Travel Costs&Costs of Stay'!C:C,B53,'2-3. Travel Costs&Costs of Stay'!B:B,$D$21)+SUMIFS('4. Equipment Costs'!H:H,'4. Equipment Costs'!C:C,B53,'4. Equipment Costs'!B:B,$D$21)+SUMIFS('5. Subcontracting Costs'!H:H,'5. Subcontracting Costs'!C:C,B53,'5. Subcontracting Costs'!B:B,$D$21) -> 0 | E53: =SUMIFS('1. Staff costs'!S:S,'1. Staff costs'!C:C,B53,'1. Staff costs'!B:B,$E$21)+SUMIFS('2-3. Travel Costs&Costs of Stay'!N:N,'2-3. Travel Costs&Costs of Stay'!C:C,B53,'2-3. Travel Costs&Costs of Stay'!B:B,$E$21)+SUMIFS('4. Equipment Costs'!H:H,'4. Equipment Costs'!C:C,B53,'4. Equipment Costs'!B:B,$E$21)+SUMIFS('5. Subcontracting Costs'!H:H,'5. Subcontracting Costs'!C:C,B53,'5. Subcontracting Costs'!B:B,$E$21) -> 0 | F53: =SUMIFS('1. Staff costs'!S:S,'1. Staff costs'!C:C,B53,'1. Staff costs'!B:B,$B$8)+SUMIFS('2-3. Travel Costs&Costs of Stay'!N:N,'2-3. Travel Costs&Costs of Stay'!C:C,B53,'2-3. Travel Costs&Costs of Stay'!B:B,$B$8)+SUMIFS('4. Equipment Costs'!H:H,'4. Equipment Costs'!C:C,B53,'4. Equipment Costs'!B:B,$B$8)+SUMIFS('5. Subcontracting Costs'!H:H,'5. Subcontracting Costs'!C:C,B53,'5. Subcontracting Costs'!B:B,$B$8) -> 0 | G53: =SUMIFS('1. Staff costs'!S:S,'1. Staff costs'!C:C,B53,'1. Staff costs'!B:B,$G$21)+SUMIFS('2-3. Travel Costs&Costs of Stay'!N:N,'2-3. Travel Costs&Costs of Stay'!C:C,B53,'2-3. Travel Costs&Costs of Stay'!B:B,$G$21)+SUMIFS('4. Equipment Costs'!H:H,'4. Equipment Costs'!C:C,B53,'4. Equipment Costs'!B:B,$G$21)+SUMIFS('5. Subcontracting Costs'!H:H,'5. Subcontracting Costs'!C:C,B53,'5. Subcontracting Costs'!B:B,$G$21) -> 0 | H53: 0 | I53: 0
B54: P33 | C54: =SUMIFS('1. Staff costs'!S:S,'1. Staff costs'!C:C,B54,'1. Staff costs'!B:B,$C$21)+SUMIFS('2-3. Travel Costs&Costs of Stay'!N:N,'2-3. Travel Costs&Costs of Stay'!C:C,B54,'2-3. Travel Costs&Costs of Stay'!B:B,$C$21)+SUMIFS('4. Equipment Costs'!H:H,'4. Equipment Costs'!C:C,B54,'4. Equipment Costs'!B:B,$C$21)+SUMIFS('5. Subcontracting Costs'!H:H,'5. Subcontracting Costs'!C:C,B54,'5. Subcontracting Costs'!B:B,$C$21) -> 0 | D54: =SUMIFS('1. Staff costs'!S:S,'1. Staff costs'!C:C,B54,'1. Staff costs'!B:B,$D$21)+SUMIFS('2-3. Travel Costs&Costs of Stay'!N:N,'2-3. Travel Costs&Costs of Stay'!C:C,B54,'2-3. Travel Costs&Costs of Stay'!B:B,$D$21)+SUMIFS('4. Equipment Costs'!H:H,'4. Equipment Costs'!C:C,B54,'4. Equipment Costs'!B:B,$D$21)+SUMIFS('5. Subcontracting Costs'!H:H,'5. Subcontracting Costs'!C:C,B54,'5. Subcontracting Costs'!B:B,$D$21) -> 0 | E54: =SUMIFS('1. Staff costs'!S:S,'1. Staff costs'!C:C,B54,'1. Staff costs'!B:B,$E$21)+SUMIFS('2-3. Travel Costs&Costs of Stay'!N:N,'2-3. Travel Costs&Costs of Stay'!C:C,B54,'2-3. Travel Costs&Costs of Stay'!B:B,$E$21)+SUMIFS('4. Equipment Costs'!H:H,'4. Equipment Costs'!C:C,B54,'4. Equipment Costs'!B:B,$E$21)+SUMIFS('5. Subcontracting Costs'!H:H,'5. Subcontracting Costs'!C:C,B54,'5. Subcontracting Costs'!B:B,$E$21) -> 0 | F54: =SUMIFS('1. Staff costs'!S:S,'1. Staff costs'!C:C,B54,'1. Staff costs'!B:B,$B$8)+SUMIFS('2-3. Travel Costs&Costs of Stay'!N:N,'2-3. Travel Costs&Costs of Stay'!C:C,B54,'2-3. Travel Costs&Costs of Stay'!B:B,$B$8)+SUMIFS('4. Equipment Costs'!H:H,'4. Equipment Costs'!C:C,B54,'4. Equipment Costs'!B:B,$B$8)+SUMIFS('5. Subcontracting Costs'!H:H,'5. Subcontracting Costs'!C:C,B54,'5. Subcontracting Costs'!B:B,$B$8) -> 0 | G54: =SUMIFS('1. Staff costs'!S:S,'1. Staff costs'!C:C,B54,'1. Staff costs'!B:B,$G$21)+SUMIFS('2-3. Travel Costs&Costs of Stay'!N:N,'2-3. Travel Costs&Costs of Stay'!C:C,B54,'2-3. Travel Costs&Costs of Stay'!B:B,$G$21)+SUMIFS('4. Equipment Costs'!H:H,'4. Equipment Costs'!C:C,B54,'4. Equipment Costs'!B:B,$G$21)+SUMIFS('5. Subcontracting Costs'!H:H,'5. Subcontracting Costs'!C:C,B54,'5. Subcontracting Costs'!B:B,$G$21) -> 0 | H54: 0 | I54: 0
B55: P34 | C55: =SUMIFS('1. Staff costs'!S:S,'1. Staff costs'!C:C,B55,'1. Staff costs'!B:B,$C$21)+SUMIFS('2-3. Travel Costs&Costs of Stay'!N:N,'2-3. Travel Costs&Costs of Stay'!C:C,B55,'2-3. Travel Costs&Costs of Stay'!B:B,$C$21)+SUMIFS('4. Equipment Costs'!H:H,'4. Equipment Costs'!C:C,B55,'4. Equipment Costs'!B:B,$C$21)+SUMIFS('5. Subcontracting Costs'!H:H,'5. Subcontracting Costs'!C:C,B55,'5. Subcontracting Costs'!B:B,$C$21) -> 0 | D55: =SUMIFS('1. Staff costs'!S:S,'1. Staff costs'!C:C,B55,'1. Staff costs'!B:B,$D$21)+SUMIFS('2-3. Travel Costs&Costs of Stay'!N:N,'2-3. Travel Costs&Costs of Stay'!C:C,B55,'2-3. Travel Costs&Costs of Stay'!B:B,$D$21)+SUMIFS('4. Equipment Costs'!H:H,'4. Equipment Costs'!C:C,B55,'4. Equipment Costs'!B:B,$D$21)+SUMIFS('5. Subcontracting Costs'!H:H,'5. Subcontracting Costs'!C:C,B55,'5. Subcontracting Costs'!B:B,$D$21) -> 0 | E55: =SUMIFS('1. Staff costs'!S:S,'1. Staff costs'!C:C,B55,'1. Staff costs'!B:B,$E$21)+SUMIFS('2-3. Travel Costs&Costs of Stay'!N:N,'2-3. Travel Costs&Costs of Stay'!C:C,B55,'2-3. Travel Costs&Costs of Stay'!B:B,$E$21)+SUMIFS('4. Equipment Costs'!H:H,'4. Equipment Costs'!C:C,B55,'4. Equipment Costs'!B:B,$E$21)+SUMIFS('5. Subcontracting Costs'!H:H,'5. Subcontracting Costs'!C:C,B55,'5. Subcontracting Costs'!B:B,$E$21) -> 0 | F55: =SUMIFS('1. Staff costs'!S:S,'1. Staff costs'!C:C,B55,'1. Staff costs'!B:B,$B$8)+SUMIFS('2-3. Travel Costs&Costs of Stay'!N:N,'2-3. Travel Costs&Costs of Stay'!C:C,B55,'2-3. Travel Costs&Costs of Stay'!B:B,$B$8)+SUMIFS('4. Equipment Costs'!H:H,'4. Equipment Costs'!C:C,B55,'4. Equipment Costs'!B:B,$B$8)+SUMIFS('5. Subcontracting Costs'!H:H,'5. Subcontracting Costs'!C:C,B55,'5. Subcontracting Costs'!B:B,$B$8) -> 0 | G55: =SUMIFS('1. Staff costs'!S:S,'1. Staff costs'!C:C,B55,'1. Staff costs'!B:B,$G$21)+SUMIFS('2-3. Travel Costs&Costs of Stay'!N:N,'2-3. Travel Costs&Costs of Stay'!C:C,B55,'2-3. Travel Costs&Costs of Stay'!B:B,$G$21)+SUMIFS('4. Equipment Costs'!H:H,'4. Equipment Costs'!C:C,B55,'4. Equipment Costs'!B:B,$G$21)+SUMIFS('5. Subcontracting Costs'!H:H,'5. Subcontracting Costs'!C:C,B55,'5. Subcontracting Costs'!B:B,$G$21) -> 0 | H55: 0 | I55: 0
B56: P35 | C56: =SUMIFS('1. Staff costs'!S:S,'1. Staff costs'!C:C,B56,'1. Staff costs'!B:B,$C$21)+SUMIFS('2-3. Travel Costs&Costs of Stay'!N:N,'2-3. Travel Costs&Costs of Stay'!C:C,B56,'2-3. Travel Costs&Costs of Stay'!B:B,$C$21)+SUMIFS('4. Equipment Costs'!H:H,'4. Equipment Costs'!C:C,B56,'4. Equipment Costs'!B:B,$C$21)+SUMIFS('5. Subcontracting Costs'!H:H,'5. Subcontracting Costs'!C:C,B56,'5. Subcontracting Costs'!B:B,$C$21) -> 0 | D56: =SUMIFS('1. Staff costs'!S:S,'1. Staff costs'!C:C,B56,'1. Staff costs'!B:B,$D$21)+SUMIFS('2-3. Travel Costs&Costs of Stay'!N:N,'2-3. Travel Costs&Costs of Stay'!C:C,B56,'2-3. Travel Costs&Costs of Stay'!B:B,$D$21)+SUMIFS('4. Equipment Costs'!H:H,'4. Equipment Costs'!C:C,B56,'4. Equipment Costs'!B:B,$D$21)+SUMIFS('5. Subcontracting Costs'!H:H,'5. Subcontracting Costs'!C:C,B56,'5. Subcontracting Costs'!B:B,$D$21) -> 0 | E56: =SUMIFS('1. Staff costs'!S:S,'1. Staff costs'!C:C,B56,'1. Staff costs'!B:B,$E$21)+SUMIFS('2-3. Travel Costs&Costs of Stay'!N:N,'2-3. Travel Costs&Costs of Stay'!C:C,B56,'2-3. Travel Costs&Costs of Stay'!B:B,$E$21)+SUMIFS('4. Equipment Costs'!H:H,'4. Equipment Costs'!C:C,B56,'4. Equipment Costs'!B:B,$E$21)+SUMIFS('5. Subcontracting Costs'!H:H,'5. Subcontracting Costs'!C:C,B56,'5. Subcontracting Costs'!B:B,$E$21) -> 0 | F56: =SUMIFS('1. Staff costs'!S:S,'1. Staff costs'!C:C,B56,'1. Staff costs'!B:B,$B$8)+SUMIFS('2-3. Travel Costs&Costs of Stay'!N:N,'2-3. Travel Costs&Costs of Stay'!C:C,B56,'2-3. Travel Costs&Costs of Stay'!B:B,$B$8)+SUMIFS('4. Equipment Costs'!H:H,'4. Equipment Costs'!C:C,B56,'4. Equipment Costs'!B:B,$B$8)+SUMIFS('5. Subcontracting Costs'!H:H,'5. Subcontracting Costs'!C:C,B56,'5. Subcontracting Costs'!B:B,$B$8) -> 0 | G56: =SUMIFS('1. Staff costs'!S:S,'1. Staff costs'!C:C,B56,'1. Staff costs'!B:B,$G$21)+SUMIFS('2-3. Travel Costs&Costs of Stay'!N:N,'2-3. Travel Costs&Costs of Stay'!C:C,B56,'2-3. Travel Costs&Costs of Stay'!B:B,$G$21)+SUMIFS('4. Equipment Costs'!H:H,'4. Equipment Costs'!C:C,B56,'4. Equipment Costs'!B:B,$G$21)+SUMIFS('5. Subcontracting Costs'!H:H,'5. Subcontracting Costs'!C:C,B56,'5. Subcontracting Costs'!B:B,$G$21) -> 0 | H56: 0 | I56: 0
B57: P36 | C57: =SUMIFS('1. Staff costs'!S:S,'1. Staff costs'!C:C,B57,'1. Staff costs'!B:B,$C$21)+SUMIFS('2-3. Travel Costs&Costs of Stay'!N:N,'2-3. Travel Costs&Costs of Stay'!C:C,B57,'2-3. Travel Costs&Costs of Stay'!B:B,$C$21)+SUMIFS('4. Equipment Costs'!H:H,'4. Equipment Costs'!C:C,B57,'4. Equipment Costs'!B:B,$C$21)+SUMIFS('5. Subcontracting Costs'!H:H,'5. Subcontracting Costs'!C:C,B57,'5. Subcontracting Costs'!B:B,$C$21) -> 0 | D57: =SUMIFS('1. Staff costs'!S:S,'1. Staff costs'!C:C,B57,'1. Staff costs'!B:B,$D$21)+SUMIFS('2-3. Travel Costs&Costs of Stay'!N:N,'2-3. Travel Costs&Costs of Stay'!C:C,B57,'2-3. Travel Costs&Costs of Stay'!B:B,$D$21)+SUMIFS('4. Equipment Costs'!H:H,'4. Equipment Costs'!C:C,B57,'4. Equipment Costs'!B:B,$D$21)+SUMIFS('5. Subcontracting Costs'!H:H,'5. Subcontracting Costs'!C:C,B57,'5. Subcontracting Costs'!B:B,$D$21) -> 0 | E57: =SUMIFS('1. Staff costs'!S:S,'1. Staff costs'!C:C,B57,'1. Staff costs'!B:B,$E$21)+SUMIFS('2-3. Travel Costs&Costs of Stay'!N:N,'2-3. Travel Costs&Costs of Stay'!C:C,B57,'2-3. Travel Costs&Costs of Stay'!B:B,$E$21)+SUMIFS('4. Equipment Costs'!H:H,'4. Equipment Costs'!C:C,B57,'4. Equipment Costs'!B:B,$E$21)+SUMIFS('5. Subcontracting Costs'!H:H,'5. Subcontracting Costs'!C:C,B57,'5. Subcontracting Costs'!B:B,$E$21) -> 0 | F57: =SUMIFS('1. Staff costs'!S:S,'1. Staff costs'!C:C,B57,'1. Staff costs'!B:B,$B$8)+SUMIFS('2-3. Travel Costs&Costs of Stay'!N:N,'2-3. Travel Costs&Costs of Stay'!C:C,B57,'2-3. Travel Costs&Costs of Stay'!B:B,$B$8)+SUMIFS('4. Equipment Costs'!H:H,'4. Equipment Costs'!C:C,B57,'4. Equipment Costs'!B:B,$B$8)+SUMIFS('5. Subcontracting Costs'!H:H,'5. Subcontracting Costs'!C:C,B57,'5. Subcontracting Costs'!B:B,$B$8) -> 0 | G57: =SUMIFS('1. Staff costs'!S:S,'1. Staff costs'!C:C,B57,'1. Staff costs'!B:B,$G$21)+SUMIFS('2-3. Travel Costs&Costs of Stay'!N:N,'2-3. Travel Costs&Costs of Stay'!C:C,B57,'2-3. Travel Costs&Costs of Stay'!B:B,$G$21)+SUMIFS('4. Equipment Costs'!H:H,'4. Equipment Costs'!C:C,B57,'4. Equipment Costs'!B:B,$G$21)+SUMIFS('5. Subcontracting Costs'!H:H,'5. Subcontracting Costs'!C:C,B57,'5. Subcontracting Costs'!B:B,$G$21) -> 0 | H57: 0 | I57: 0
B58: P37 | C58: =SUMIFS('1. Staff costs'!S:S,'1. Staff costs'!C:C,B58,'1. Staff costs'!B:B,$C$21)+SUMIFS('2-3. Travel Costs&Costs of Stay'!N:N,'2-3. Travel Costs&Costs of Stay'!C:C,B58,'2-3. Travel Costs&Costs of Stay'!B:B,$C$21)+SUMIFS('4. Equipment Costs'!H:H,'4. Equipment Costs'!C:C,B58,'4. Equipment Costs'!B:B,$C$21)+SUMIFS('5. Subcontracting Costs'!H:H,'5. Subcontracting Costs'!C:C,B58,'5. Subcontracting Costs'!B:B,$C$21) -> 0 | D58: =SUMIFS('1. Staff costs'!S:S,'1. Staff costs'!C:C,B58,'1. Staff costs'!B:B,$D$21)+SUMIFS('2-3. Travel Costs&Costs of Stay'!N:N,'2-3. Travel Costs&Costs of Stay'!C:C,B58,'2-3. Travel Costs&Costs of Stay'!B:B,$D$21)+SUMIFS('4. Equipment Costs'!H:H,'4. Equipment Costs'!C:C,B58,'4. Equipment Costs'!B:B,$D$21)+SUMIFS('5. Subcontracting Costs'!H:H,'5. Subcontracting Costs'!C:C,B58,'5. Subcontracting Costs'!B:B,$D$21) -> 0 | E58: =SUMIFS('1. Staff costs'!S:S,'1. Staff costs'!C:C,B58,'1. Staff costs'!B:B,$E$21)+SUMIFS('2-3. Travel Costs&Costs of Stay'!N:N,'2-3. Travel Costs&Costs of Stay'!C:C,B58,'2-3. Travel Costs&Costs of Stay'!B:B,$E$21)+SUMIFS('4. Equipment Costs'!H:H,'4. Equipment Costs'!C:C,B58,'4. Equipment Costs'!B:B,$E$21)+SUMIFS('5. Subcontracting Costs'!H:H,'5. Subcontracting Costs'!C:C,B58,'5. Subcontracting Costs'!B:B,$E$21) -> 0 | F58: =SUMIFS('1. Staff costs'!S:S,'1. Staff costs'!C:C,B58,'1. Staff costs'!B:B,$B$8)+SUMIFS('2-3. Travel Costs&Costs of Stay'!N:N,'2-3. Travel Costs&Costs of Stay'!C:C,B58,'2-3. Travel Costs&Costs of Stay'!B:B,$B$8)+SUMIFS('4. Equipment Costs'!H:H,'4. Equipment Costs'!C:C,B58,'4. Equipment Costs'!B:B,$B$8)+SUMIFS('5. Subcontracting Costs'!H:H,'5. Subcontracting Costs'!C:C,B58,'5. Subcontracting Costs'!B:B,$B$8) -> 0 | G58: =SUMIFS('1. Staff costs'!S:S,'1. Staff costs'!C:C,B58,'1. Staff costs'!B:B,$G$21)+SUMIFS('2-3. Travel Costs&Costs of Stay'!N:N,'2-3. Travel Costs&Costs of Stay'!C:C,B58,'2-3. Travel Costs&Costs of Stay'!B:B,$G$21)+SUMIFS('4. Equipment Costs'!H:H,'4. Equipment Costs'!C:C,B58,'4. Equipment Costs'!B:B,$G$21)+SUMIFS('5. Subcontracting Costs'!H:H,'5. Subcontracting Costs'!C:C,B58,'5. Subcontracting Costs'!B:B,$G$21) -> 0 | H58: 0 | I58: 0
B59: P38 | C59: =SUMIFS('1. Staff costs'!S:S,'1. Staff costs'!C:C,B59,'1. Staff costs'!B:B,$C$21)+SUMIFS('2-3. Travel Costs&Costs of Stay'!N:N,'2-3. Travel Costs&Costs of Stay'!C:C,B59,'2-3. Travel Costs&Costs of Stay'!B:B,$C$21)+SUMIFS('4. Equipment Costs'!H:H,'4. Equipment Costs'!C:C,B59,'4. Equipment Costs'!B:B,$C$21)+SUMIFS('5. Subcontracting Costs'!H:H,'5. Subcontracting Costs'!C:C,B59,'5. Subcontracting Costs'!B:B,$C$21) -> 0 | D59: =SUMIFS('1. Staff costs'!S:S,'1. Staff costs'!C:C,B59,'1. Staff costs'!B:B,$D$21)+SUMIFS('2-3. Travel Costs&Costs of Stay'!N:N,'2-3. Travel Costs&Costs of Stay'!C:C,B59,'2-3. Travel Costs&Costs of Stay'!B:B,$D$21)+SUMIFS('4. Equipment Costs'!H:H,'4. Equipment Costs'!C:C,B59,'4. Equipment Costs'!B:B,$D$21)+SUMIFS('5. Subcontracting Costs'!H:H,'5. Subcontracting Costs'!C:C,B59,'5. Subcontracting Costs'!B:B,$D$21) -> 0 | E59: =SUMIFS('1. Staff costs'!S:S,'1. Staff costs'!C:C,B59,'1. Staff costs'!B:B,$E$21)+SUMIFS('2-3. Travel Costs&Costs of Stay'!N:N,'2-3. Travel Costs&Costs of Stay'!C:C,B59,'2-3. Travel Costs&Costs of Stay'!B:B,$E$21)+SUMIFS('4. Equipment Costs'!H:H,'4. Equipment Costs'!C:C,B59,'4. Equipment Costs'!B:B,$E$21)+SUMIFS('5. Subcontracting Costs'!H:H,'5. Subcontracting Costs'!C:C,B59,'5. Subcontracting Costs'!B:B,$E$21) -> 0 | F59: =SUMIFS('1. Staff costs'!S:S,'1. Staff costs'!C:C,B59,'1. Staff costs'!B:B,$B$8)+SUMIFS('2-3. Travel Costs&Costs of Stay'!N:N,'2-3. Travel Costs&Costs of Stay'!C:C,B59,'2-3. Travel Costs&Costs of Stay'!B:B,$B$8)+SUMIFS('4. Equipment Costs'!H:H,'4. Equipment Costs'!C:C,B59,'4. Equipment Costs'!B:B,$B$8)+SUMIFS('5. Subcontracting Costs'!H:H,'5. Subcontracting Costs'!C:C,B59,'5. Subcontracting Costs'!B:B,$B$8) -> 0 | G59: =SUMIFS('1. Staff costs'!S:S,'1. Staff costs'!C:C,B59,'1. Staff costs'!B:B,$G$21)+SUMIFS('2-3. Travel Costs&Costs of Stay'!N:N,'2-3. Travel Costs&Costs of Stay'!C:C,B59,'2-3. Travel Costs&Costs of Stay'!B:B,$G$21)+SUMIFS('4. Equipment Costs'!H:H,'4. Equipment Costs'!C:C,B59,'4. Equipment Costs'!B:B,$G$21)+SUMIFS('5. Subcontracting Costs'!H:H,'5. Subcontracting Costs'!C:C,B59,'5. Subcontracting Costs'!B:B,$G$21) -> 0 | H59: 0 | I59: 0
B60: P39 | C60: =SUMIFS('1. Staff costs'!S:S,'1. Staff costs'!C:C,B60,'1. Staff costs'!B:B,$C$21)+SUMIFS('2-3. Travel Costs&Costs of Stay'!N:N,'2-3. Travel Costs&Costs of Stay'!C:C,B60,'2-3. Travel Costs&Costs of Stay'!B:B,$C$21)+SUMIFS('4. Equipment Costs'!H:H,'4. Equipment Costs'!C:C,B60,'4. Equipment Costs'!B:B,$C$21)+SUMIFS('5. Subcontracting Costs'!H:H,'5. Subcontracting Costs'!C:C,B60,'5. Subcontracting Costs'!B:B,$C$21) -> 0 | D60: =SUMIFS('1. Staff costs'!S:S,'1. Staff costs'!C:C,B60,'1. Staff costs'!B:B,$D$21)+SUMIFS('2-3. Travel Costs&Costs of Stay'!N:N,'2-3. Travel Costs&Costs of Stay'!C:C,B60,'2-3. Travel Costs&Costs of Stay'!B:B,$D$21)+SUMIFS('4. Equipment Costs'!H:H,'4. Equipment Costs'!C:C,B60,'4. Equipment Costs'!B:B,$D$21)+SUMIFS('5. Subcontracting Costs'!H:H,'5. Subcontracting Costs'!C:C,B60,'5. Subcontracting Costs'!B:B,$D$21) -> 0 | E60: =SUMIFS('1. Staff costs'!S:S,'1. Staff costs'!C:C,B60,'1. Staff costs'!B:B,$E$21)+SUMIFS('2-3. Travel Costs&Costs of Stay'!N:N,'2-3. Travel Costs&Costs of Stay'!C:C,B60,'2-3. Travel Costs&Costs of Stay'!B:B,$E$21)+SUMIFS('4. Equipment Costs'!H:H,'4. Equipment Costs'!C:C,B60,'4. Equipment Costs'!B:B,$E$21)+SUMIFS('5. Subcontracting Costs'!H:H,'5. Subcontracting Costs'!C:C,B60,'5. Subcontracting Costs'!B:B,$E$21) -> 0 | F60: =SUMIFS('1. Staff costs'!S:S,'1. Staff costs'!C:C,B60,'1. Staff costs'!B:B,$B$8)+SUMIFS('2-3. Travel Costs&Costs of Stay'!N:N,'2-3. Travel Costs&Costs of Stay'!C:C,B60,'2-3. Travel Costs&Costs of Stay'!B:B,$B$8)+SUMIFS('4. Equipment Costs'!H:H,'4. Equipment Costs'!C:C,B60,'4. Equipment Costs'!B:B,$B$8)+SUMIFS('5. Subcontracting Costs'!H:H,'5. Subcontracting Costs'!C:C,B60,'5. Subcontracting Costs'!B:B,$B$8) -> 0 | G60: =SUMIFS('1. Staff costs'!S:S,'1. Staff costs'!C:C,B60,'1. Staff costs'!B:B,$G$21)+SUMIFS('2-3. Travel Costs&Costs of Stay'!N:N,'2-3. Travel Costs&Costs of Stay'!C:C,B60,'2-3. Travel Costs&Costs of Stay'!B:B,$G$21)+SUMIFS('4. Equipment Costs'!H:H,'4. Equipment Costs'!C:C,B60,'4. Equipment Costs'!B:B,$G$21)+SUMIFS('5. Subcontracting Costs'!H:H,'5. Subcontracting Costs'!C:C,B60,'5. Subcontracting Costs'!B:B,$G$21) -> 0 | H60: 0 | I60: 0
B61: P40 | C61: =SUMIFS('1. Staff costs'!S:S,'1. Staff costs'!C:C,B61,'1. Staff costs'!B:B,$C$21)+SUMIFS('2-3. Travel Costs&Costs of Stay'!N:N,'2-3. Travel Costs&Costs of Stay'!C:C,B61,'2-3. Travel Costs&Costs of Stay'!B:B,$C$21)+SUMIFS('4. Equipment Costs'!H:H,'4. Equipment Costs'!C:C,B61,'4. Equipment Costs'!B:B,$C$21)+SUMIFS('5. Subcontracting Costs'!H:H,'5. Subcontracting Costs'!C:C,B61,'5. Subcontracting Costs'!B:B,$C$21) -> 0 | D61: =SUMIFS('1. Staff costs'!S:S,'1. Staff costs'!C:C,B61,'1. Staff costs'!B:B,$D$21)+SUMIFS('2-3. Travel Costs&Costs of Stay'!N:N,'2-3. Travel Costs&Costs of Stay'!C:C,B61,'2-3. Travel Costs&Costs of Stay'!B:B,$D$21)+SUMIFS('4. Equipment Costs'!H:H,'4. Equipment Costs'!C:C,B61,'4. Equipment Costs'!B:B,$D$21)+SUMIFS('5. Subcontracting Costs'!H:H,'5. Subcontracting Costs'!C:C,B61,'5. Subcontracting Costs'!B:B,$D$21) -> 0 | E61: =SUMIFS('1. Staff costs'!S:S,'1. Staff costs'!C:C,B61,'1. Staff costs'!B:B,$E$21)+SUMIFS('2-3. Travel Costs&Costs of Stay'!N:N,'2-3. Travel Costs&Costs of Stay'!C:C,B61,'2-3. Travel Costs&Costs of Stay'!B:B,$E$21)+SUMIFS('4. Equipment Costs'!H:H,'4. Equipment Costs'!C:C,B61,'4. Equipment Costs'!B:B,$E$21)+SUMIFS('5. Subcontracting Costs'!H:H,'5. Subcontracting Costs'!C:C,B61,'5. Subcontracting Costs'!B:B,$E$21) -> 0 | F61: =SUMIFS('1. Staff costs'!S:S,'1. Staff costs'!C:C,B61,'1. Staff costs'!B:B,$B$8)+SUMIFS('2-3. Travel Costs&Costs of Stay'!N:N,'2-3. Travel Costs&Costs of Stay'!C:C,B61,'2-3. Travel Costs&Costs of Stay'!B:B,$B$8)+SUMIFS('4. Equipment Costs'!H:H,'4. Equipment Costs'!C:C,B61,'4. Equipment Costs'!B:B,$B$8)+SUMIFS('5. Subcontracting Costs'!H:H,'5. Subcontracting Costs'!C:C,B61,'5. Subcontracting Costs'!B:B,$B$8) -> 0 | G61: =SUMIFS('1. Staff costs'!S:S,'1. Staff costs'!C:C,B61,'1. Staff costs'!B:B,$G$21)+SUMIFS('2-3. Travel Costs&Costs of Stay'!N:N,'2-3. Travel Costs&Costs of Stay'!C:C,B61,'2-3. Travel Costs&Costs of Stay'!B:B,$G$21)+SUMIFS('4. Equipment Costs'!H:H,'4. Equipment Costs'!C:C,B61,'4. Equipment Costs'!B:B,$G$21)+SUMIFS('5. Subcontracting Costs'!H:H,'5. Subcontracting Costs'!C:C,B61,'5. Subcontracting Costs'!B:B,$G$21) -> 0 | H61: 0 | I61: 0
B62: P41 | C62: =SUMIFS('1. Staff costs'!S:S,'1. Staff costs'!C:C,B62,'1. Staff costs'!B:B,$C$21)+SUMIFS('2-3. Travel Costs&Costs of Stay'!N:N,'2-3. Travel Costs&Costs of Stay'!C:C,B62,'2-3. Travel Costs&Costs of Stay'!B:B,$C$21)+SUMIFS('4. Equipment Costs'!H:H,'4. Equipment Costs'!C:C,B62,'4. Equipment Costs'!B:B,$C$21)+SUMIFS('5. Subcontracting Costs'!H:H,'5. Subcontracting Costs'!C:C,B62,'5. Subcontracting Costs'!B:B,$C$21) -> 0 | D62: =SUMIFS('1. Staff costs'!S:S,'1. Staff costs'!C:C,B62,'1. Staff costs'!B:B,$D$21)+SUMIFS('2-3. Travel Costs&Costs of Stay'!N:N,'2-3. Travel Costs&Costs of Stay'!C:C,B62,'2-3. Travel Costs&Costs of Stay'!B:B,$D$21)+SUMIFS('4. Equipment Costs'!H:H,'4. Equipment Costs'!C:C,B62,'4. Equipment Costs'!B:B,$D$21)+SUMIFS('5. Subcontracting Costs'!H:H,'5. Subcontracting Costs'!C:C,B62,'5. Subcontracting Costs'!B:B,$D$21) -> 0 | E62: =SUMIFS('1. Staff costs'!S:S,'1. Staff costs'!C:C,B62,'1. Staff costs'!B:B,$E$21)+SUMIFS('2-3. Travel Costs&Costs of Stay'!N:N,'2-3. Travel Costs&Costs of Stay'!C:C,B62,'2-3. Travel Costs&Costs of Stay'!B:B,$E$21)+SUMIFS('4. Equipment Costs'!H:H,'4. Equipment Costs'!C:C,B62,'4. Equipment Costs'!B:B,$E$21)+SUMIFS('5. Subcontracting Costs'!H:H,'5. Subcontracting Costs'!C:C,B62,'5. Subcontracting Costs'!B:B,$E$21) -> 0 | F62: =SUMIFS('1. Staff costs'!S:S,'1. Staff costs'!C:C,B62,'1. Staff costs'!B:B,$B$8)+SUMIFS('2-3. Travel Costs&Costs of Stay'!N:N,'2-3. Travel Costs&Costs of Stay'!C:C,B62,'2-3. Travel Costs&Costs of Stay'!B:B,$B$8)+SUMIFS('4. Equipment Costs'!H:H,'4. Equipment Costs'!C:C,B62,'4. Equipment Costs'!B:B,$B$8)+SUMIFS('5. Subcontracting Costs'!H:H,'5. Subcontracting Costs'!C:C,B62,'5. Subcontracting Costs'!B:B,$B$8) -> 0 | G62: =SUMIFS('1. Staff costs'!S:S,'1. Staff costs'!C:C,B62,'1. Staff costs'!B:B,$G$21)+SUMIFS('2-3. Travel Costs&Costs of Stay'!N:N,'2-3. Travel Costs&Costs of Stay'!C:C,B62,'2-3. Travel Costs&Costs of Stay'!B:B,$G$21)+SUMIFS('4. Equipment Costs'!H:H,'4. Equipment Costs'!C:C,B62,'4. Equipment Costs'!B:B,$G$21)+SUMIFS('5. Subcontracting Costs'!H:H,'5. Subcontracting Costs'!C:C,B62,'5. Subcontracting Costs'!B:B,$G$21) -> 0 | H62: 0 | I62: 0
B63: P42 | C63: =SUMIFS('1. Staff costs'!S:S,'1. Staff costs'!C:C,B63,'1. Staff costs'!B:B,$C$21)+SUMIFS('2-3. Travel Costs&Costs of Stay'!N:N,'2-3. Travel Costs&Costs of Stay'!C:C,B63,'2-3. Travel Costs&Costs of Stay'!B:B,$C$21)+SUMIFS('4. Equipment Costs'!H:H,'4. Equipment Costs'!C:C,B63,'4. Equipment Costs'!B:B,$C$21)+SUMIFS('5. Subcontracting Costs'!H:H,'5. Subcontracting Costs'!C:C,B63,'5. Subcontracting Costs'!B:B,$C$21) -> 0 | D63: =SUMIFS('1. Staff costs'!S:S,'1. Staff costs'!C:C,B63,'1. Staff costs'!B:B,$D$21)+SUMIFS('2-3. Travel Costs&Costs of Stay'!N:N,'2-3. Travel Costs&Costs of Stay'!C:C,B63,'2-3. Travel Costs&Costs of Stay'!B:B,$D$21)+SUMIFS('4. Equipment Costs'!H:H,'4. Equipment Costs'!C:C,B63,'4. Equipment Costs'!B:B,$D$21)+SUMIFS('5. Subcontracting Costs'!H:H,'5. Subcontracting Costs'!C:C,B63,'5. Subcontracting Costs'!B:B,$D$21) -> 0 | E63: =SUMIFS('1. Staff costs'!S:S,'1. Staff costs'!C:C,B63,'1. Staff costs'!B:B,$E$21)+SUMIFS('2-3. Travel Costs&Costs of Stay'!N:N,'2-3. Travel Costs&Costs of Stay'!C:C,B63,'2-3. Travel Costs&Costs of Stay'!B:B,$E$21)+SUMIFS('4. Equipment Costs'!H:H,'4. Equipment Costs'!C:C,B63,'4. Equipment Costs'!B:B,$E$21)+SUMIFS('5. Subcontracting Costs'!H:H,'5. Subcontracting Costs'!C:C,B63,'5. Subcontracting Costs'!B:B,$E$21) -> 0 | F63: =SUMIFS('1. Staff costs'!S:S,'1. Staff costs'!C:C,B63,'1. Staff costs'!B:B,$B$8)+SUMIFS('2-3. Travel Costs&Costs of Stay'!N:N,'2-3. Travel Costs&Costs of Stay'!C:C,B63,'2-3. Travel Costs&Costs of Stay'!B:B,$B$8)+SUMIFS('4. Equipment Costs'!H:H,'4. Equipment Costs'!C:C,B63,'4. Equipment Costs'!B:B,$B$8)+SUMIFS('5. Subcontracting Costs'!H:H,'5. Subcontracting Costs'!C:C,B63,'5. Subcontracting Costs'!B:B,$B$8) -> 0 | G63: =SUMIFS('1. Staff costs'!S:S,'1. Staff costs'!C:C,B63,'1. Staff costs'!B:B,$G$21)+SUMIFS('2-3. Travel Costs&Costs of Stay'!N:N,'2-3. Travel Costs&Costs of Stay'!C:C,B63,'2-3. Travel Costs&Costs of Stay'!B:B,$G$21)+SUMIFS('4. Equipment Costs'!H:H,'4. Equipment Costs'!C:C,B63,'4. Equipment Costs'!B:B,$G$21)+SUMIFS('5. Subcontracting Costs'!H:H,'5. Subcontracting Costs'!C:C,B63,'5. Subcontracting Costs'!B:B,$G$21) -> 0 | H63: 0 | I63: 0
B64: P43 | C64: =SUMIFS('1. Staff costs'!S:S,'1. Staff costs'!C:C,B64,'1. Staff costs'!B:B,$C$21)+SUMIFS('2-3. Travel Costs&Costs of Stay'!N:N,'2-3. Travel Costs&Costs of Stay'!C:C,B64,'2-3. Travel Costs&Costs of Stay'!B:B,$C$21)+SUMIFS('4. Equipment Costs'!H:H,'4. Equipment Costs'!C:C,B64,'4. Equipment Costs'!B:B,$C$21)+SUMIFS('5. Subcontracting Costs'!H:H,'5. Subcontracting Costs'!C:C,B64,'5. Subcontracting Costs'!B:B,$C$21) -> 0 | D64: =SUMIFS('1. Staff costs'!S:S,'1. Staff costs'!C:C,B64,'1. Staff costs'!B:B,$D$21)+SUMIFS('2-3. Travel Costs&Costs of Stay'!N:N,'2-3. Travel Costs&Costs of Stay'!C:C,B64,'2-3. Travel Costs&Costs of Stay'!B:B,$D$21)+SUMIFS('4. Equipment Costs'!H:H,'4. Equipment Costs'!C:C,B64,'4. Equipment Costs'!B:B,$D$21)+SUMIFS('5. Subcontracting Costs'!H:H,'5. Subcontracting Costs'!C:C,B64,'5. Subcontracting Costs'!B:B,$D$21) -> 0 | E64: =SUMIFS('1. Staff costs'!S:S,'1. Staff costs'!C:C,B64,'1. Staff costs'!B:B,$E$21)+SUMIFS('2-3. Travel Costs&Costs of Stay'!N:N,'2-3. Travel Costs&Costs of Stay'!C:C,B64,'2-3. Travel Costs&Costs of Stay'!B:B,$E$21)+SUMIFS('4. Equipment Costs'!H:H,'4. Equipment Costs'!C:C,B64,'4. Equipment Costs'!B:B,$E$21)+SUMIFS('5. Subcontracting Costs'!H:H,'5. Subcontracting Costs'!C:C,B64,'5. Subcontracting Costs'!B:B,$E$21) -> 0 | F64: =SUMIFS('1. Staff costs'!S:S,'1. Staff costs'!C:C,B64,'1. Staff costs'!B:B,$B$8)+SUMIFS('2-3. Travel Costs&Costs of Stay'!N:N,'2-3. Travel Costs&Costs of Stay'!C:C,B64,'2-3. Travel Costs&Costs of Stay'!B:B,$B$8)+SUMIFS('4. Equipment Costs'!H:H,'4. Equipment Costs'!C:C,B64,'4. Equipment Costs'!B:B,$B$8)+SUMIFS('5. Subcontracting Costs'!H:H,'5. Subcontracting Costs'!C:C,B64,'5. Subcontracting Costs'!B:B,$B$8) -> 0 | G64: =SUMIFS('1. Staff costs'!S:S,'1. Staff costs'!C:C,B64,'1. Staff costs'!B:B,$G$21)+SUMIFS('2-3. Travel Costs&Costs of Stay'!N:N,'2-3. Travel Costs&Costs of Stay'!C:C,B64,'2-3. Travel Costs&Costs of Stay'!B:B,$G$21)+SUMIFS('4. Equipment Costs'!H:H,'4. Equipment Costs'!C:C,B64,'4. Equipment Costs'!B:B,$G$21)+SUMIFS('5. Subcontracting Costs'!H:H,'5. Subcontracting Costs'!C:C,B64,'5. Subcontracting Costs'!B:B,$G$21) -> 0 | H64: 0 | I64: 0
B65: P44 | C65: =SUMIFS('1. Staff costs'!S:S,'1. Staff costs'!C:C,B65,'1. Staff costs'!B:B,$C$21)+SUMIFS('2-3. Travel Costs&Costs of Stay'!N:N,'2-3. Travel Costs&Costs of Stay'!C:C,B65,'2-3. Travel Costs&Costs of Stay'!B:B,$C$21)+SUMIFS('4. Equipment Costs'!H:H,'4. Equipment Costs'!C:C,B65,'4. Equipment Costs'!B:B,$C$21)+SUMIFS('5. Subcontracting Costs'!H:H,'5. Subcontracting Costs'!C:C,B65,'5. Subcontracting Costs'!B:B,$C$21) -> 0 | D65: =SUMIFS('1. Staff costs'!S:S,'1. Staff costs'!C:C,B65,'1. Staff costs'!B:B,$D$21)+SUMIFS('2-3. Travel Costs&Costs of Stay'!N:N,'2-3. Travel Costs&Costs of Stay'!C:C,B65,'2-3. Travel Costs&Costs of Stay'!B:B,$D$21)+SUMIFS('4. Equipment Costs'!H:H,'4. Equipment Costs'!C:C,B65,'4. Equipment Costs'!B:B,$D$21)+SUMIFS('5. Subcontracting Costs'!H:H,'5. Subcontracting Costs'!C:C,B65,'5. Subcontracting Costs'!B:B,$D$21) -> 0 | E65: =SUMIFS('1. Staff costs'!S:S,'1. Staff costs'!C:C,B65,'1. Staff costs'!B:B,$E$21)+SUMIFS('2-3. Travel Costs&Costs of Stay'!N:N,'2-3. Travel Costs&Costs of Stay'!C:C,B65,'2-3. Travel Costs&Costs of Stay'!B:B,$E$21)+SUMIFS('4. Equipment Costs'!H:H,'4. Equipment Costs'!C:C,B65,'4. Equipment Costs'!B:B,$E$21)+SUMIFS('5. Subcontracting Costs'!H:H,'5. Subcontracting Costs'!C:C,B65,'5. Subcontracting Costs'!B:B,$E$21) -> 0 | F65: =SUMIFS('1. Staff costs'!S:S,'1. Staff costs'!C:C,B65,'1. Staff costs'!B:B,$B$8)+SUMIFS('2-3. Travel Costs&Costs of Stay'!N:N,'2-3. Travel Costs&Costs of Stay'!C:C,B65,'2-3. Travel Costs&Costs of Stay'!B:B,$B$8)+SUMIFS('4. Equipment Costs'!H:H,'4. Equipment Costs'!C:C,B65,'4. Equipment Costs'!B:B,$B$8)+SUMIFS('5. Subcontracting Costs'!H:H,'5. Subcontracting Costs'!C:C,B65,'5. Subcontracting Costs'!B:B,$B$8) -> 0 | G65: =SUMIFS('1. Staff costs'!S:S,'1. Staff costs'!C:C,B65,'1. Staff costs'!B:B,$G$21)+SUMIFS('2-3. Travel Costs&Costs of Stay'!N:N,'2-3. Travel Costs&Costs of Stay'!C:C,B65,'2-3. Travel Costs&Costs of Stay'!B:B,$G$21)+SUMIFS('4. Equipment Costs'!H:H,'4. Equipment Costs'!C:C,B65,'4. Equipment Costs'!B:B,$G$21)+SUMIFS('5. Subcontracting Costs'!H:H,'5. Subcontracting Costs'!C:C,B65,'5. Subcontracting Costs'!B:B,$G$21) -> 0 | H65: 0 | I65: 0
B66: P45 | C66: =SUMIFS('1. Staff costs'!S:S,'1. Staff costs'!C:C,B66,'1. Staff costs'!B:B,$C$21)+SUMIFS('2-3. Travel Costs&Costs of Stay'!N:N,'2-3. Travel Costs&Costs of Stay'!C:C,B66,'2-3. Travel Costs&Costs of Stay'!B:B,$C$21)+SUMIFS('4. Equipment Costs'!H:H,'4. Equipment Costs'!C:C,B66,'4. Equipment Costs'!B:B,$C$21)+SUMIFS('5. Subcontracting Costs'!H:H,'5. Subcontracting Costs'!C:C,B66,'5. Subcontracting Costs'!B:B,$C$21) -> 0 | D66: =SUMIFS('1. Staff costs'!S:S,'1. Staff costs'!C:C,B66,'1. Staff costs'!B:B,$D$21)+SUMIFS('2-3. Travel Costs&Costs of Stay'!N:N,'2-3. Travel Costs&Costs of Stay'!C:C,B66,'2-3. Travel Costs&Costs of Stay'!B:B,$D$21)+SUMIFS('4. Equipment Costs'!H:H,'4. Equipment Costs'!C:C,B66,'4. Equipment Costs'!B:B,$D$21)+SUMIFS('5. Subcontracting Costs'!H:H,'5. Subcontracting Costs'!C:C,B66,'5. Subcontracting Costs'!B:B,$D$21) -> 0 | E66: =SUMIFS('1. Staff costs'!S:S,'1. Staff costs'!C:C,B66,'1. Staff costs'!B:B,$E$21)+SUMIFS('2-3. Travel Costs&Costs of Stay'!N:N,'2-3. Travel Costs&Costs of Stay'!C:C,B66,'2-3. Travel Costs&Costs of Stay'!B:B,$E$21)+SUMIFS('4. Equipment Costs'!H:H,'4. Equipment Costs'!C:C,B66,'4. Equipment Costs'!B:B,$E$21)+SUMIFS('5. Subcontracting Costs'!H:H,'5. Subcontracting Costs'!C:C,B66,'5. Subcontracting Costs'!B:B,$E$21) -> 0 | F66: =SUMIFS('1. Staff costs'!S:S,'1. Staff costs'!C:C,B66,'1. Staff costs'!B:B,$B$8)+SUMIFS('2-3. Travel Costs&Costs of Stay'!N:N,'2-3. Travel Costs&Costs of Stay'!C:C,B66,'2-3. Travel Costs&Costs of Stay'!B:B,$B$8)+SUMIFS('4. Equipment Costs'!H:H,'4. Equipment Costs'!C:C,B66,'4. Equipment Costs'!B:B,$B$8)+SUMIFS('5. Subcontracting Costs'!H:H,'5. Subcontracting Costs'!C:C,B66,'5. Subcontracting Costs'!B:B,$B$8) -> 0 | G66: =SUMIFS('1. Staff costs'!S:S,'1. Staff costs'!C:C,B66,'1. Staff costs'!B:B,$G$21)+SUMIFS('2-3. Travel Costs&Costs of Stay'!N:N,'2-3. Travel Costs&Costs of Stay'!C:C,B66,'2-3. Travel Costs&Costs of Stay'!B:B,$G$21)+SUMIFS('4. Equipment Costs'!H:H,'4. Equipment Costs'!C:C,B66,'4. Equipment Costs'!B:B,$G$21)+SUMIFS('5. Subcontracting Costs'!H:H,'5. Subcontracting Costs'!C:C,B66,'5. Subcontracting Costs'!B:B,$G$21) -> 0 | H66: 0 | I66: 0
B67: P46 | C67: =SUMIFS('1. Staff costs'!S:S,'1. Staff costs'!C:C,B67,'1. Staff costs'!B:B,$C$21)+SUMIFS('2-3. Travel Costs&Costs of Stay'!N:N,'2-3. Travel Costs&Costs of Stay'!C:C,B67,'2-3. Travel Costs&Costs of Stay'!B:B,$C$21)+SUMIFS('4. Equipment Costs'!H:H,'4. Equipment Costs'!C:C,B67,'4. Equipment Costs'!B:B,$C$21)+SUMIFS('5. Subcontracting Costs'!H:H,'5. Subcontracting Costs'!C:C,B67,'5. Subcontracting Costs'!B:B,$C$21) -> 0 | D67: =SUMIFS('1. Staff costs'!S:S,'1. Staff costs'!C:C,B67,'1. Staff costs'!B:B,$D$21)+SUMIFS('2-3. Travel Costs&Costs of Stay'!N:N,'2-3. Travel Costs&Costs of Stay'!C:C,B67,'2-3. Travel Costs&Costs of Stay'!B:B,$D$21)+SUMIFS('4. Equipment Costs'!H:H,'4. Equipment Costs'!C:C,B67,'4. Equipment Costs'!B:B,$D$21)+SUMIFS('5. Subcontracting Costs'!H:H,'5. Subcontracting Costs'!C:C,B67,'5. Subcontracting Costs'!B:B,$D$21) -> 0 | E67: =SUMIFS('1. Staff costs'!S:S,'1. Staff costs'!C:C,B67,'1. Staff costs'!B:B,$E$21)+SUMIFS('2-3. Travel Costs&Costs of Stay'!N:N,'2-3. Travel Costs&Costs of Stay'!C:C,B67,'2-3. Travel Costs&Costs of Stay'!B:B,$E$21)+SUMIFS('4. Equipment Costs'!H:H,'4. Equipment Costs'!C:C,B67,'4. Equipment Costs'!B:B,$E$21)+SUMIFS('5. Subcontracting Costs'!H:H,'5. Subcontracting Costs'!C:C,B67,'5. Subcontracting Costs'!B:B,$E$21) -> 0 | F67: =SUMIFS('1. Staff costs'!S:S,'1. Staff costs'!C:C,B67,'1. Staff costs'!B:B,$B$8)+SUMIFS('2-3. Travel Costs&Costs of Stay'!N:N,'2-3. Travel Costs&Costs of Stay'!C:C,B67,'2-3. Travel Costs&Costs of Stay'!B:B,$B$8)+SUMIFS('4. Equipment Costs'!H:H,'4. Equipment Costs'!C:C,B67,'4. Equipment Costs'!B:B,$B$8)+SUMIFS('5. Subcontracting Costs'!H:H,'5. Subcontracting Costs'!C:C,B67,'5. Subcontracting Costs'!B:B,$B$8) -> 0 | G67: =SUMIFS('1. Staff costs'!S:S,'1. Staff costs'!C:C,B67,'1. Staff costs'!B:B,$G$21)+SUMIFS('2-3. Travel Costs&Costs of Stay'!N:N,'2-3. Travel Costs&Costs of Stay'!C:C,B67,'2-3. Travel Costs&Costs of Stay'!B:B,$G$21)+SUMIFS('4. Equipment Costs'!H:H,'4. Equipment Costs'!C:C,B67,'4. Equipment Costs'!B:B,$G$21)+SUMIFS('5. Subcontracting Costs'!H:H,'5. Subcontracting Costs'!C:C,B67,'5. Subcontracting Costs'!B:B,$G$21) -> 0 | H67: 0 | I67: 0
B68: P47 | C68: =SUMIFS('1. Staff costs'!S:S,'1. Staff costs'!C:C,B68,'1. Staff costs'!B:B,$C$21)+SUMIFS('2-3. Travel Costs&Costs of Stay'!N:N,'2-3. Travel Costs&Costs of Stay'!C:C,B68,'2-3. Travel Costs&Costs of Stay'!B:B,$C$21)+SUMIFS('4. Equipment Costs'!H:H,'4. Equipment Costs'!C:C,B68,'4. Equipment Costs'!B:B,$C$21)+SUMIFS('5. Subcontracting Costs'!H:H,'5. Subcontracting Costs'!C:C,B68,'5. Subcontracting Costs'!B:B,$C$21) -> 0 | D68: =SUMIFS('1. Staff costs'!S:S,'1. Staff costs'!C:C,B68,'1. Staff costs'!B:B,$D$21)+SUMIFS('2-3. Travel Costs&Costs of Stay'!N:N,'2-3. Travel Costs&Costs of Stay'!C:C,B68,'2-3. Travel Costs&Costs of Stay'!B:B,$D$21)+SUMIFS('4. Equipment Costs'!H:H,'4. Equipment Costs'!C:C,B68,'4. Equipment Costs'!B:B,$D$21)+SUMIFS('5. Subcontracting Costs'!H:H,'5. Subcontracting Costs'!C:C,B68,'5. Subcontracting Costs'!B:B,$D$21) -> 0 | E68: =SUMIFS('1. Staff costs'!S:S,'1. Staff costs'!C:C,B68,'1. Staff costs'!B:B,$E$21)+SUMIFS('2-3. Travel Costs&Costs of Stay'!N:N,'2-3. Travel Costs&Costs of Stay'!C:C,B68,'2-3. Travel Costs&Costs of Stay'!B:B,$E$21)+SUMIFS('4. Equipment Costs'!H:H,'4. Equipment Costs'!C:C,B68,'4. Equipment Costs'!B:B,$E$21)+SUMIFS('5. Subcontracting Costs'!H:H,'5. Subcontracting Costs'!C:C,B68,'5. Subcontracting Costs'!B:B,$E$21) -> 0 | F68: =SUMIFS('1. Staff costs'!S:S,'1. Staff costs'!C:C,B68,'1. Staff costs'!B:B,$B$8)+SUMIFS('2-3. Travel Costs&Costs of Stay'!N:N,'2-3. Travel Costs&Costs of Stay'!C:C,B68,'2-3. Travel Costs&Costs of Stay'!B:B,$B$8)+SUMIFS('4. Equipment Costs'!H:H,'4. Equipment Costs'!C:C,B68,'4. Equipment Costs'!B:B,$B$8)+SUMIFS('5. Subcontracting Costs'!H:H,'5. Subcontracting Costs'!C:C,B68,'5. Subcontracting Costs'!B:B,$B$8) -> 0 | G68: =SUMIFS('1. Staff costs'!S:S,'1. Staff costs'!C:C,B68,'1. Staff costs'!B:B,$G$21)+SUMIFS('2-3. Travel Costs&Costs of Stay'!N:N,'2-3. Travel Costs&Costs of Stay'!C:C,B68,'2-3. Travel Costs&Costs of Stay'!B:B,$G$21)+SUMIFS('4. Equipment Costs'!H:H,'4. Equipment Costs'!C:C,B68,'4. Equipment Costs'!B:B,$G$21)+SUMIFS('5. Subcontracting Costs'!H:H,'5. Subcontracting Costs'!C:C,B68,'5. Subcontracting Costs'!B:B,$G$21) -> 0 | H68: 0 | I68: 0
B69: P48 | C69: =SUMIFS('1. Staff costs'!S:S,'1. Staff costs'!C:C,B69,'1. Staff costs'!B:B,$C$21)+SUMIFS('2-3. Travel Costs&Costs of Stay'!N:N,'2-3. Travel Costs&Costs of Stay'!C:C,B69,'2-3. Travel Costs&Costs of Stay'!B:B,$C$21)+SUMIFS('4. Equipment Costs'!H:H,'4. Equipment Costs'!C:C,B69,'4. Equipment Costs'!B:B,$C$21)+SUMIFS('5. Subcontracting Costs'!H:H,'5. Subcontracting Costs'!C:C,B69,'5. Subcontracting Costs'!B:B,$C$21) -> 0 | D69: =SUMIFS('1. Staff costs'!S:S,'1. Staff costs'!C:C,B69,'1. Staff costs'!B:B,$D$21)+SUMIFS('2-3. Travel Costs&Costs of Stay'!N:N,'2-3. Travel Costs&Costs of Stay'!C:C,B69,'2-3. Travel Costs&Costs of Stay'!B:B,$D$21)+SUMIFS('4. Equipment Costs'!H:H,'4. Equipment Costs'!C:C,B69,'4. Equipment Costs'!B:B,$D$21)+SUMIFS('5. Subcontracting Costs'!H:H,'5. Subcontracting Costs'!C:C,B69,'5. Subcontracting Costs'!B:B,$D$21) -> 0 | E69: =SUMIFS('1. Staff costs'!S:S,'1. Staff costs'!C:C,B69,'1. Staff costs'!B:B,$E$21)+SUMIFS('2-3. Travel Costs&Costs of Stay'!N:N,'2-3. Travel Costs&Costs of Stay'!C:C,B69,'2-3. Travel Costs&Costs of Stay'!B:B,$E$21)+SUMIFS('4. Equipment Costs'!H:H,'4. Equipment Costs'!C:C,B69,'4. Equipment Costs'!B:B,$E$21)+SUMIFS('5. Subcontracting Costs'!H:H,'5. Subcontracting Costs'!C:C,B69,'5. Subcontracting Costs'!B:B,$E$21) -> 0 | F69: =SUMIFS('1. Staff costs'!S:S,'1. Staff costs'!C:C,B69,'1. Staff costs'!B:B,$B$8)+SUMIFS('2-3. Travel Costs&Costs of Stay'!N:N,'2-3. Travel Costs&Costs of Stay'!C:C,B69,'2-3. Travel Costs&Costs of Stay'!B:B,$B$8)+SUMIFS('4. Equipment Costs'!H:H,'4. Equipment Costs'!C:C,B69,'4. Equipment Costs'!B:B,$B$8)+SUMIFS('5. Subcontracting Costs'!H:H,'5. Subcontracting Costs'!C:C,B69,'5. Subcontracting Costs'!B:B,$B$8) -> 0 | G69: =SUMIFS('1. Staff costs'!S:S,'1. Staff costs'!C:C,B69,'1. Staff costs'!B:B,$G$21)+SUMIFS('2-3. Travel Costs&Costs of Stay'!N:N,'2-3. Travel Costs&Costs of Stay'!C:C,B69,'2-3. Travel Costs&Costs of Stay'!B:B,$G$21)+SUMIFS('4. Equipment Costs'!H:H,'4. Equipment Costs'!C:C,B69,'4. Equipment Costs'!B:B,$G$21)+SUMIFS('5. Subcontracting Costs'!H:H,'5. Subcontracting Costs'!C:C,B69,'5. Subcontracting Costs'!B:B,$G$21) -> 0 | H69: 0 | I69: 0
B70: P49 | C70: =SUMIFS('1. Staff costs'!S:S,'1. Staff costs'!C:C,B70,'1. Staff costs'!B:B,$C$21)+SUMIFS('2-3. Travel Costs&Costs of Stay'!N:N,'2-3. Travel Costs&Costs of Stay'!C:C,B70,'2-3. Travel Costs&Costs of Stay'!B:B,$C$21)+SUMIFS('4. Equipment Costs'!H:H,'4. Equipment Costs'!C:C,B70,'4. Equipment Costs'!B:B,$C$21)+SUMIFS('5. Subcontracting Costs'!H:H,'5. Subcontracting Costs'!C:C,B70,'5. Subcontracting Costs'!B:B,$C$21) -> 0 | D70: =SUMIFS('1. Staff costs'!S:S,'1. Staff costs'!C:C,B70,'1. Staff costs'!B:B,$D$21)+SUMIFS('2-3. Travel Costs&Costs of Stay'!N:N,'2-3. Travel Costs&Costs of Stay'!C:C,B70,'2-3. Travel Costs&Costs of Stay'!B:B,$D$21)+SUMIFS('4. Equipment Costs'!H:H,'4. Equipment Costs'!C:C,B70,'4. Equipment Costs'!B:B,$D$21)+SUMIFS('5. Subcontracting Costs'!H:H,'5. Subcontracting Costs'!C:C,B70,'5. Subcontracting Costs'!B:B,$D$21) -> 0 | E70: =SUMIFS('1. Staff costs'!S:S,'1. Staff costs'!C:C,B70,'1. Staff costs'!B:B,$E$21)+SUMIFS('2-3. Travel Costs&Costs of Stay'!N:N,'2-3. Travel Costs&Costs of Stay'!C:C,B70,'2-3. Travel Costs&Costs of Stay'!B:B,$E$21)+SUMIFS('4. Equipment Costs'!H:H,'4. Equipment Costs'!C:C,B70,'4. Equipment Costs'!B:B,$E$21)+SUMIFS('5. Subcontracting Costs'!H:H,'5. Subcontracting Costs'!C:C,B70,'5. Subcontracting Costs'!B:B,$E$21) -> 0 | F70: =SUMIFS('1. Staff costs'!S:S,'1. Staff costs'!C:C,B70,'1. Staff costs'!B:B,$B$8)+SUMIFS('2-3. Travel Costs&Costs of Stay'!N:N,'2-3. Travel Costs&Costs of Stay'!C:C,B70,'2-3. Travel Costs&Costs of Stay'!B:B,$B$8)+SUMIFS('4. Equipment Costs'!H:H,'4. Equipment Costs'!C:C,B70,'4. Equipment Costs'!B:B,$B$8)+SUMIFS('5. Subcontracting Costs'!H:H,'5. Subcontracting Costs'!C:C,B70,'5. Subcontracting Costs'!B:B,$B$8) -> 0 | G70: =SUMIFS('1. Staff costs'!S:S,'1. Staff costs'!C:C,B70,'1. Staff costs'!B:B,$G$21)+SUMIFS('2-3. Travel Costs&Costs of Stay'!N:N,'2-3. Travel Costs&Costs of Stay'!C:C,B70,'2-3. Travel Costs&Costs of Stay'!B:B,$G$21)+SUMIFS('4. Equipment Costs'!H:H,'4. Equipment Costs'!C:C,B70,'4. Equipment Costs'!B:B,$G$21)+SUMIFS('5. Subcontracting Costs'!H:H,'5. Subcontracting Costs'!C:C,B70,'5. Subcontracting Costs'!B:B,$G$21) -> 0 | H70: 0 | I70: 0
B71: P50 | C71: =SUMIFS('1. Staff costs'!S:S,'1. Staff costs'!C:C,B71,'1. Staff costs'!B:B,$C$21)+SUMIFS('2-3. Travel Costs&Costs of Stay'!N:N,'2-3. Travel Costs&Costs of Stay'!C:C,B71,'2-3. Travel Costs&Costs of Stay'!B:B,$C$21)+SUMIFS('4. Equipment Costs'!H:H,'4. Equipment Costs'!C:C,B71,'4. Equipment Costs'!B:B,$C$21)+SUMIFS('5. Subcontracting Costs'!H:H,'5. Subcontracting Costs'!C:C,B71,'5. Subcontracting Costs'!B:B,$C$21) -> 0 | D71: =SUMIFS('1. Staff costs'!S:S,'1. Staff costs'!C:C,B71,'1. Staff costs'!B:B,$D$21)+SUMIFS('2-3. Travel Costs&Costs of Stay'!N:N,'2-3. Travel Costs&Costs of Stay'!C:C,B71,'2-3. Travel Costs&Costs of Stay'!B:B,$D$21)+SUMIFS('4. Equipment Costs'!H:H,'4. Equipment Costs'!C:C,B71,'4. Equipment Costs'!B:B,$D$21)+SUMIFS('5. Subcontracting Costs'!H:H,'5. Subcontracting Costs'!C:C,B71,'5. Subcontracting Costs'!B:B,$D$21) -> 0 | E71: =SUMIFS('1. Staff costs'!S:S,'1. Staff costs'!C:C,B71,'1. Staff costs'!B:B,$E$21)+SUMIFS('2-3. Travel Costs&Costs of Stay'!N:N,'2-3. Travel Costs&Costs of Stay'!C:C,B71,'2-3. Travel Costs&Costs of Stay'!B:B,$E$21)+SUMIFS('4. Equipment Costs'!H:H,'4. Equipment Costs'!C:C,B71,'4. Equipment Costs'!B:B,$E$21)+SUMIFS('5. Subcontracting Costs'!H:H,'5. Subcontracting Costs'!C:C,B71,'5. Subcontracting Costs'!B:B,$E$21) -> 0 | F71: =SUMIFS('1. Staff costs'!S:S,'1. Staff costs'!C:C,B71,'1. Staff costs'!B:B,$B$8)+SUMIFS('2-3. Travel Costs&Costs of Stay'!N:N,'2-3. Travel Costs&Costs of Stay'!C:C,B71,'2-3. Travel Costs&Costs of Stay'!B:B,$B$8)+SUMIFS('4. Equipment Costs'!H:H,'4. Equipment Costs'!C:C,B71,'4. Equipment Costs'!B:B,$B$8)+SUMIFS('5. Subcontracting Costs'!H:H,'5. Subcontracting Costs'!C:C,B71,'5. Subcontracting Costs'!B:B,$B$8) -> 0 | G71: =SUMIFS('1. Staff costs'!S:S,'1. Staff costs'!C:C,B71,'1. Staff costs'!B:B,$G$21)+SUMIFS('2-3. Travel Costs&Costs of Stay'!N:N,'2-3. Travel Costs&Costs of Stay'!C:C,B71,'2-3. Travel Costs&Costs of Stay'!B:B,$G$21)+SUMIFS('4. Equipment Costs'!H:H,'4. Equipment Costs'!C:C,B71,'4. Equipment Costs'!B:B,$G$21)+SUMIFS('5. Subcontracting Costs'!H:H,'5. Subcontracting Costs'!C:C,B71,'5. Subcontracting Costs'!B:B,$G$21) -> 0 | H71: 0 | I71: 0
B72: P51 | C72: =SUMIFS('1. Staff costs'!S:S,'1. Staff costs'!C:C,B72,'1. Staff costs'!B:B,$C$21)+SUMIFS('2-3. Travel Costs&Costs of Stay'!N:N,'2-3. Travel Costs&Costs of Stay'!C:C,B72,'2-3. Travel Costs&Costs of Stay'!B:B,$C$21)+SUMIFS('4. Equipment Costs'!H:H,'4. Equipment Costs'!C:C,B72,'4. Equipment Costs'!B:B,$C$21)+SUMIFS('5. Subcontracting Costs'!H:H,'5. Subcontracting Costs'!C:C,B72,'5. Subcontracting Costs'!B:B,$C$21) -> 0 | D72: =SUMIFS('1. Staff costs'!S:S,'1. Staff costs'!C:C,B72,'1. Staff costs'!B:B,$D$21)+SUMIFS('2-3. Travel Costs&Costs of Stay'!N:N,'2-3. Travel Costs&Costs of Stay'!C:C,B72,'2-3. Travel Costs&Costs of Stay'!B:B,$D$21)+SUMIFS('4. Equipment Costs'!H:H,'4. Equipment Costs'!C:C,B72,'4. Equipment Costs'!B:B,$D$21)+SUMIFS('5. Subcontracting Costs'!H:H,'5. Subcontracting Costs'!C:C,B72,'5. Subcontracting Costs'!B:B,$D$21) -> 0 | E72: =SUMIFS('1. Staff costs'!S:S,'1. Staff costs'!C:C,B72,'1. Staff costs'!B:B,$E$21)+SUMIFS('2-3. Travel Costs&Costs of Stay'!N:N,'2-3. Travel Costs&Costs of Stay'!C:C,B72,'2-3. Travel Costs&Costs of Stay'!B:B,$E$21)+SUMIFS('4. Equipment Costs'!H:H,'4. Equipment Costs'!C:C,B72,'4. Equipment Costs'!B:B,$E$21)+SUMIFS('5. Subcontracting Costs'!H:H,'5. Subcontracting Costs'!C:C,B72,'5. Subcontracting Costs'!B:B,$E$21) -> 0 | F72: =SUMIFS('1. Staff costs'!S:S,'1. Staff costs'!C:C,B72,'1. Staff costs'!B:B,$B$8)+SUMIFS('2-3. Travel Costs&Costs of Stay'!N:N,'2-3. Travel Costs&Costs of Stay'!C:C,B72,'2-3. Travel Costs&Costs of Stay'!B:B,$B$8)+SUMIFS('4. Equipment Costs'!H:H,'4. Equipment Costs'!C:C,B72,'4. Equipment Costs'!B:B,$B$8)+SUMIFS('5. Subcontracting Costs'!H:H,'5. Subcontracting Costs'!C:C,B72,'5. Subcontracting Costs'!B:B,$B$8) -> 0 | G72: =SUMIFS('1. Staff costs'!S:S,'1. Staff costs'!C:C,B72,'1. Staff costs'!B:B,$G$21)+SUMIFS('2-3. Travel Costs&Costs of Stay'!N:N,'2-3. Travel Costs&Costs of Stay'!C:C,B72,'2-3. Travel Costs&Costs of Stay'!B:B,$G$21)+SUMIFS('4. Equipment Costs'!H:H,'4. Equipment Costs'!C:C,B72,'4. Equipment Costs'!B:B,$G$21)+SUMIFS('5. Subcontracting Costs'!H:H,'5. Subcontracting Costs'!C:C,B72,'5. Subcontracting Costs'!B:B,$G$21) -> 0 | H72: 0 | I72: 0
B73: P52 | C73: =SUMIFS('1. Staff costs'!S:S,'1. Staff costs'!C:C,B73,'1. Staff costs'!B:B,$C$21)+SUMIFS('2-3. Travel Costs&Costs of Stay'!N:N,'2-3. Travel Costs&Costs of Stay'!C:C,B73,'2-3. Travel Costs&Costs of Stay'!B:B,$C$21)+SUMIFS('4. Equipment Costs'!H:H,'4. Equipment Costs'!C:C,B73,'4. Equipment Costs'!B:B,$C$21)+SUMIFS('5. Subcontracting Costs'!H:H,'5. Subcontracting Costs'!C:C,B73,'5. Subcontracting Costs'!B:B,$C$21) -> 0 | D73: =SUMIFS('1. Staff costs'!S:S,'1. Staff costs'!C:C,B73,'1. Staff costs'!B:B,$D$21)+SUMIFS('2-3. Travel Costs&Costs of Stay'!N:N,'2-3. Travel Costs&Costs of Stay'!C:C,B73,'2-3. Travel Costs&Costs of Stay'!B:B,$D$21)+SUMIFS('4. Equipment Costs'!H:H,'4. Equipment Costs'!C:C,B73,'4. Equipment Costs'!B:B,$D$21)+SUMIFS('5. Subcontracting Costs'!H:H,'5. Subcontracting Costs'!C:C,B73,'5. Subcontracting Costs'!B:B,$D$21) -> 0 | E73: =SUMIFS('1. Staff costs'!S:S,'1. Staff costs'!C:C,B73,'1. Staff costs'!B:B,$E$21)+SUMIFS('2-3. Travel Costs&Costs of Stay'!N:N,'2-3. Travel Costs&Costs of Stay'!C:C,B73,'2-3. Travel Costs&Costs of Stay'!B:B,$E$21)+SUMIFS('4. Equipment Costs'!H:H,'4. Equipment Costs'!C:C,B73,'4. Equipment Costs'!B:B,$E$21)+SUMIFS('5. Subcontracting Costs'!H:H,'5. Subcontracting Costs'!C:C,B73,'5. Subcontracting Costs'!B:B,$E$21) -> 0 | F73: =SUMIFS('1. Staff costs'!S:S,'1. Staff costs'!C:C,B73,'1. Staff costs'!B:B,$B$8)+SUMIFS('2-3. Travel Costs&Costs of Stay'!N:N,'2-3. Travel Costs&Costs of Stay'!C:C,B73,'2-3. Travel Costs&Costs of Stay'!B:B,$B$8)+SUMIFS('4. Equipment Costs'!H:H,'4. Equipment Costs'!C:C,B73,'4. Equipment Costs'!B:B,$B$8)+SUMIFS('5. Subcontracting Costs'!H:H,'5. Subcontracting Costs'!C:C,B73,'5. Subcontracting Costs'!B:B,$B$8) -> 0 | G73: =SUMIFS('1. Staff costs'!S:S,'1. Staff costs'!C:C,B73,'1. Staff costs'!B:B,$G$21)+SUMIFS('2-3. Travel Costs&Costs of Stay'!N:N,'2-3. Travel Costs&Costs of Stay'!C:C,B73,'2-3. Travel Costs&Costs of Stay'!B:B,$G$21)+SUMIFS('4. Equipment Costs'!H:H,'4. Equipment Costs'!C:C,B73,'4. Equipment Costs'!B:B,$G$21)+SUMIFS('5. Subcontracting Costs'!H:H,'5. Subcontracting Costs'!C:C,B73,'5. Subcontracting Costs'!B:B,$G$21) -> 0 | H73: 0 | I73: 0
B74: P53 | C74: =SUMIFS('1. Staff costs'!S:S,'1. Staff costs'!C:C,B74,'1. Staff costs'!B:B,$C$21)+SUMIFS('2-3. Travel Costs&Costs of Stay'!N:N,'2-3. Travel Costs&Costs of Stay'!C:C,B74,'2-3. Travel Costs&Costs of Stay'!B:B,$C$21)+SUMIFS('4. Equipment Costs'!H:H,'4. Equipment Costs'!C:C,B74,'4. Equipment Costs'!B:B,$C$21)+SUMIFS('5. Subcontracting Costs'!H:H,'5. Subcontracting Costs'!C:C,B74,'5. Subcontracting Costs'!B:B,$C$21) -> 0 | D74: =SUMIFS('1. Staff costs'!S:S,'1. Staff costs'!C:C,B74,'1. Staff costs'!B:B,$D$21)+SUMIFS('2-3. Travel Costs&Costs of Stay'!N:N,'2-3. Travel Costs&Costs of Stay'!C:C,B74,'2-3. Travel Costs&Costs of Stay'!B:B,$D$21)+SUMIFS('4. Equipment Costs'!H:H,'4. Equipment Costs'!C:C,B74,'4. Equipment Costs'!B:B,$D$21)+SUMIFS('5. Subcontracting Costs'!H:H,'5. Subcontracting Costs'!C:C,B74,'5. Subcontracting Costs'!B:B,$D$21) -> 0 | E74: =SUMIFS('1. Staff costs'!S:S,'1. Staff costs'!C:C,B74,'1. Staff costs'!B:B,$E$21)+SUMIFS('2-3. Travel Costs&Costs of Stay'!N:N,'2-3. Travel Costs&Costs of Stay'!C:C,B74,'2-3. Travel Costs&Costs of Stay'!B:B,$E$21)+SUMIFS('4. Equipment Costs'!H:H,'4. Equipment Costs'!C:C,B74,'4. Equipment Costs'!B:B,$E$21)+SUMIFS('5. Subcontracting Costs'!H:H,'5. Subcontracting Costs'!C:C,B74,'5. Subcontracting Costs'!B:B,$E$21) -> 0 | F74: =SUMIFS('1. Staff costs'!S:S,'1. Staff costs'!C:C,B74,'1. Staff costs'!B:B,$B$8)+SUMIFS('2-3. Travel Costs&Costs of Stay'!N:N,'2-3. Travel Costs&Costs of Stay'!C:C,B74,'2-3. Travel Costs&Costs of Stay'!B:B,$B$8)+SUMIFS('4. Equipment Costs'!H:H,'4. Equipment Costs'!C:C,B74,'4. Equipment Costs'!B:B,$B$8)+SUMIFS('5. Subcontracting Costs'!H:H,'5. Subcontracting Costs'!C:C,B74,'5. Subcontracting Costs'!B:B,$B$8) -> 0 | G74: =SUMIFS('1. Staff costs'!S:S,'1. Staff costs'!C:C,B74,'1. Staff costs'!B:B,$G$21)+SUMIFS('2-3. Travel Costs&Costs of Stay'!N:N,'2-3. Travel Costs&Costs of Stay'!C:C,B74,'2-3. Travel Costs&Costs of Stay'!B:B,$G$21)+SUMIFS('4. Equipment Costs'!H:H,'4. Equipment Costs'!C:C,B74,'4. Equipment Costs'!B:B,$G$21)+SUMIFS('5. Subcontracting Costs'!H:H,'5. Subcontracting Costs'!C:C,B74,'5. Subcontracting Costs'!B:B,$G$21) -> 0 | H74: 0 | I74: 0
B75: P54 | C75: =SUMIFS('1. Staff costs'!S:S,'1. Staff costs'!C:C,B75,'1. Staff costs'!B:B,$C$21)+SUMIFS('2-3. Travel Costs&Costs of Stay'!N:N,'2-3. Travel Costs&Costs of Stay'!C:C,B75,'2-3. Travel Costs&Costs of Stay'!B:B,$C$21)+SUMIFS('4. Equipment Costs'!H:H,'4. Equipment Costs'!C:C,B75,'4. Equipment Costs'!B:B,$C$21)+SUMIFS('5. Subcontracting Costs'!H:H,'5. Subcontracting Costs'!C:C,B75,'5. Subcontracting Costs'!B:B,$C$21) -> 0 | D75: =SUMIFS('1. Staff costs'!S:S,'1. Staff costs'!C:C,B75,'1. Staff costs'!B:B,$D$21)+SUMIFS('2-3. Travel Costs&Costs of Stay'!N:N,'2-3. Travel Costs&Costs of Stay'!C:C,B75,'2-3. Travel Costs&Costs of Stay'!B:B,$D$21)+SUMIFS('4. Equipment Costs'!H:H,'4. Equipment Costs'!C:C,B75,'4. Equipment Costs'!B:B,$D$21)+SUMIFS('5. Subcontracting Costs'!H:H,'5. Subcontracting Costs'!C:C,B75,'5. Subcontracting Costs'!B:B,$D$21) -> 0 | E75: =SUMIFS('1. Staff costs'!S:S,'1. Staff costs'!C:C,B75,'1. Staff costs'!B:B,$E$21)+SUMIFS('2-3. Travel Costs&Costs of Stay'!N:N,'2-3. Travel Costs&Costs of Stay'!C:C,B75,'2-3. Travel Costs&Costs of Stay'!B:B,$E$21)+SUMIFS('4. Equipment Costs'!H:H,'4. Equipment Costs'!C:C,B75,'4. Equipment Costs'!B:B,$E$21)+SUMIFS('5. Subcontracting Costs'!H:H,'5. Subcontracting Costs'!C:C,B75,'5. Subcontracting Costs'!B:B,$E$21) -> 0 | F75: =SUMIFS('1. Staff costs'!S:S,'1. Staff costs'!C:C,B75,'1. Staff costs'!B:B,$B$8)+SUMIFS('2-3. Travel Costs&Costs of Stay'!N:N,'2-3. Travel Costs&Costs of Stay'!C:C,B75,'2-3. Travel Costs&Costs of Stay'!B:B,$B$8)+SUMIFS('4. Equipment Costs'!H:H,'4. Equipment Costs'!C:C,B75,'4. Equipment Costs'!B:B,$B$8)+SUMIFS('5. Subcontracting Costs'!H:H,'5. Subcontracting Costs'!C:C,B75,'5. Subcontracting Costs'!B:B,$B$8) -> 0 | G75: =SUMIFS('1. Staff costs'!S:S,'1. Staff costs'!C:C,B75,'1. Staff costs'!B:B,$G$21)+SUMIFS('2-3. Travel Costs&Costs of Stay'!N:N,'2-3. Travel Costs&Costs of Stay'!C:C,B75,'2-3. Travel Costs&Costs of Stay'!B:B,$G$21)+SUMIFS('4. Equipment Costs'!H:H,'4. Equipment Costs'!C:C,B75,'4. Equipment Costs'!B:B,$G$21)+SUMIFS('5. Subcontracting Costs'!H:H,'5. Subcontracting Costs'!C:C,B75,'5. Subcontracting Costs'!B:B,$G$21) -> 0 | H75: 0 | I75: 0
B76: P55 | C76: =SUMIFS('1. Staff costs'!S:S,'1. Staff costs'!C:C,B76,'1. Staff costs'!B:B,$C$21)+SUMIFS('2-3. Travel Costs&Costs of Stay'!N:N,'2-3. Travel Costs&Costs of Stay'!C:C,B76,'2-3. Travel Costs&Costs of Stay'!B:B,$C$21)+SUMIFS('4. Equipment Costs'!H:H,'4. Equipment Costs'!C:C,B76,'4. Equipment Costs'!B:B,$C$21)+SUMIFS('5. Subcontracting Costs'!H:H,'5. Subcontracting Costs'!C:C,B76,'5. Subcontracting Costs'!B:B,$C$21) -> 0 | D76: =SUMIFS('1. Staff costs'!S:S,'1. Staff costs'!C:C,B76,'1. Staff costs'!B:B,$D$21)+SUMIFS('2-3. Travel Costs&Costs of Stay'!N:N,'2-3. Travel Costs&Costs of Stay'!C:C,B76,'2-3. Travel Costs&Costs of Stay'!B:B,$D$21)+SUMIFS('4. Equipment Costs'!H:H,'4. Equipment Costs'!C:C,B76,'4. Equipment Costs'!B:B,$D$21)+SUMIFS('5. Subcontracting Costs'!H:H,'5. Subcontracting Costs'!C:C,B76,'5. Subcontracting Costs'!B:B,$D$21) -> 0 | E76: =SUMIFS('1. Staff costs'!S:S,'1. Staff costs'!C:C,B76,'1. Staff costs'!B:B,$E$21)+SUMIFS('2-3. Travel Costs&Costs of Stay'!N:N,'2-3. Travel Costs&Costs of Stay'!C:C,B76,'2-3. Travel Costs&Costs of Stay'!B:B,$E$21)+SUMIFS('4. Equipment Costs'!H:H,'4. Equipment Costs'!C:C,B76,'4. Equipment Costs'!B:B,$E$21)+SUMIFS('5. Subcontracting Costs'!H:H,'5. Subcontracting Costs'!C:C,B76,'5. Subcontracting Costs'!B:B,$E$21) -> 0 | F76: =SUMIFS('1. Staff costs'!S:S,'1. Staff costs'!C:C,B76,'1. Staff costs'!B:B,$B$8)+SUMIFS('2-3. Travel Costs&Costs of Stay'!N:N,'2-3. Travel Costs&Costs of Stay'!C:C,B76,'2-3. Travel Costs&Costs of Stay'!B:B,$B$8)+SUMIFS('4. Equipment Costs'!H:H,'4. Equipment Costs'!C:C,B76,'4. Equipment Costs'!B:B,$B$8)+SUMIFS('5. Subcontracting Costs'!H:H,'5. Subcontracting Costs'!C:C,B76,'5. Subcontracting Costs'!B:B,$B$8) -> 0 | G76: =SUMIFS('1. Staff costs'!S:S,'1. Staff costs'!C:C,B76,'1. Staff costs'!B:B,$G$21)+SUMIFS('2-3. Travel Costs&Costs of Stay'!N:N,'2-3. Travel Costs&Costs of Stay'!C:C,B76,'2-3. Travel Costs&Costs of Stay'!B:B,$G$21)+SUMIFS('4. Equipment Costs'!H:H,'4. Equipment Costs'!C:C,B76,'4. Equipment Costs'!B:B,$G$21)+SUMIFS('5. Subcontracting Costs'!H:H,'5. Subcontracting Costs'!C:C,B76,'5. Subcontracting Costs'!B:B,$G$21) -> 0 | H76: 0 | I76: 0
B77: Total | C77: =SUM(C22:C76) -> 0 | D77: =SUM(D22:D76) -> 0 | E77: 0 | F77: 0 | G77: 0 | H77: =SUM(H22:H76) -> 0 | I77: =SUM(C77:H77) -> 0

Sheet Unit Costs & Funding Rule
B1: UNIT COSTS AND SUMMARY OF THE FUNDING RULES FOR JOINT AND STRUCTURAL CAPACITY BUILDING PROJECTS You can find below the unit costs values used in this file for the calculation of the grant. Please refer to the Erasmus+ Programme guide 2017* for a complete overview of the funding rules applying to the Joint and Structural Capacity Building Projects (Part B of the guide and Annex 1).
B2: * Link to Erasmus+ Programme guide 2018: | C2: https://ec.europa.eu/programmes/erasmus-plus/sites/erasmusplus2/files/files/resources/erasmus-plus-programme-guide_en.pdf
B3: * Link to CBHE Call for proposal, forms, annexes and guidelines: | C3: https://eacea.ec.europa.eu/erasmus-plus/funding/capacity-building-higher-education-2018_en
B4: A.1 Staff Costs | I4: A.2 & B Travel Costs | L4: A. 3 Costs of Stay | P4: A.4 Equipment | S4: A.5 Subcontracting
B5: Unit costs Contribution to the costs of staff performing tasks which are directly necessary to the achievements of the project's objectives. Conditional: applicants will have to justify the type and volume of resources needed in relation to the implementation of the proposed activities and outputs. The contribution is provided on the condition that the salary for the same tasks is compensated only once. | I5: Unit costs based on the travel distance per participant. Travel distances must be calculated using the distance calculator supported by the European Commission . The applicant must indicate the distance of a one-way travel to calculate the amount of the EU grant that will support the round trip. | L5: Costs for subsistence, accommodation, local and public transport such as bus and taxi, personal or optional health insurance. Unit costs based on the duration of the stay of the participants: Staff: 120 EUR/day from day 1 to day 14 70 EUR/day from day 15 to day 60 50 EUR/day from day 61 to day 90 (the maximum) Student: 55 EUR/day from day 1 to day 14 40 EUR/day from day 15 to max day 90 (the maximum) | P5: Contribution for the purchase of equipment necessary for the implementation of the project. Support is provided only for equipment purchased for the benefit of the HEIs in the Partner Countries. Conditional: the request for financial support to cover these costs must be motivated in the application form | S5: Support for sub-contracting costs that are necessary to the implementation of the project, including, in particular, costs for the compulsory financial audits (audit certificate) and for any external quality assurance procedure. Sub-contracting for project-management-related tasks is not eligible. Sub-contracting to external bodies should be very occasional. The specific competences and particular expertise needed to reach the project objectives should be found in the consortium and should determine its composition.
B7: Country | C7: PR/PA | D7: Manager | E7: Teacher/Trainer/Researcher | F7: Technical Staff | G7: Administrative Staff | I7: Distance | J7: Travel Costs (EUR) | L7: Number of Days | M7: Student | N7: Staff | P7: 100% of eligible costs Max. 30% of the total grant | S7: 100% of eligible costs Max. 10% of the total grant
B8: Austria | C8: Programme Countries | D8: 294 | E8: 241 | F8: 190 | G8: 157 | I8: 0 KM and 9 KM | J8: 0 | L8: 1 | M8: =L8*55 -> 55 | N8: =L8*120 -> 120
B9: Belgium | C9: Programme Countries | D9: 280 | E9: 214 | F9: 162 | G9: 131 | I9: 10 KM and 99 KM | J9: 20 | L9: 2 | M9: =L9*55 -> 110 | N9: =L9*120 -> 240 | P9: WorkPackage
B10: Bulgaria | C10: Programme Countries | D10: 88 | E10: 74 | F10: 55 | G10: 39 | I10: 100 KM and 499 KM | J10: 180 | L10: 3 | M10: 165 | N10: 360 | P10: Preparation
B11: Croatia | C11: Programme Countries | D11: 88 | E11: 74 | F11: 55 | G11: 39 | I11: 500 KM and 1999 KM | J11: 275 | L11: 4 | M11: 220 | N11: 480 | P11: Development
B12: Cyprus | C12: Programme Countries | D12: 164 | E12: 137 | F12: 102 | G12: 78 | I12: 2000 KM and 2999 KM | J12: 360 | L12: 5 | M12: 275 | N12: 600 | P12: Quality Plan
B13: Czech Republic | C13: Programme Countries | D13: 164 | E13: 137 | F13: 102 | G13: 78 | I13: 3000 KM and 3999 KM | J13: 530 | L13: 6 | M13: 330 | N13: 720 | P13: Dissemination & Exploitation
B14: Denmark | C14: Programme Countries | D14: 294 | E14: 241 | F14: 190 | G14: 157 | I14: 4000 KM and 7999 KM | J14: 820 | L14: 7 | M14: 385 | N14: 840 | P14: Management
B15: Estonia | C15: Programme Countries | D15: 88 | E15: 74 | F15: 55 | G15: 39 | I15: 8000 KM or more | J15: 1500 | L15: 8 | M15: 440 | N15: 960
B16: Finland | C16: Programme Countries | D16: 280 | E16: 214 | F16: 162 | G16: 131 | L16: 9 | M16: 495 | N16: 1080 | P16: Category
B17: former Yugoslav Republic of Macedonia | C17: Programme Countries | D17: 88 | E17: 74 | F17: 55 | G17: 39 | L17: 10 | M17: 550 | N17: 1200 | P17: Staff
B18: France | C18: Programme Countries | D18: 280 | E18: 214 | F18: 162 | G18: 131 | L18: 11 | M18: 605 | N18: 1320 | P18: Student
B19: Germany | C19: Programme Countries | D19: 280 | E19: 214 | F19: 162 | G19: 131 | L19: 12 | M19: 660 | N19: 1440
B20: Greece | C20: Programme Countries | D20: 164 | E20: 137 | F20: 102 | G20: 78 | L20: 13 | M20: 715 | N20: 1560
B21: Hungary | C21: Programme Countries | D21: 88 | E21: 74 | F21: 55 | G21: 39 | L21: 14 | M21: 770 | N21: 1680
B22: Iceland | C22: Programme Countries | D22: 280 | E22: 214 | F22: 162 | G22: 131 | L22: 15 | M22: =((L22-$L$21)*40)+770 -> 810 | N22: =((L22-$L$21)*70)+1680 -> 1750
B23: Ireland | C23: Programme Countries | D23: 294 | E23: 241 | F23: 190 | G23: 157 | L23: 16 | M23: =((L23-$L$21)*40)+770 -> 850 | N23: =((L23-$L$21)*70)+1680 -> 1820
B24: Italy | C24: Programme Countries | D24: 280 | E24: 214 | F24: 162 | G24: 131 | L24: 17 | M24: 890 | N24: 1890
B25: Latvia | C25: Programme Countries | D25: 88 | E25: 74 | F25: 55 | G25: 39 | L25: 18 | M25: 930 | N25: 1960
B26: Liechtenstein | C26: Programme Countries | D26: 294 | E26: 241 | F26: 190 | G26: 157 | L26: 19 | M26: 970 | N26: 2030
B27: Lithuania | C27: Programme Countries | D27: 88 | E27: 74 | F27: 55 | G27: 39 | L27: 20 | M27: 1010 | N27: 2100
B28: Luxembourg | C28: Programme Countries | D28: 294 | E28: 241 | F28: 190 | G28: 157 | L28: 21 | M28: 1050 | N28: 2170
B29: Malta | C29: Programme Countries | D29: 164 | E29: 137 | F29: 102 | G29: 78 | L29: 22 | M29: 1090 | N29: 2240
B30: Netherlands | C30: Programme Countries | D30: 294 | E30: 241 | F30: 190 | G30: 157 | L30: 23 | M30: 1130 | N30: 2310
B31: Norway | C31: Programme Countries | D31: 294 | E31: 241 | F31: 190 | G31: 157 | L31: 24 | M31: 1170 | N31: 2380
B32: Poland | C32: Programme Countries | D32: 88 | E32: 74 | F32: 55 | G32: 39 | L32: 25 | M32: 1210 | N32: 2450
B33: Portugal | C33: Programme Countries | D33: 164 | E33: 137 | F33: 102 | G33: 78 | L33: 26 | M33: 1250 | N33: 2520
B34: Romania | C34: Programme Countries | D34: 88 | E34: 74 | F34: 55 | G34: 39 | L34: 27 | M34: 1290 | N34: 2590
B35: Slovakia | C35: Programme Countries | D35: 88 | E35: 74 | F35: 55 | G35: 39 | L35: 28 | M35: 1330 | N35: 2660
B36: Slovenia | C36: Programme Countries | D36: 164 | E36: 137 | F36: 102 | G36: 78 | L36: 29 | M36: 1370 | N36: 2730
B37: Spain | C37: Programme Countries | D37: 164 | E37: 137 | F37: 102 | G37: 78 | L37: 30 | M37: 1410 | N37: 2800
B38: Sweden | C38: Programme Countries | D38: 294 | E38: 241 | F38: 190 | G38: 157 | L38: 31 | M38: 1450 | N38: 2870
B39: Turkey | C39: Programme Countries | D39: 88 | E39: 74 | F39: 55 | G39: 39 | L39: 32 | M39: 1490 | N39: 2940
B40: United Kingdom | C40: Programme Countries | D40: 280 | E40: 214 | F40: 162 | G40: 131 | L40: 33 | M40: 1530 | N40: 3010
B41: Afghanistan | C41: Partner Countries | D41: 77 | E41: 57 | F41: 40 | G41: 32 | L41: 34 | M41: 1570 | N41: 3080
B42: Albania | C42: Partner Countries | D42: 108 | E42: 80 | F42: 57 | G42: 45 | L42: 35 | M42: 1610 | N42: 3150
B43: Algeria | C43: Partner Countries | D43: 47 | E43: 33 | F43: 22 | G43: 17 | L43: 36 | M43: 1650 | N43: 3220
B44: Angola | C44: Partner Countries | D44: 108 | E44: 80 | F44: 57 | G44: 45 | L44: 37 | M44: 1690 | N44: 3290
B45: Antigua and Barbuda | C45: Partner Countries | D45: 108 | E45: 80 | F45: 57 | G45: 45 | L45: 38 | M45: 1730 | N45: 3360
B46: Argentina | C46: Partner Countries | D46: 108 | E46: 80 | F46: 57 | G46: 45 | L46: 39 | M46: 1770 | N46: 3430
B47: Armenia | C47: Partner Countries | D47: 47 | E47: 33 | F47: 22 | G47: 17 | L47: 40 | M47: 1810 | N47: 3500
B48: Azerbaijan | C48: Partner Countries | D48: 77 | E48: 57 | F48: 40 | G48: 32 | L48: 41 | M48: 1850 | N48: 3570
B49: Bahamas | C49: Partner Countries | D49: 77 | E49: 57 | F49: 40 | G49: 32 | L49: 42 | M49: 1890 | N49: 3640
B50: Bangladesh | C50: Partner Countries | D50: 47 | E50: 33 | F50: 22 | G50: 17 | L50: 43 | M50: 1930 | N50: 3710
B51: Barbados | C51: Partner Countries | D51: 108 | E51: 80 | F51: 57 | G51: 45 | L51: 44 | M51: 1970 | N51: 3780
B52: Belarus | C52: Partner Countries | D52: 47 | E52: 33 | F52: 22 | G52: 17 | L52: 45 | M52: 2010 | N52: 3850
B53: Belize | C53: Partner Countries | D53: 47 | E53: 33 | F53: 22 | G53: 17 | L53: 46 | M53: 2050 | N53: 3920
B54: Benin | C54: Partner Countries | D54: 47 | E54: 33 | F54: 22 | G54: 17 | L54: 47 | M54: 2090 | N54: 3990
B55: Bhutan | C55: Partner Countries | D55: 47 | E55: 33 | F55: 22 | G55: 17 | L55: 48 | M55: 2130 | N55: 4060
B56: Bolivia | C56: Partner Countries | D56: 77 | E56: 57 | F56: 40 | G56: 32 | L56: 49 | M56: 2170 | N56: 4130
B57: Bosnia and Herzegovina | C57: Partner Countries | D57: 108 | E57: 80 | F57: 57 | G57: 45 | L57: 50 | M57: 2210 | N57: 4200
B58: Botswana | C58: Partner Countries | D58: 47 | E58: 33 | F58: 22 | G58: 17 | L58: 51 | M58: 2250 | N58: 4270
B59: Brazil | C59: Partner Countries | D59: 108 | E59: 80 | F59: 57 | G59: 45 | L59: 52 | M59: 2290 | N59: 4340
B60: Burkina Faso | C60: Partner Countries | D60: 77 | E60: 57 | F60: 40 | G60: 32 | L60: 53 | M60: 2330 | N60: 4410
B61: Burundi | C61: Partner Countries | D61: 47 | E61: 33 | F61: 22 | G61: 17 | L61: 54 | M61: 2370 | N61: 4480
B62: Cambodia | C62: Partner Countries | D62: 47 | E62: 33 | F62: 22 | G62: 17 | L62: 55 | M62: 2410 | N62: 4550
B63: Cameroon | C63: Partner Countries | D63: 77 | E63: 57 | F63: 40 | G63: 32 | L63: 56 | M63: 2450 | N63: 4620
B64: Cape Verde | C64: Partner Countries | D64: 47 | E64: 33 | F64: 22 | G64: 17 | L64: 57 | M64: 2490 | N64: 4690
B65: Central African Republic | C65: Partner Countries | D65: 47 | E65: 33 | F65: 22 | G65: 17 | L65: 58 | M65: 2530 | N65: 4760
B66: Chad | C66: Partner Countries | D66: 47 | E66: 33 | F66: 22 | G66: 17 | L66: 59 | M66: 2570 | N66: 4830
B67: Chile | C67: Partner Countries | D67: 108 | E67: 80 | F67: 57 | G67: 45 | L67: 60 | M67: 2610 | N67: 4900
B68: China | C68: Partner Countries | D68: 77 | E68: 57 | F68: 40 | G68: 32 | L68: 61 | M68: 2650 | N68: =((L68-$L$67)*50)+4900 -> 4950
B69: Colombia | C69: Partner Countries | D69: 108 | E69: 80 | F69: 57 | G69: 45 | L69: 62 | M69: 2690 | N69: =((L69-$L$67)*50)+4900 -> 5000
B70: Comoros | C70: Partner Countries | D70: 108 | E70: 80 | F70: 57 | G70: 45 | L70: 63 | M70: 2730 | N70: 5050
B71: Congo | C71: Partner Countries | D71: 77 | E71: 57 | F71: 40 | G71: 32 | L71: 64 | M71: 2770 | N71: 5100
B72: Congo - Republic of the- | C72: Partner Countries | D72: 47 | E72: 33 | F72: 22 | G72: 17 | L72: 65 | M72: 2810 | N72: 5150
B73: Cook Islands | C73: Partner Countries | D73: 108 | E73: 80 | F73: 57 | G73: 45 | L73: 66 | M73: 2850 | N73: 5200
B74: Costa Rica | C74: Partner Countries | D74: 77 | E74: 57 | F74: 40 | G74: 32 | L74: 67 | M74: 2890 | N74: 5250
B75: Cuba | C75: Partner Countries | D75: 47 | E75: 33 | F75: 22 | G75: 17 | L75: 68 | M75: 2930 | N75: 5300
B76: Djibouti | C76: Partner Countries | D76: 77 | E76: 57 | F76: 40 | G76: 32 | L76: 69 | M76: 2970 | N76: 5350
B77: Dominica | C77: Partner Countries | D77: 108 | E77: 80 | F77: 57 | G77: 45 | L77: 70 | M77: 3010 | N77: 5400
B78: Dominican Republic | C78: Partner Countries | D78: 77 | E78: 57 | F78: 40 | G78: 32 | L78: 71 | M78: 3050 | N78: 5450
B79: DPR Korea | C79: Partner Countries | D79: 47 | E79: 33 | F79: 22 | G79: 17 | L79: 72 | M79: 3090 | N79: 5500
B80: Ecuador | C80: Partner Countries | D80: 77 | E80: 57 | F80: 40 | G80: 32 | L80: 73 | M80: 3130 | N80: 5550
B81: Egypt | C81: Partner Countries | D81: 47 | E81: 33 | F81: 22 | G81: 17 | L81: 74 | M81: 3170 | N81: 5600
B82: El Salvador | C82: Partner Countries | D82: 77 | E82: 57 | F82: 40 | G82: 32 | L82: 75 | M82: 3210 | N82: 5650
B83: Equatorial Guinea | C83: Partner Countries | D83: 47 | E83: 33 | F83: 22 | G83: 17 | L83: 76 | M83: 3250 | N83: 5700
B84: Eritrea | C84: Partner Countries | D84: 47 | E84: 33 | F84: 22 | G84: 17 | L84: 77 | M84: 3290 | N84: 5750
B85: Ethiopia | C85: Partner Countries | D85: 47 | E85: 33 | F85: 22 | G85: 17 | L85: 78 | M85: 3330 | N85: 5800
B86: Fiji | C86: Partner Countries | D86: 47 | E86: 33 | F86: 22 | G86: 17 | L86: 79 | M86: 3370 | N86: 5850
B87: Gabon | C87: Partner Countries | D87: 108 | E87: 80 | F87: 57 | G87: 45 | L87: 80 | M87: =((L87-$L$21)*40)+770 -> 3410 | N87: 5900
B88: Gambia | C88: Partner Countries | D88: 47 | E88: 33 | F88: 22 | G88: 17 | L88: 81 | M88: 3450 | N88: 5950
B89: Georgia | C89: Partner Countries | D89: 77 | E89: 57 | F89: 40 | G89: 32 | L89: 82 | M89: 3490 | N89: 6000
B90: Ghana | C90: Partner Countries | D90: 47 | E90: 33 | F90: 22 | G90: 17 | L90: 83 | M90: 3530 | N90: 6050
B91: Grenada | C91: Partner Countries | D91: 108 | E91: 80 | F91: 57 | G91: 45 | L91: 84 | M91: 3570 | N91: 6100
B92: Guatemala | C92: Partner Countries | D92: 77 | E92: 57 | F92: 40 | G92: 32 | L92: 85 | M92: 3610 | N92: 6150
B93: Guinea | C93: Partner Countries | D93: 47 | E93: 33 | F93: 22 | G93: 17 | L93: 86 | M93: 3650 | N93: 6200
B94: Guinea-Bissau | C94: Partner Countries | D94: 77 | E94: 57 | F94: 40 | G94: 32 | L94: 87 | M94: 3690 | N94: 6250
B95: Guyana | C95: Partner Countries | D95: 47 | E95: 33 | F95: 22 | G95: 17 | L95: 88 | M95: 3730 | N95: 6300
B96: Haiti | C96: Partner Countries | D96: 77 | E96: 57 | F96: 40 | G96: 32 | L96: 89 | M96: 3770 | N96: 6350
B97: Honduras | C97: Partner Countries | D97: 47 | E97: 33 | F97: 22 | G97: 17 | L97: 90 | M97: 3810 | N97: 6400
B98: India | C98: Partner Countries | D98: 47 | E98: 33 | F98: 22 | G98: 17
B99: Indonesia | C99: Partner Countries | D99: 47 | E99: 33 | F99: 22 | G99: 17
B100: Iran | C100: Partner Countries | D100: 77 | E100: 57 | F100: 40 | G100: 32
B101: Iraq | C101: Partner Countries | D101: 77 | E101: 57 | F101: 40 | G101: 32
B102: Israel | C102: Partner Countries | D102: 166 | E102: 132 | F102: 102 | G102: 92
B103: Ivory Coast | C103: Partner Countries | D103: 108 | E103: 80 | F103: 57 | G103: 45
B104: Jamaica | C104: Partner Countries | D104: 77 | E104: 57 | F104: 40 | G104: 32
B105: Jordan | C105: Partner Countries | D105: 77 | E105: 57 | F105: 40 | G105: 32
B106: Kazakstan | C106: Partner Countries | D106: 77 | E106: 57 | F106: 40 | G106: 32
B107: Kenya | C107: Partner Countries | D107: 77 | E107: 57 | F107: 40 | G107: 32
B108: Kiribati | C108: Partner Countries | D108: 47 | E108: 33 | F108: 22 | G108: 17
B109: Kosovo | C109: Partner Countries | D109: 108 | E109: 80 | F109: 57 | G109: 45
B110: Kyrgyzstan | C110: Partner Countries | D110: 47 | E110: 33 | F110: 22 | G110: 17
B111: Laos | C111: Partner Countries | D111: 47 | E111: 33 | F111: 22 | G111: 17
B112: Lebanon | C112: Partner Countries | D112: 108 | E112: 80 | F112: 57 | G112: 45
B113: Lesotho | C113: Partner Countries | D113: 47 | E113: 33 | F113: 22 | G113: 17
B114: Liberia | C114: Partner Countries | D114: 47 | E114: 33 | F114: 22 | G114: 17
B115: Libya | C115: Partner Countries | D115: 108 | E115: 80 | F115: 57 | G115: 45
B116: Madagascar | C116: Partner Countries | D116: 47 | E116: 33 | F116: 22 | G116: 17
B117: Malawi | C117: Partner Countries | D117: 47 | E117: 33 | F117: 22 | G117: 17
B118: Malaysia | C118: Partner Countries | D118: 47 | E118: 33 | F118: 22 | G118: 17
B119: Maldives | C119: Partner Countries | D119: 47 | E119: 33 | F119: 22 | G119: 17
B120: Mali | C120: Partner Countries | D120: 47 | E120: 33 | F120: 22 | G120: 17
B121: Marshall Islands | C121: Partner Countries | D121: 47 | E121: 33 | F121: 22 | G121: 17
B122: Mauritania | C122: Partner Countries | D122: 47 | E122: 33 | F122: 22 | G122: 17
B123: Mauritius | C123: Partner Countries | D123: 47 | E123: 33 | F123: 22 | G123: 17
B124: Mexico | C124: Partner Countries | D124: 108 | E124: 80 | F124: 57 | G124: 45
B125: Micronesia - Federated States of- | C125: Partner Countries | D125: 77 | E125: 57 | F125: 40 | G125: 32
B126: Moldova | C126: Partner Countries | D126: 47 | E126: 33 | F126: 22 | G126: 17
B127: Mongolia | C127: Partner Countries | D127: 47 | E127: 33 | F127: 22 | G127: 17
B128: Montenegro | C128: Partner Countries | D128: 108 | E128: 80 | F128: 57 | G128: 45
B129: Morocco | C129: Partner Countries | D129: 77 | E129: 57 | F129: 40 | G129: 32
B130: Mozambique | C130: Partner Countries | D130: 77 | E130: 57 | F130: 40 | G130: 32
B131: Myanmar | C131: Partner Countries | D131: 47 | E131: 33 | F131: 22 | G131: 17
B132: Namibia | C132: Partner Countries | D132: 77 | E132: 57 | F132: 40 | G132: 32
B133: Nauru | C133: Partner Countries | D133: 47 | E133: 33 | F133: 22 | G133: 17
B134: Nepal | C134: Partner Countries | D134: 47 | E134: 33 | F134: 22 | G134: 17
B135: Nicaragua | C135: Partner Countries | D135: 47 | E135: 33 | F135: 22 | G135: 17
B136: Niger | C136: Partner Countries | D136: 47 | E136: 33 | F136: 22 | G136: 17
B137: Nigeria | C137: Partner Countries | D137: 108 | E137: 80 | F137: 57 | G137: 45
B138: Niue | C138: Partner Countries | D138: 47 | E138: 33 | F138: 22 | G138: 17
B139: Pakistan | C139: Partner Countries | D139: 47 | E139: 33 | F139: 22 | G139: 17
B140: Palau | C140: Partner Countries | D140: 47 | E140: 33 | F140: 22 | G140: 17
B141: Palestine | C141: Partner Countries | D141: 77 | E141: 57 | F141: 40 | G141: 32
B142: Panama | C142: Partner Countries | D142: 77 | E142: 57 | F142: 40 | G142: 32
B143: Papua New Guinea | C143: Partner Countries | D143: 77 | E143: 57 | F143: 40 | G143: 32
B144: Paraguay | C144: Partner Countries | D144: 77 | E144: 57 | F144: 40 | G144: 32
B145: Peru | C145: Partner Countries | D145: 108 | E145: 80 | F145: 57 | G145: 45
B146: Philippines | C146: Partner Countries | D146: 47 | E146: 33 | F146: 22 | G146: 17
B147: Russia | C147: Partner Countries | D147: 77 | E147: 57 | F147: 40 | G147: 32
B148: Rwanda | C148: Partner Countries | D148: 47 | E148: 33 | F148: 22 | G148: 17
B149: Saint Kitts and Nevis | C149: Partner Countries | D149: 108 | E149: 80 | F149: 57 | G149: 45
B150: Saint Lucia | C150: Partner Countries | D150: 108 | E150: 80 | F150: 57 | G150: 45
B151: Saint Vincent and the Grenadines | C151: Partner Countries | D151: 108 | E151: 80 | F151: 57 | G151: 45
B152: Samoa | C152: Partner Countries | D152: 47 | E152: 33 | F152: 22 | G152: 17
B153: Sao Tome and Principe | C153: Partner Countries | D153: 108 | E153: 80 | F153: 57 | G153: 45
B154: Senegal | C154: Partner Countries | D154: 77 | E154: 57 | F154: 40 | G154: 32
B155: Serbia | C155: Partner Countries | D155: 108 | E155: 80 | F155: 57 | G155: 45
B156: Seychelles | C156: Partner Countries | D156: 108 | E156: 80 | F156: 57 | G156: 45
B157: Sierra Leone | C157: Partner Countries | D157: 47 | E157: 33 | F157: 22 | G157: 17
B158: Solomon Islands | C158: Partner Countries | D158: 47 | E158: 33 | F158: 22 | G158: 17
B159: Somalia | C159: Partner Countries | D159: 47 | E159: 33 | F159: 22 | G159: 17
B160: South Africa | C160: Partner Countries | D160: 77 | E160: 57 | F160: 40 | G160: 32
B161: South Sudan | C161: Partner Countries | D161: 47 | E161: 33 | F161: 22 | G161: 17
B162: Sri Lanka | C162: Partner Countries | D162: 47 | E162: 33 | F162: 22 | G162: 17
B163: Sudan | C163: Partner Countries | D163: 47 | E163: 33 | F163: 22 | G163: 17
B164: Suriname | C164: Partner Countries | D164: 77 | E164: 57 | F164: 40 | G164: 32
B165: Swaziland | C165: Partner Countries | D165: 77 | E165: 57 | F165: 40 | G165: 32
B166: Syria | C166: Partner Countries | D166: 47 | E166: 33 | F166: 22 | G166: 17
B167: Tajikistan | C167: Partner Countries | D167: 47 | E167: 33 | F167: 22 | G167: 17
B168: Tanzania | C168: Partner Countries | D168: 47 | E168: 33 | F168: 22 | G168: 17
B169: Thailand | C169: Partner Countries | D169: 108 | E169: 80 | F169: 57 | G169: 45
B170: Timor Leste - Republic of- | C170: Partner Countries | D170: 47 | E170: 33 | F170: 22 | G170: 17
B171: Togo | C171: Partner Countries | D171: 47 | E171: 33 | F171: 22 | G171: 17
B172: Tonga | C172: Partner Countries | D172: 47 | E172: 33 | F172: 22 | G172: 17
B173: Trinidad and Tobago | C173: Partner Countries | D173: 77 | E173: 57 | F173: 40 | G173: 32
B174: Tunisia | C174: Partner Countries | D174: 47 | E174: 33 | F174: 22 | G174: 17
B175: Turkmenistan | C175: Partner Countries | D175: 47 | E175: 33 | F175: 22 | G175: 17
B176: Tuvalu | C176: Partner Countries | D176: 47 | E176: 33 | F176: 22 | G176: 17
B177: Uganda | C177: Partner Countries | D177: 47 | E177: 33 | F177: 22 | G177: 17
B178: Ukraine | C178: Partner Countries | D178: 108 | E178: 80 | F178: 57 | G178: 45
B179: Uruguay | C179: Partner Countries | D179: 108 | E179: 80 | F179: 57 | G179: 45
B180: Uzbekistan | C180: Partner Countries | D180: 47 | E180: 33 | F180: 22 | G180: 17
B181: Vanuatu | C181: Partner Countries | D181: 77 | E181: 57 | F181: 40 | G181: 32
B182: Venezuela | C182: Partner Countries | D182: 108 | E182: 80 | F182: 57 | G182: 45
B183: Vietnam | C183: Partner Countries | D183: 47 | E183: 33 | F183: 22 | G183: 17
B184: Yemen | C184: Partner Countries | D184: 47 | E184: 33 | F184: 22 | G184: 17
B185: Zambia | C185: Partner Countries | D185: 108 | E185: 80 | F185: 57 | G185: 45
B186: Zimbabwe | C186: Partner Countries | D186: 108 | E186: 80 | F186: 57 | G186: 45
